Organisation Code,Organisation Label,Effective Date,Organisational Unit,Service Division Label,Category Internal Name,Purpose,Detailed Expenditure Code,Payment Date,Transaction Number,Irrecoverable VAT Amount,Amount,Capital Or Revenue,Beneficiary Name,Procurement Card
Http://opendatacommunities.org/id/metropolitan-district-council/leeds,Leeds City Council,31/07/2022,Adults and Health,Services For Adults Under 65 Mental/Dis,Agency Payments,Home Care,568,08/07/2022,2207-00001 ,0.00,360.60,R,A & B Healthcare Ltd,No
Http://opendatacommunities.org/id/metropolitan-district-council/leeds,Leeds City Council,31/07/2022,Adults and Health,Services For Older People Under 65 P/Dis,Agency Payments,Sheltered Accommodation,569,20/07/2022,2207-00002,0.00,5400.00,R,A & V TRANSITIONAL HOMES,No
Http://opendatacommunities.org/id/metropolitan-district-council/leeds,Leeds City Council,31/07/2022,Children and Families,Social Care,Agency Payments,Services Rendered By Other Organisations,511,01/07/2022,2207-00003,0.00,186.42,R,REDACTED PERSONAL DATA,No
Http://opendatacommunities.org/id/metropolitan-district-council/leeds,Leeds City Council,31/07/2022,Children and Families,Social Care,Agency Payments,Services Rendered By Other Organisations,511,06/07/2022,2207-00004,0.00,217.23,R,REDACTED PERSONAL DATA,No
Http://opendatacommunities.org/id/metropolitan-district-council/leeds,Leeds City Council,31/07/2022,Resources,Leeds Building Services,Supplies and Services,Other Hired And Contracted Services,265,21/07/2022,2207-00005,0.00,33960.00,R,A Buckler (Haulage) Ltd,No
Http://opendatacommunities.org/id/metropolitan-district-council/leeds,Leeds City Council,31/07/2022,City Development,Libraries Arts & Heritage,Supplies and Services,Operational Furniture And Equipment,203,06/07/2022,2207-00006,0.00,87.50,R,A C Entertainment Technologies Ltd,No
Http://opendatacommunities.org/id/metropolitan-district-council/leeds,Leeds City Council,31/07/2022,Children and Families,Social Care,Supplies and Services,Operational Materials,205,26/07/2022,2207-00007,0.00,200.00,R,REDACTED PERSONAL DATA,No
Http://opendatacommunities.org/id/metropolitan-district-council/leeds,Leeds City Council,31/07/2022,Children and Families,Social Care,Agency Payments,Services Rendered By Other Organisations,511,01/07/2022,2207-00008,0.00,233.03,R,REDACTED PERSONAL DATA,No
Http://opendatacommunities.org/id/metropolitan-district-council/leeds,Leeds City Council,31/07/2022,Strategic Landlord,HRA Housing Leeds,Capital,CONSTRUCTION,3,25/07/2022,2207-00009,0.00,52273.02,C,A Connolly Limited,No
Http://opendatacommunities.org/id/metropolitan-district-council/leeds,Leeds City Council,31/07/2022,Resources,Leeds Building Services,Supplies and Services,Other Hired And Contracted Services,265,08/07/2022,2207-00010,0.00,3014.00,R,A Coole Electrical Ltd,No
Http://opendatacommunities.org/id/metropolitan-district-council/leeds,Leeds City Council,31/07/2022,Resources,Leeds Building Services,Supplies and Services,Other Hired And Contracted Services,265,18/07/2022,2207-00011,0.00,11955.00,R,A Coole Electrical Ltd,No
Http://opendatacommunities.org/id/metropolitan-district-council/leeds,Leeds City Council,31/07/2022,Resources,Leeds Building Services,Supplies and Services,Other Hired And Contracted Services,265,28/07/2022,2207-00012,0.00,11409.00,R,A Coole Electrical Ltd,No
Http://opendatacommunities.org/id/metropolitan-district-council/leeds,Leeds City Council,31/07/2022,Resources,Leeds Building Services,Supplies and Services,Other Hired And Contracted Services,265,29/07/2022,2207-00013,0.00,1030.00,R,A Coole Electrical Ltd,No
Http://opendatacommunities.org/id/metropolitan-district-council/leeds,Leeds City Council,31/07/2022,Communities Housing and Environment,Customer Access,Supplies and Services,Bought In Professional Services,277,07/07/2022,2207-00014,0.00,27.00,R,A D Dumitru,No
Http://opendatacommunities.org/id/metropolitan-district-council/leeds,Leeds City Council,31/07/2022,Communities Housing and Environment,Customer Access,Supplies and Services,Bought In Professional Services,277,07/07/2022,2207-00015,0.00,27.00,R,A D Dumitru,No
Http://opendatacommunities.org/id/metropolitan-district-council/leeds,Leeds City Council,31/07/2022,Communities Housing and Environment,Customer Access,Supplies and Services,Bought In Professional Services,277,07/07/2022,2207-00016,0.00,27.00,R,A D Dumitru,No
Http://opendatacommunities.org/id/metropolitan-district-council/leeds,Leeds City Council,31/07/2022,Communities Housing and Environment,Customer Access,Supplies and Services,Bought In Professional Services,277,07/07/2022,2207-00017,0.00,27.00,R,A D Dumitru,No
Http://opendatacommunities.org/id/metropolitan-district-council/leeds,Leeds City Council,31/07/2022,Communities Housing and Environment,Customer Access,Supplies and Services,Bought In Professional Services,277,13/07/2022,2207-00018,0.00,27.00,R,A D Dumitru,No
Http://opendatacommunities.org/id/metropolitan-district-council/leeds,Leeds City Council,31/07/2022,Communities Housing and Environment,Customer Access,Supplies and Services,Bought In Professional Services,277,13/07/2022,2207-00019,0.00,18.00,R,A D Dumitru,No
Http://opendatacommunities.org/id/metropolitan-district-council/leeds,Leeds City Council,31/07/2022,Communities Housing and Environment,Customer Access,Supplies and Services,Bought In Professional Services,277,13/07/2022,2207-00020,0.00,27.00,R,A D Dumitru,No
Http://opendatacommunities.org/id/metropolitan-district-council/leeds,Leeds City Council,31/07/2022,Communities Housing and Environment,Customer Access,Supplies and Services,Bought In Professional Services,277,13/07/2022,2207-00021,0.00,18.00,R,A D Dumitru,No
Http://opendatacommunities.org/id/metropolitan-district-council/leeds,Leeds City Council,31/07/2022,Communities Housing and Environment,Customer Access,Supplies and Services,Bought In Professional Services,277,13/07/2022,2207-00022,0.00,18.00,R,A D Dumitru,No
Http://opendatacommunities.org/id/metropolitan-district-council/leeds,Leeds City Council,31/07/2022,Communities Housing and Environment,Customer Access,Supplies and Services,Bought In Professional Services,277,20/07/2022,2207-00023,0.00,18.00,R,A D Dumitru,No
Http://opendatacommunities.org/id/metropolitan-district-council/leeds,Leeds City Council,31/07/2022,Communities Housing and Environment,Customer Access,Supplies and Services,Bought In Professional Services,277,20/07/2022,2207-00024,0.00,18.00,R,A D Dumitru,No
Http://opendatacommunities.org/id/metropolitan-district-council/leeds,Leeds City Council,31/07/2022,Communities Housing and Environment,Customer Access,Supplies and Services,Bought In Professional Services,277,20/07/2022,2207-00025,0.00,18.00,R,A D Dumitru,No
Http://opendatacommunities.org/id/metropolitan-district-council/leeds,Leeds City Council,31/07/2022,Communities Housing and Environment,Customer Access,Supplies and Services,Bought In Professional Services,277,20/07/2022,2207-00026,0.00,18.00,R,A D Dumitru,No
Http://opendatacommunities.org/id/metropolitan-district-council/leeds,Leeds City Council,31/07/2022,Communities Housing and Environment,Customer Access,Supplies and Services,Bought In Professional Services,277,20/07/2022,2207-00027,0.00,18.00,R,A D Dumitru,No
Http://opendatacommunities.org/id/metropolitan-district-council/leeds,Leeds City Council,31/07/2022,Communities Housing and Environment,Customer Access,Supplies and Services,Bought In Professional Services,277,20/07/2022,2207-00028,0.00,33.00,R,A D Dumitru,No
Http://opendatacommunities.org/id/metropolitan-district-council/leeds,Leeds City Council,31/07/2022,Communities Housing and Environment,Customer Access,Supplies and Services,Bought In Professional Services,277,20/07/2022,2207-00029,0.00,9.00,R,A D Dumitru,No
Http://opendatacommunities.org/id/metropolitan-district-council/leeds,Leeds City Council,31/07/2022,Communities Housing and Environment,Customer Access,Supplies and Services,Bought In Professional Services,277,20/07/2022,2207-00030,0.00,18.00,R,A D Dumitru,No
Http://opendatacommunities.org/id/metropolitan-district-council/leeds,Leeds City Council,31/07/2022,Communities Housing and Environment,Customer Access,Supplies and Services,Bought In Professional Services,277,20/07/2022,2207-00031,0.00,27.00,R,A D Dumitru,No
Http://opendatacommunities.org/id/metropolitan-district-council/leeds,Leeds City Council,31/07/2022,Communities Housing and Environment,Customer Access,Supplies and Services,Bought In Professional Services,277,27/07/2022,2207-00032,0.00,9.00,R,A D Dumitru,No
Http://opendatacommunities.org/id/metropolitan-district-council/leeds,Leeds City Council,31/07/2022,Communities Housing and Environment,Customer Access,Supplies and Services,Bought In Professional Services,277,27/07/2022,2207-00033,0.00,18.00,R,A D Dumitru,No
Http://opendatacommunities.org/id/metropolitan-district-council/leeds,Leeds City Council,31/07/2022,Children and Families,Social Care,Agency Payments,Services Rendered By Voluntary Sector,505,01/07/2022,2207-00034,0.00,2274.33,R,REDACTED PERSONAL DATA,No
Http://opendatacommunities.org/id/metropolitan-district-council/leeds,Leeds City Council,31/07/2022,Children and Families,Social Care,Agency Payments,Services Rendered By Voluntary Sector,505,06/07/2022,2207-00035,0.00,1448.20,R,REDACTED PERSONAL DATA,No
Http://opendatacommunities.org/id/metropolitan-district-council/leeds,Leeds City Council,31/07/2022,Strategic Landlord,HRA Housing Leeds,Capital,OTHER COSTS,7,21/07/2022,2207-00036,0.00,80.00,C,REDACTED PERSONAL DATA,No
Http://opendatacommunities.org/id/metropolitan-district-council/leeds,Leeds City Council,31/07/2022,City Development,Libraries Arts & Heritage,Supplies and Services,Bought In Professional Services,277,08/07/2022,2207-00037,0.00,700.00,R,A F Miller,No
Http://opendatacommunities.org/id/metropolitan-district-council/leeds,Leeds City Council,31/07/2022,Strategic Landlord,HRA Housing Leeds,Capital,OTHER COSTS,7,07/07/2022,2207-00038,0.00,80.00,C,REDACTED PERSONAL DATA,No
Http://opendatacommunities.org/id/metropolitan-district-council/leeds,Leeds City Council,31/07/2022,Children and Families,Social Care,Agency Payments,Services Rendered By Other Organisations,511,06/07/2022,2207-00039,0.00,217.23,R,REDACTED PERSONAL DATA,No
Http://opendatacommunities.org/id/metropolitan-district-council/leeds,Leeds City Council,31/07/2022,Children and Families,Social Care,Agency Payments,Contact,548,06/07/2022,2207-00040,0.00,23.90,R,REDACTED PERSONAL DATA,No
Http://opendatacommunities.org/id/metropolitan-district-council/leeds,Leeds City Council,31/07/2022,Strategic Landlord,HRA Housing Leeds,Capital,OTHER COSTS,7,05/07/2022,2207-00041,0.00,100.00,C,REDACTED PERSONAL DATA,No
Http://opendatacommunities.org/id/metropolitan-district-council/leeds,Leeds City Council,31/07/2022,Children and Families,Social Care,Agency Payments,Services Rendered By Other Organisations,511,01/07/2022,2207-00042,0.00,857.54,R,REDACTED PERSONAL DATA,No
Http://opendatacommunities.org/id/metropolitan-district-council/leeds,Leeds City Council,31/07/2022,Adults and Health,Other Generic Services,Agency Payments,Fees To Carers,563,01/07/2022,2207-00043,0.00,125.31,R,REDACTED PERSONAL DATA,No
Http://opendatacommunities.org/id/metropolitan-district-council/leeds,Leeds City Council,31/07/2022,Adults and Health,Other Generic Services,Agency Payments,Fees To Carers,563,15/07/2022,2207-00044,0.00,532.80,R,REDACTED PERSONAL DATA,No
Http://opendatacommunities.org/id/metropolitan-district-council/leeds,Leeds City Council,31/07/2022,Adults and Health,Other Generic Services,Agency Payments,Fees To Carers,563,15/07/2022,2207-00045,0.00,56.70,R,REDACTED PERSONAL DATA,No
Http://opendatacommunities.org/id/metropolitan-district-council/leeds,Leeds City Council,31/07/2022,Adults and Health,Other Generic Services,Agency Payments,Fees To Carers,563,15/07/2022,2207-00046,0.00,125.31,R,REDACTED PERSONAL DATA,No
Http://opendatacommunities.org/id/metropolitan-district-council/leeds,Leeds City Council,31/07/2022,Adults and Health,Other Generic Services,Agency Payments,Fees To Carers,563,22/07/2022,2207-00047,0.00,41.77,R,REDACTED PERSONAL DATA,No
Http://opendatacommunities.org/id/metropolitan-district-council/leeds,Leeds City Council,31/07/2022,Resources,Leeds Building Services,Supplies and Services,Operational Materials,205,18/07/2022,2207-00048,0.00,895.00,R,A J H  Pump Supply & Repair Ltd,No
Http://opendatacommunities.org/id/metropolitan-district-council/leeds,Leeds City Council,31/07/2022,Resources,Leeds Building Services,Supplies and Services,Operational Materials,205,18/07/2022,2207-00049,0.00,948.75,R,A J H  Pump Supply & Repair Ltd,No
Http://opendatacommunities.org/id/metropolitan-district-council/leeds,Leeds City Council,31/07/2022,Resources,Leeds Building Services,Supplies and Services,Operational Materials,205,18/07/2022,2207-00050,0.00,809.00,R,A J H  Pump Supply & Repair Ltd,No
Http://opendatacommunities.org/id/metropolitan-district-council/leeds,Leeds City Council,31/07/2022,Resources,Leeds Building Services,Supplies and Services,Operational Materials,205,18/07/2022,2207-00051,0.00,5238.00,R,A J H  Pump Supply & Repair Ltd,No
Http://opendatacommunities.org/id/metropolitan-district-council/leeds,Leeds City Council,31/07/2022,Resources,Leeds Building Services,Supplies and Services,Operational Materials,205,18/07/2022,2207-00052,0.00,895.00,R,A J H  Pump Supply & Repair Ltd,No
Http://opendatacommunities.org/id/metropolitan-district-council/leeds,Leeds City Council,31/07/2022,Resources,Leeds Building Services,Supplies and Services,Operational Materials,205,20/07/2022,2207-00053,0.00,618.00,R,A J H  Pump Supply & Repair Ltd,No
Http://opendatacommunities.org/id/metropolitan-district-council/leeds,Leeds City Council,31/07/2022,Resources,Leeds Building Services,Supplies and Services,Operational Materials,205,22/07/2022,2207-00054,0.00,435.00,R,A J H  Pump Supply & Repair Ltd,No
Http://opendatacommunities.org/id/metropolitan-district-council/leeds,Leeds City Council,31/07/2022,Communities Housing and Environment,Parks and Countryside,Supplies and Services,Resaleable Materials,204,08/07/2022,2207-00055,0.00,1230.00,R,A J PROMOTIONS,No
Http://opendatacommunities.org/id/metropolitan-district-council/leeds,Leeds City Council,31/07/2022,City Development,Libraries Arts & Heritage,Supplies and Services,Resaleable Materials,204,13/07/2022,2207-00056,0.00,520.00,R,A J PROMOTIONS,No
Http://opendatacommunities.org/id/metropolitan-district-council/leeds,Leeds City Council,31/07/2022,Communities Housing and Environment,Parks and Countryside,Supplies and Services,Resaleable Materials,204,13/07/2022,2207-00057,0.00,145.00,R,A J PROMOTIONS,No
Http://opendatacommunities.org/id/metropolitan-district-council/leeds,Leeds City Council,31/07/2022,Communities Housing and Environment,Parks and Countryside,Supplies and Services,Resaleable Materials,204,22/07/2022,2207-00058,0.00,1145.25,R,A J PROMOTIONS,No
Http://opendatacommunities.org/id/metropolitan-district-council/leeds,Leeds City Council,31/07/2022,Children and Families,Social Care,Agency Payments,Services Rendered By Other Organisations,511,01/07/2022,2207-00059,0.00,1491.36,R,REDACTED PERSONAL DATA,No
Http://opendatacommunities.org/id/metropolitan-district-council/leeds,Leeds City Council,31/07/2022,Strategic Landlord,HRA Housing Leeds,Capital,OTHER COSTS,7,14/07/2022,2207-00060,0.00,100.00,C,REDACTED PERSONAL DATA,No
Http://opendatacommunities.org/id/metropolitan-district-council/leeds,Leeds City Council,31/07/2022,Communities Housing and Environment,Strategic Housing Partnership & Support,Supplies and Services,Other Hired And Contracted Services,265,28/07/2022,2207-00061,0.00,899.99,R,A Kundra,No
Http://opendatacommunities.org/id/metropolitan-district-council/leeds,Leeds City Council,31/07/2022,Strategic Landlord,HRA Housing Leeds,Capital,OTHER COSTS,7,14/07/2022,2207-00062,0.00,80.00,C,REDACTED PERSONAL DATA,No
Http://opendatacommunities.org/id/metropolitan-district-council/leeds,Leeds City Council,31/07/2022,Children and Families,Social Care,Employees,Agency Staff,8,14/07/2022,2207-00063,0.00,647.50,R,A Little Something Extra Ltd,No
Http://opendatacommunities.org/id/metropolitan-district-council/leeds,Leeds City Council,31/07/2022,Strategic Landlord,HRA Housing Leeds,Capital,OTHER COSTS,7,12/07/2022,2207-00064,0.00,217.02,C,REDACTED PERSONAL DATA,No
Http://opendatacommunities.org/id/metropolitan-district-council/leeds,Leeds City Council,31/07/2022,Strategic Landlord,HRA Housing Leeds,Capital,OTHER COSTS,7,06/07/2022,2207-00065,0.00,80.00,C,REDACTED PERSONAL DATA,No
Http://opendatacommunities.org/id/metropolitan-district-council/leeds,Leeds City Council,31/07/2022,Communities Housing and Environment,Customer Access,Supplies and Services,Bought In Professional Services,277,07/07/2022,2207-00066,0.00,45.00,R,A MOHAMMED,No
Http://opendatacommunities.org/id/metropolitan-district-council/leeds,Leeds City Council,31/07/2022,Communities Housing and Environment,Customer Access,Supplies and Services,Bought In Professional Services,277,07/07/2022,2207-00067,0.00,18.00,R,A MOHAMMED,No
Http://opendatacommunities.org/id/metropolitan-district-council/leeds,Leeds City Council,31/07/2022,Communities Housing and Environment,Customer Access,Supplies and Services,Bought In Professional Services,277,07/07/2022,2207-00068,0.00,81.00,R,A MOHAMMED,No
Http://opendatacommunities.org/id/metropolitan-district-council/leeds,Leeds City Council,31/07/2022,Communities Housing and Environment,Customer Access,Supplies and Services,Bought In Professional Services,277,07/07/2022,2207-00069,0.00,18.00,R,A MOHAMMED,No
Http://opendatacommunities.org/id/metropolitan-district-council/leeds,Leeds City Council,31/07/2022,Communities Housing and Environment,Customer Access,Supplies and Services,Bought In Professional Services,277,07/07/2022,2207-00070,0.00,18.00,R,A MOHAMMED,No
Http://opendatacommunities.org/id/metropolitan-district-council/leeds,Leeds City Council,31/07/2022,Communities Housing and Environment,Customer Access,Supplies and Services,Bought In Professional Services,277,07/07/2022,2207-00071,0.00,18.00,R,A MOHAMMED,No
Http://opendatacommunities.org/id/metropolitan-district-council/leeds,Leeds City Council,31/07/2022,Communities Housing and Environment,Customer Access,Supplies and Services,Bought In Professional Services,277,07/07/2022,2207-00072,0.00,18.00,R,A MOHAMMED,No
Http://opendatacommunities.org/id/metropolitan-district-council/leeds,Leeds City Council,31/07/2022,Communities Housing and Environment,Customer Access,Supplies and Services,Bought In Professional Services,277,07/07/2022,2207-00073,0.00,18.00,R,A MOHAMMED,No
Http://opendatacommunities.org/id/metropolitan-district-council/leeds,Leeds City Council,31/07/2022,Communities Housing and Environment,Customer Access,Supplies and Services,Bought In Professional Services,277,07/07/2022,2207-00074,0.00,18.00,R,A MOHAMMED,No
Http://opendatacommunities.org/id/metropolitan-district-council/leeds,Leeds City Council,31/07/2022,Communities Housing and Environment,Customer Access,Supplies and Services,Bought In Professional Services,277,07/07/2022,2207-00075,0.00,18.00,R,A MOHAMMED,No
Http://opendatacommunities.org/id/metropolitan-district-council/leeds,Leeds City Council,31/07/2022,Communities Housing and Environment,Customer Access,Supplies and Services,Bought In Professional Services,277,07/07/2022,2207-00076,0.00,67.50,R,A MOHAMMED,No
Http://opendatacommunities.org/id/metropolitan-district-council/leeds,Leeds City Council,31/07/2022,Communities Housing and Environment,Customer Access,Supplies and Services,Bought In Professional Services,277,07/07/2022,2207-00077,0.00,18.00,R,A MOHAMMED,No
Http://opendatacommunities.org/id/metropolitan-district-council/leeds,Leeds City Council,31/07/2022,Communities Housing and Environment,Customer Access,Supplies and Services,Bought In Professional Services,277,07/07/2022,2207-00078,0.00,81.00,R,A MOHAMMED,No
Http://opendatacommunities.org/id/metropolitan-district-council/leeds,Leeds City Council,31/07/2022,Communities Housing and Environment,Customer Access,Supplies and Services,Bought In Professional Services,277,07/07/2022,2207-00079,0.00,18.00,R,A MOHAMMED,No
Http://opendatacommunities.org/id/metropolitan-district-council/leeds,Leeds City Council,31/07/2022,Communities Housing and Environment,Customer Access,Supplies and Services,Bought In Professional Services,277,13/07/2022,2207-00080,0.00,27.00,R,A MOHAMMED,No
Http://opendatacommunities.org/id/metropolitan-district-council/leeds,Leeds City Council,31/07/2022,Communities Housing and Environment,Customer Access,Supplies and Services,Bought In Professional Services,277,13/07/2022,2207-00081,0.00,18.00,R,A MOHAMMED,No
Http://opendatacommunities.org/id/metropolitan-district-council/leeds,Leeds City Council,31/07/2022,Communities Housing and Environment,Customer Access,Supplies and Services,Bought In Professional Services,277,13/07/2022,2207-00082,0.00,18.00,R,A MOHAMMED,No
Http://opendatacommunities.org/id/metropolitan-district-council/leeds,Leeds City Council,31/07/2022,Communities Housing and Environment,Customer Access,Supplies and Services,Bought In Professional Services,277,13/07/2022,2207-00083,0.00,22.50,R,A MOHAMMED,No
Http://opendatacommunities.org/id/metropolitan-district-council/leeds,Leeds City Council,31/07/2022,Communities Housing and Environment,Customer Access,Supplies and Services,Bought In Professional Services,277,13/07/2022,2207-00084,0.00,18.00,R,A MOHAMMED,No
Http://opendatacommunities.org/id/metropolitan-district-council/leeds,Leeds City Council,31/07/2022,Communities Housing and Environment,Customer Access,Supplies and Services,Bought In Professional Services,277,13/07/2022,2207-00085,0.00,18.00,R,A MOHAMMED,No
Http://opendatacommunities.org/id/metropolitan-district-council/leeds,Leeds City Council,31/07/2022,Communities Housing and Environment,Customer Access,Supplies and Services,Bought In Professional Services,277,13/07/2022,2207-00086,0.00,27.00,R,A MOHAMMED,No
Http://opendatacommunities.org/id/metropolitan-district-council/leeds,Leeds City Council,31/07/2022,Communities Housing and Environment,Customer Access,Supplies and Services,Bought In Professional Services,277,13/07/2022,2207-00087,0.00,36.00,R,A MOHAMMED,No
Http://opendatacommunities.org/id/metropolitan-district-council/leeds,Leeds City Council,31/07/2022,Communities Housing and Environment,Customer Access,Supplies and Services,Bought In Professional Services,277,13/07/2022,2207-00088,0.00,63.00,R,A MOHAMMED,No
Http://opendatacommunities.org/id/metropolitan-district-council/leeds,Leeds City Council,31/07/2022,Communities Housing and Environment,Customer Access,Supplies and Services,Bought In Professional Services,277,13/07/2022,2207-00089,0.00,18.00,R,A MOHAMMED,No
Http://opendatacommunities.org/id/metropolitan-district-council/leeds,Leeds City Council,31/07/2022,Communities Housing and Environment,Customer Access,Supplies and Services,Bought In Professional Services,277,13/07/2022,2207-00090,0.00,9.00,R,A MOHAMMED,No
Http://opendatacommunities.org/id/metropolitan-district-council/leeds,Leeds City Council,31/07/2022,Communities Housing and Environment,Customer Access,Supplies and Services,Bought In Professional Services,277,13/07/2022,2207-00091,0.00,18.00,R,A MOHAMMED,No
Http://opendatacommunities.org/id/metropolitan-district-council/leeds,Leeds City Council,31/07/2022,Communities Housing and Environment,Customer Access,Supplies and Services,Bought In Professional Services,277,13/07/2022,2207-00092,0.00,13.50,R,A MOHAMMED,No
Http://opendatacommunities.org/id/metropolitan-district-council/leeds,Leeds City Council,31/07/2022,Communities Housing and Environment,Customer Access,Supplies and Services,Bought In Professional Services,277,13/07/2022,2207-00093,0.00,18.00,R,A MOHAMMED,No
Http://opendatacommunities.org/id/metropolitan-district-council/leeds,Leeds City Council,31/07/2022,Communities Housing and Environment,Customer Access,Supplies and Services,Bought In Professional Services,277,20/07/2022,2207-00094,0.00,18.00,R,A MOHAMMED,No
Http://opendatacommunities.org/id/metropolitan-district-council/leeds,Leeds City Council,31/07/2022,Communities Housing and Environment,Customer Access,Supplies and Services,Bought In Professional Services,277,20/07/2022,2207-00095,0.00,36.00,R,A MOHAMMED,No
Http://opendatacommunities.org/id/metropolitan-district-council/leeds,Leeds City Council,31/07/2022,Communities Housing and Environment,Customer Access,Supplies and Services,Bought In Professional Services,277,20/07/2022,2207-00096,0.00,18.00,R,A MOHAMMED,No
Http://opendatacommunities.org/id/metropolitan-district-council/leeds,Leeds City Council,31/07/2022,Communities Housing and Environment,Customer Access,Supplies and Services,Bought In Professional Services,277,20/07/2022,2207-00097,0.00,18.00,R,A MOHAMMED,No
Http://opendatacommunities.org/id/metropolitan-district-council/leeds,Leeds City Council,31/07/2022,Communities Housing and Environment,Customer Access,Supplies and Services,Bought In Professional Services,277,20/07/2022,2207-00098,0.00,18.00,R,A MOHAMMED,No
Http://opendatacommunities.org/id/metropolitan-district-council/leeds,Leeds City Council,31/07/2022,Communities Housing and Environment,Customer Access,Supplies and Services,Bought In Professional Services,277,20/07/2022,2207-00099,0.00,18.00,R,A MOHAMMED,No
Http://opendatacommunities.org/id/metropolitan-district-council/leeds,Leeds City Council,31/07/2022,Communities Housing and Environment,Customer Access,Supplies and Services,Bought In Professional Services,277,20/07/2022,2207-00100,0.00,9.00,R,A MOHAMMED,No
Http://opendatacommunities.org/id/metropolitan-district-council/leeds,Leeds City Council,31/07/2022,Communities Housing and Environment,Customer Access,Supplies and Services,Bought In Professional Services,277,20/07/2022,2207-00101,0.00,54.00,R,A MOHAMMED,No
Http://opendatacommunities.org/id/metropolitan-district-council/leeds,Leeds City Council,31/07/2022,Communities Housing and Environment,Customer Access,Supplies and Services,Bought In Professional Services,277,20/07/2022,2207-00102,0.00,18.00,R,A MOHAMMED,No
Http://opendatacommunities.org/id/metropolitan-district-council/leeds,Leeds City Council,31/07/2022,Communities Housing and Environment,Customer Access,Supplies and Services,Bought In Professional Services,277,27/07/2022,2207-00103,0.00,81.00,R,A MOHAMMED,No
Http://opendatacommunities.org/id/metropolitan-district-council/leeds,Leeds City Council,31/07/2022,Communities Housing and Environment,Customer Access,Supplies and Services,Bought In Professional Services,277,27/07/2022,2207-00104,0.00,18.00,R,A MOHAMMED,No
Http://opendatacommunities.org/id/metropolitan-district-council/leeds,Leeds City Council,31/07/2022,Communities Housing and Environment,Customer Access,Supplies and Services,Bought In Professional Services,277,27/07/2022,2207-00105,0.00,18.00,R,A MOHAMMED,No
Http://opendatacommunities.org/id/metropolitan-district-council/leeds,Leeds City Council,31/07/2022,Communities Housing and Environment,Customer Access,Supplies and Services,Bought In Professional Services,277,27/07/2022,2207-00106,0.00,18.00,R,A MOHAMMED,No
Http://opendatacommunities.org/id/metropolitan-district-council/leeds,Leeds City Council,31/07/2022,Communities Housing and Environment,Customer Access,Supplies and Services,Bought In Professional Services,277,27/07/2022,2207-00107,0.00,126.00,R,A MOHAMMED,No
Http://opendatacommunities.org/id/metropolitan-district-council/leeds,Leeds City Council,31/07/2022,Communities Housing and Environment,Customer Access,Supplies and Services,Bought In Professional Services,277,27/07/2022,2207-00108,0.00,18.00,R,A MOHAMMED,No
Http://opendatacommunities.org/id/metropolitan-district-council/leeds,Leeds City Council,31/07/2022,Communities Housing and Environment,Customer Access,Supplies and Services,Bought In Professional Services,277,27/07/2022,2207-00109,0.00,54.00,R,A MOHAMMED,No
Http://opendatacommunities.org/id/metropolitan-district-council/leeds,Leeds City Council,31/07/2022,Children and Families,Social Care,Agency Payments,Services Rendered By Other Organisations,511,01/07/2022,2207-00110,0.00,2796.30,R,REDACTED PERSONAL DATA,No
Http://opendatacommunities.org/id/metropolitan-district-council/leeds,Leeds City Council,31/07/2022,Children and Families,Social Care,Agency Payments,Services Rendered By Other Organisations,511,06/07/2022,2207-00111,0.00,651.69,R,REDACTED PERSONAL DATA,No
Http://opendatacommunities.org/id/metropolitan-district-council/leeds,Leeds City Council,31/07/2022,Communities Housing and Environment,Customer Access,Supplies and Services,Bought In Professional Services,277,07/07/2022,2207-00112,0.00,18.00,R,A NAMAKI,No
Http://opendatacommunities.org/id/metropolitan-district-council/leeds,Leeds City Council,31/07/2022,Communities Housing and Environment,Customer Access,Supplies and Services,Bought In Professional Services,277,07/07/2022,2207-00113,0.00,54.00,R,A NAMAKI,No
Http://opendatacommunities.org/id/metropolitan-district-council/leeds,Leeds City Council,31/07/2022,Communities Housing and Environment,Customer Access,Supplies and Services,Bought In Professional Services,277,07/07/2022,2207-00114,0.00,27.00,R,A NAMAKI,No
Http://opendatacommunities.org/id/metropolitan-district-council/leeds,Leeds City Council,31/07/2022,Communities Housing and Environment,Customer Access,Supplies and Services,Bought In Professional Services,277,07/07/2022,2207-00115,0.00,18.00,R,A NAMAKI,No
Http://opendatacommunities.org/id/metropolitan-district-council/leeds,Leeds City Council,31/07/2022,Communities Housing and Environment,Customer Access,Supplies and Services,Bought In Professional Services,277,07/07/2022,2207-00116,0.00,18.00,R,A NAMAKI,No
Http://opendatacommunities.org/id/metropolitan-district-council/leeds,Leeds City Council,31/07/2022,Communities Housing and Environment,Customer Access,Supplies and Services,Bought In Professional Services,277,07/07/2022,2207-00117,0.00,18.00,R,A NAMAKI,No
Http://opendatacommunities.org/id/metropolitan-district-council/leeds,Leeds City Council,31/07/2022,Communities Housing and Environment,Customer Access,Supplies and Services,Bought In Professional Services,277,13/07/2022,2207-00118,0.00,36.00,R,A NAMAKI,No
Http://opendatacommunities.org/id/metropolitan-district-council/leeds,Leeds City Council,31/07/2022,Communities Housing and Environment,Customer Access,Supplies and Services,Bought In Professional Services,277,13/07/2022,2207-00119,0.00,18.00,R,A NAMAKI,No
Http://opendatacommunities.org/id/metropolitan-district-council/leeds,Leeds City Council,31/07/2022,Communities Housing and Environment,Customer Access,Supplies and Services,Bought In Professional Services,277,13/07/2022,2207-00120,0.00,108.00,R,A NAMAKI,No
Http://opendatacommunities.org/id/metropolitan-district-council/leeds,Leeds City Council,31/07/2022,Communities Housing and Environment,Customer Access,Supplies and Services,Bought In Professional Services,277,13/07/2022,2207-00121,0.00,36.00,R,A NAMAKI,No
Http://opendatacommunities.org/id/metropolitan-district-council/leeds,Leeds City Council,31/07/2022,Communities Housing and Environment,Customer Access,Supplies and Services,Bought In Professional Services,277,13/07/2022,2207-00122,0.00,27.00,R,A NAMAKI,No
Http://opendatacommunities.org/id/metropolitan-district-council/leeds,Leeds City Council,31/07/2022,Communities Housing and Environment,Customer Access,Supplies and Services,Bought In Professional Services,277,13/07/2022,2207-00123,0.00,18.00,R,A NAMAKI,No
Http://opendatacommunities.org/id/metropolitan-district-council/leeds,Leeds City Council,31/07/2022,Communities Housing and Environment,Customer Access,Supplies and Services,Bought In Professional Services,277,13/07/2022,2207-00124,0.00,18.00,R,A NAMAKI,No
Http://opendatacommunities.org/id/metropolitan-district-council/leeds,Leeds City Council,31/07/2022,Communities Housing and Environment,Customer Access,Supplies and Services,Bought In Professional Services,277,13/07/2022,2207-00125,0.00,18.00,R,A NAMAKI,No
Http://opendatacommunities.org/id/metropolitan-district-council/leeds,Leeds City Council,31/07/2022,Communities Housing and Environment,Customer Access,Supplies and Services,Bought In Professional Services,277,13/07/2022,2207-00126,0.00,18.00,R,A NAMAKI,No
Http://opendatacommunities.org/id/metropolitan-district-council/leeds,Leeds City Council,31/07/2022,Communities Housing and Environment,Customer Access,Supplies and Services,Bought In Professional Services,277,20/07/2022,2207-00127,0.00,81.00,R,A NAMAKI,No
Http://opendatacommunities.org/id/metropolitan-district-council/leeds,Leeds City Council,31/07/2022,Communities Housing and Environment,Customer Access,Supplies and Services,Bought In Professional Services,277,20/07/2022,2207-00128,0.00,18.00,R,A NAMAKI,No
Http://opendatacommunities.org/id/metropolitan-district-council/leeds,Leeds City Council,31/07/2022,Communities Housing and Environment,Customer Access,Supplies and Services,Bought In Professional Services,277,20/07/2022,2207-00129,0.00,18.00,R,A NAMAKI,No
Http://opendatacommunities.org/id/metropolitan-district-council/leeds,Leeds City Council,31/07/2022,Communities Housing and Environment,Customer Access,Supplies and Services,Bought In Professional Services,277,20/07/2022,2207-00130,0.00,81.00,R,A NAMAKI,No
Http://opendatacommunities.org/id/metropolitan-district-council/leeds,Leeds City Council,31/07/2022,Communities Housing and Environment,Customer Access,Supplies and Services,Bought In Professional Services,277,20/07/2022,2207-00131,0.00,18.00,R,A NAMAKI,No
Http://opendatacommunities.org/id/metropolitan-district-council/leeds,Leeds City Council,31/07/2022,Communities Housing and Environment,Customer Access,Supplies and Services,Bought In Professional Services,277,27/07/2022,2207-00132,0.00,18.00,R,A NAMAKI,No
Http://opendatacommunities.org/id/metropolitan-district-council/leeds,Leeds City Council,31/07/2022,Communities Housing and Environment,Customer Access,Supplies and Services,Bought In Professional Services,277,27/07/2022,2207-00133,0.00,81.00,R,A NAMAKI,No
Http://opendatacommunities.org/id/metropolitan-district-council/leeds,Leeds City Council,31/07/2022,Communities Housing and Environment,Customer Access,Supplies and Services,Bought In Professional Services,277,27/07/2022,2207-00134,0.00,27.00,R,A NAMAKI,No
Http://opendatacommunities.org/id/metropolitan-district-council/leeds,Leeds City Council,31/07/2022,Communities Housing and Environment,Customer Access,Supplies and Services,Bought In Professional Services,277,27/07/2022,2207-00135,0.00,126.00,R,A NAMAKI,No
Http://opendatacommunities.org/id/metropolitan-district-council/leeds,Leeds City Council,31/07/2022,Children and Families,Social Care,Agency Payments,Services Rendered By Other Organisations,511,01/07/2022,2207-00136,0.00,372.84,R,REDACTED PERSONAL DATA,No
Http://opendatacommunities.org/id/metropolitan-district-council/leeds,Leeds City Council,31/07/2022,Strategic Landlord,HRA Housing Leeds,Capital,OTHER COSTS,7,05/07/2022,2207-00137,0.00,80.00,C,REDACTED PERSONAL DATA,No
Http://opendatacommunities.org/id/metropolitan-district-council/leeds,Leeds City Council,31/07/2022,City Development,Libraries Arts & Heritage,Supplies and Services,Non-Recurring Grants,227,13/07/2022,2207-00138,0.00,1000.00,R,A Quiet Word Ltd,No
Http://opendatacommunities.org/id/metropolitan-district-council/leeds,Leeds City Council,31/07/2022,Strategic Landlord,HRA Housing Leeds,Capital,OTHER COSTS,7,21/07/2022,2207-00139,0.00,100.00,C,REDACTED PERSONAL DATA,No
Http://opendatacommunities.org/id/metropolitan-district-council/leeds,Leeds City Council,31/07/2022,Resources,Commercial Services,Supplies and Services,Other Hired And Contracted Services,265,08/07/2022,2207-00140,0.00,140.80,R,REDACTED PERSONAL DATA,No
Http://opendatacommunities.org/id/metropolitan-district-council/leeds,Leeds City Council,31/07/2022,Children and Families,Social Care,Agency Payments,Services Rendered By Other Organisations,511,01/07/2022,2207-00141,0.00,372.84,R,REDACTED PERSONAL DATA,No
Http://opendatacommunities.org/id/metropolitan-district-council/leeds,Leeds City Council,31/07/2022,Children and Families,Social Care,Agency Payments,Placement Support,550,27/07/2022,2207-00142,0.00,1039.50,R,A Strevett-Smith,No
Http://opendatacommunities.org/id/metropolitan-district-council/leeds,Leeds City Council,31/07/2022,Communities Housing and Environment,Waste Management,Employees,Training & Development,70,08/07/2022,2207-00143,0.00,144.80,R,A T Nerac Ltd,No
Http://opendatacommunities.org/id/metropolitan-district-council/leeds,Leeds City Council,31/07/2022,Communities Housing and Environment,Waste Management,Employees,Training & Development,70,15/07/2022,2207-00144,0.00,386.50,R,A T Nerac Ltd,No
Http://opendatacommunities.org/id/metropolitan-district-council/leeds,Leeds City Council,31/07/2022,Communities Housing and Environment,Waste Management,Employees,Training & Development,70,15/07/2022,2207-00145,0.00,238.55,R,A T Nerac Ltd,No
Http://opendatacommunities.org/id/metropolitan-district-council/leeds,Leeds City Council,31/07/2022,Children and Families,Social Care,Agency Payments,Independent Fostering Agencies,509,07/07/2022,2207-00146,0.00,1368.00,R,A Taxis,No
Http://opendatacommunities.org/id/metropolitan-district-council/leeds,Leeds City Council,31/07/2022,Children and Families,Social Care,Agency Payments,Services Rendered By Other Organisations,511,01/07/2022,2207-00147,0.00,372.84,R,REDACTED PERSONAL DATA,No
Http://opendatacommunities.org/id/metropolitan-district-council/leeds,Leeds City Council,31/07/2022,Children and Families,Social Care,Agency Payments,Services Rendered By Other Organisations,511,01/07/2022,2207-00148,0.00,186.42,R,REDACTED PERSONAL DATA,No
Http://opendatacommunities.org/id/metropolitan-district-council/leeds,Leeds City Council,31/07/2022,Children and Families,Social Care,Agency Payments,Independent Fostering Agencies,509,08/07/2022,2207-00149,0.00,7771.44,R,A Wilderness Way Ltd,No
Http://opendatacommunities.org/id/metropolitan-district-council/leeds,Leeds City Council,31/07/2022,Children and Families,Social Care,Agency Payments,Independent Fostering Agencies,509,08/07/2022,2207-00150,0.00,-59082.90,R,A Wilderness Way Ltd,No
Http://opendatacommunities.org/id/metropolitan-district-council/leeds,Leeds City Council,31/07/2022,Children and Families,Social Care,Agency Payments,Independent Fostering Agencies,509,08/07/2022,2207-00151,0.00,60228.66,R,A Wilderness Way Ltd,No
Http://opendatacommunities.org/id/metropolitan-district-council/leeds,Leeds City Council,31/07/2022,Children and Families,Social Care,Agency Payments,Independent Fostering Agencies,509,29/07/2022,2207-00152,0.00,58285.80,R,A Wilderness Way Ltd,No
Http://opendatacommunities.org/id/metropolitan-district-council/leeds,Leeds City Council,31/07/2022,Communities Housing and Environment,Waste Management,Supplies and Services,Office Consumables,210,13/07/2022,2207-00153,0.00,295.00,R,A&C Weber Uk Ltd,No
Http://opendatacommunities.org/id/metropolitan-district-council/leeds,Leeds City Council,31/07/2022,Communities Housing and Environment,Waste Management,Capital,FURNITURE AND EQUIPMENT,5,13/07/2022,2207-00154,0.00,18366.00,C,A&C Weber Uk Ltd,No
Http://opendatacommunities.org/id/metropolitan-district-council/leeds,Leeds City Council,31/07/2022,Resources,Leeds Building Services,Supplies and Services,Other Hired And Contracted Services,265,27/07/2022,2207-00155,0.00,7170.75,R,A1 Access Lifts Ltd,No
Http://opendatacommunities.org/id/metropolitan-district-council/leeds,Leeds City Council,31/07/2022,Resources,Leeds Building Services,Supplies and Services,Other Hired And Contracted Services,265,08/07/2022,2207-00156,0.00,1563.00,R,A1 STAIR LIFT SERVICES,No
Http://opendatacommunities.org/id/metropolitan-district-council/leeds,Leeds City Council,31/07/2022,Resources,Leeds Building Services,Supplies and Services,Operational Materials,205,18/07/2022,2207-00157,0.00,1120.00,R,A1 STAIR LIFT SERVICES,No
Http://opendatacommunities.org/id/metropolitan-district-council/leeds,Leeds City Council,31/07/2022,Resources,Leeds Building Services,Supplies and Services,Other Hired And Contracted Services,265,18/07/2022,2207-00158,0.00,2168.00,R,A1 STAIR LIFT SERVICES,No
Http://opendatacommunities.org/id/metropolitan-district-council/leeds,Leeds City Council,31/07/2022,Resources,Leeds Building Services,Supplies and Services,Operational Materials,205,20/07/2022,2207-00159,0.00,1175.00,R,A1 STAIR LIFT SERVICES,No
Http://opendatacommunities.org/id/metropolitan-district-council/leeds,Leeds City Council,31/07/2022,City Development,Libraries Arts & Heritage,Supplies and Services,Other Hired And Contracted Services,265,20/07/2022,2207-00160,0.00,195.00,R,A1 STAIR LIFT SERVICES,No
Http://opendatacommunities.org/id/metropolitan-district-council/leeds,Leeds City Council,31/07/2022,Resources,Leeds Building Services,Supplies and Services,Other Hired And Contracted Services,265,22/07/2022,2207-00161,0.00,1643.49,R,A1 STAIR LIFT SERVICES,No
Http://opendatacommunities.org/id/metropolitan-district-council/leeds,Leeds City Council,31/07/2022,Resources,Leeds Building Services,Supplies and Services,Other Hired And Contracted Services,265,22/07/2022,2207-00162,0.00,2430.71,R,A1 STAIR LIFT SERVICES,No
Http://opendatacommunities.org/id/metropolitan-district-council/leeds,Leeds City Council,31/07/2022,Communities Housing and Environment,Parks and Countryside,Supplies and Services,Resaleable Materials,204,08/06/2022,2207-00163,0.00,132.60,R,Aagrah Foods,Yes
Http://opendatacommunities.org/id/metropolitan-district-council/leeds,Leeds City Council,31/07/2022,Children and Families,Social Care,Agency Payments,Contact,548,21/07/2022,2207-00164,0.00,28.40,R,REDACTED PERSONAL DATA,No
Http://opendatacommunities.org/id/metropolitan-district-council/leeds,Leeds City Council,31/07/2022,Adults and Health,Services For Older People - 65 And Over,Agency Payments,Residential Care Dementia,571,20/07/2022,2207-00165,0.00,6268.50,R,Aaron Court Care Home,No
Http://opendatacommunities.org/id/metropolitan-district-council/leeds,Leeds City Council as Accountable Body,31/07/2022,Social Services Pooled Budgets,Jcs For People With Learning Disabilitie,Supplies and Services,Other Equipment,203,07/07/2022,2207-00166,0.00,1060.00,R,AAT (GB) LTD,No
Http://opendatacommunities.org/id/metropolitan-district-council/leeds,Leeds City Council as Accountable Body,31/07/2022,Social Services Pooled Budgets,Jcs For People With Learning Disabilitie,Agency Payments,Residential,580,20/07/2022,2207-00167,0.00,11720.20,R,Abbey Care And Education,No
Http://opendatacommunities.org/id/metropolitan-district-council/leeds,Leeds City Council,31/07/2022,Children and Families,Learning,Supplies and Services,Other Hired And Contracted Services,265,20/07/2022,2207-00168,0.00,2100.00,R,Abbey Multi Academy Trust,No
Http://opendatacommunities.org/id/metropolitan-district-council/leeds,Leeds City Council,31/07/2022,Children and Families,Learning Places,Capital,FURNITURE AND EQUIPMENT,5,22/07/2022,2207-00169,0.00,12214.75,C,Abbey Multi Academy Trust,No
Http://opendatacommunities.org/id/metropolitan-district-council/leeds,Leeds City Council,31/07/2022,Children and Families,Learning,Supplies and Services,Other Hired And Contracted Services,265,29/07/2022,2207-00170,0.00,50.00,R,Abbey Multi Academy Trust,No
Http://opendatacommunities.org/id/metropolitan-district-council/leeds,Leeds City Council,31/07/2022,Children and Families,Social Care,Supplies and Services,Food & Drink,231,29/07/2022,2207-00171,0.00,24.00,R,Abbey Multi Academy Trust,No
Http://opendatacommunities.org/id/metropolitan-district-council/leeds,Leeds City Council,31/07/2022,Resources,Commercial Services,Supplies and Services,Subsistence,256,22/06/2022,2207-00172,0.00,82.99,R,Abbeyfield,Yes
Http://opendatacommunities.org/id/metropolitan-district-council/leeds,Leeds City Council,31/07/2022,Resources,Commercial Services,Supplies and Services,Subsistence,256,22/06/2022,2207-00173,0.00,82.99,R,Abbeyfield,Yes
Http://opendatacommunities.org/id/metropolitan-district-council/leeds,Leeds City Council,31/07/2022,Children and Families,Social Care,Agency Payments,Services Rendered By Other Organisations,511,01/07/2022,2207-00174,0.00,699.08,R,REDACTED PERSONAL DATA,No
Http://opendatacommunities.org/id/metropolitan-district-council/leeds,Leeds City Council,31/07/2022,Children and Families,Social Care,Agency Payments,Services Rendered By Other Organisations,511,06/07/2022,2207-00175,0.00,271.54,R,REDACTED PERSONAL DATA,No
Http://opendatacommunities.org/id/metropolitan-district-council/leeds,Leeds City Council,31/07/2022,Children and Families,Social Care,Internal Recharges,Legal Disbursements,411,15/07/2022,2207-00176,0.00,95.00,R,Abbott Toxicology Ltd.,No
Http://opendatacommunities.org/id/metropolitan-district-council/leeds,Leeds City Council,31/07/2022,Children and Families,Social Care,Internal Recharges,Legal Disbursements,411,29/07/2022,2207-00177,0.00,248.00,R,Abbott Toxicology Ltd.,No
Http://opendatacommunities.org/id/metropolitan-district-council/leeds,Leeds City Council,31/07/2022,Communities Housing and Environment,Parks and Countryside,Supplies and Services,Other Hired And Contracted Services,265,07/07/2022,2207-00178,0.00,1800.00,R,Abbotts Memorials,No
Http://opendatacommunities.org/id/metropolitan-district-council/leeds,Leeds City Council,31/07/2022,Children and Families,Social Care,Agency Payments,General External Residential Placements,507,07/07/2022,2207-00179,0.00,15274.42,R,ABC Care and Educationd LTD,No
Http://opendatacommunities.org/id/metropolitan-district-council/leeds,Leeds City Council,31/07/2022,Children and Families,Social Care,Agency Payments,Services Rendered By Other Organisations,511,01/07/2022,2207-00180,0.00,9507.42,R,ABC NURSERY AT LUFC,No
Http://opendatacommunities.org/id/metropolitan-district-council/leeds,Leeds City Council,31/07/2022,Children and Families,Social Care,Agency Payments,Services Rendered By Other Organisations,511,05/07/2022,2207-00181,0.00,3475.68,R,ABC NURSERY AT LUFC,No
Http://opendatacommunities.org/id/metropolitan-district-council/leeds,Leeds City Council,31/07/2022,Children and Families,Social Care,Agency Payments,Services Rendered By Voluntary Sector,505,06/07/2022,2207-00182,0.00,450.00,R,ABC NURSERY AT LUFC,No
Http://opendatacommunities.org/id/metropolitan-district-council/leeds,Leeds City Council,31/07/2022,Children and Families,Social Care,Agency Payments,Services Rendered By Other Organisations,511,01/07/2022,2207-00183,0.00,8202.48,R,Abc@D'S Childcare,No
Http://opendatacommunities.org/id/metropolitan-district-council/leeds,Leeds City Council,31/07/2022,Children and Families,Social Care,Agency Payments,Services Rendered By Other Organisations,511,06/07/2022,2207-00184,0.00,1303.38,R,Abc@D'S Childcare,No
Http://opendatacommunities.org/id/metropolitan-district-council/leeds,Leeds City Council,31/07/2022,Communities Housing and Environment,Customer Access,Supplies and Services,Bought In Professional Services,277,07/07/2022,2207-00185,0.00,12.00,R,Abdiqafar Abdullahi,No
Http://opendatacommunities.org/id/metropolitan-district-council/leeds,Leeds City Council,31/07/2022,Communities Housing and Environment,Customer Access,Supplies and Services,Bought In Professional Services,277,13/07/2022,2207-00186,0.00,22.50,R,Abdiqafar Abdullahi,No
Http://opendatacommunities.org/id/metropolitan-district-council/leeds,Leeds City Council,31/07/2022,Communities Housing and Environment,Customer Access,Supplies and Services,Bought In Professional Services,277,20/07/2022,2207-00187,0.00,13.50,R,Abdiqafar Abdullahi,No
Http://opendatacommunities.org/id/metropolitan-district-council/leeds,Leeds City Council,31/07/2022,Communities Housing and Environment,Customer Access,Supplies and Services,Bought In Professional Services,277,20/07/2022,2207-00188,0.00,13.50,R,Abdiqafar Abdullahi,No
Http://opendatacommunities.org/id/metropolitan-district-council/leeds,Leeds City Council,31/07/2022,Communities Housing and Environment,Communities,Supplies and Services,Other Hired And Contracted Services,265,12/07/2022,2207-00189,0.00,400.00,R,REDACTED PERSONAL DATA,No
Http://opendatacommunities.org/id/metropolitan-district-council/leeds,Leeds City Council,31/07/2022,Communities Housing and Environment,Customer Access,Supplies and Services,Bought In Professional Services,277,07/07/2022,2207-00190,0.00,31.50,R,Abdulahad Denha,No
Http://opendatacommunities.org/id/metropolitan-district-council/leeds,Leeds City Council,31/07/2022,Communities Housing and Environment,Customer Access,Supplies and Services,Bought In Professional Services,277,07/07/2022,2207-00191,0.00,18.00,R,Abdulahad Denha,No
Http://opendatacommunities.org/id/metropolitan-district-council/leeds,Leeds City Council,31/07/2022,Communities Housing and Environment,Customer Access,Supplies and Services,Bought In Professional Services,277,07/07/2022,2207-00192,0.00,18.00,R,Abdulahad Denha,No
Http://opendatacommunities.org/id/metropolitan-district-council/leeds,Leeds City Council,31/07/2022,Communities Housing and Environment,Customer Access,Supplies and Services,Bought In Professional Services,277,20/07/2022,2207-00193,0.00,18.00,R,Abdulahad Denha,No
Http://opendatacommunities.org/id/metropolitan-district-council/leeds,Leeds City Council,31/07/2022,Communities Housing and Environment,Customer Access,Supplies and Services,Bought In Professional Services,277,27/07/2022,2207-00194,0.00,18.00,R,Abdulrahim Dastyar,No
Http://opendatacommunities.org/id/metropolitan-district-council/leeds,Leeds City Council,31/07/2022,Children and Families,Social Care,Agency Payments,Placement Support,550,14/07/2022,2207-00195,0.00,550.00,R,Aberford Childcare Services,No
Http://opendatacommunities.org/id/metropolitan-district-council/leeds,Leeds City Council,31/07/2022,Children and Families,Social Care,Agency Payments,Placement Support,550,26/07/2022,2207-00196,0.00,750.00,R,Aberford Childcare Services,No
Http://opendatacommunities.org/id/metropolitan-district-council/leeds,Leeds City Council,31/07/2022,Adults and Health,Services For Older People - 65 And Over,Agency Payments,Nursing Home,570,20/07/2022,2207-00197,0.00,38027.56,R,Aberford Hall,No
Http://opendatacommunities.org/id/metropolitan-district-council/leeds,Leeds City Council,31/07/2022,Adults and Health,Services For Older People - 65 And Over,Agency Payments,Nursing Care Dementia,574,20/07/2022,2207-00198,0.00,2752.00,R,Aberford Hall,No
Http://opendatacommunities.org/id/metropolitan-district-council/leeds,Leeds City Council,31/07/2022,Adults and Health,Services For Older People Under 65 P/Dis,Agency Payments,Nursing Home,570,20/07/2022,2207-00199,0.00,2285.80,R,Aberford Hall,No
Http://opendatacommunities.org/id/metropolitan-district-council/leeds,Leeds City Council,31/07/2022,Resources,Leeds Building Services,Supplies and Services,Operational Materials,205,18/07/2022,2207-00200,0.00,363.22,R,ABI GARAGE DOORS LTD,No
Http://opendatacommunities.org/id/metropolitan-district-council/leeds,Leeds City Council,31/07/2022,Resources,Leeds Building Services,Supplies and Services,Operational Materials,205,27/07/2022,2207-00201,0.00,32.00,R,ABI GARAGE DOORS LTD,No
Http://opendatacommunities.org/id/metropolitan-district-council/leeds,Leeds City Council,31/07/2022,Communities Housing and Environment,Customer Access,Supplies and Services,Bought In Professional Services,277,07/07/2022,2207-00202,0.00,9.00,R,Abida Begum,No
Http://opendatacommunities.org/id/metropolitan-district-council/leeds,Leeds City Council,31/07/2022,Communities Housing and Environment,Customer Access,Supplies and Services,Bought In Professional Services,277,13/07/2022,2207-00203,0.00,12.30,R,Abida Begum,No
Http://opendatacommunities.org/id/metropolitan-district-council/leeds,Leeds City Council,31/07/2022,Communities Housing and Environment,Customer Access,Supplies and Services,Bought In Professional Services,277,27/07/2022,2207-00204,0.00,9.00,R,Abida Begum,No
Http://opendatacommunities.org/id/metropolitan-district-council/leeds,Leeds City Council,31/07/2022,Children and Families,Social Care,Agency Payments,Section 17,551,08/07/2022,2207-00205,0.00,200.00,R,REDACTED PERSONAL DATA,No
Http://opendatacommunities.org/id/metropolitan-district-council/leeds,Leeds City Council,31/07/2022,Children and Families,Social Care,Agency Payments, Direct Work,549,19/07/2022,2207-00206,0.00,5.50,R,REDACTED PERSONAL DATA,No
Http://opendatacommunities.org/id/metropolitan-district-council/leeds,Leeds City Council,31/07/2022,Children and Families,Social Care,Agency Payments,Placement Support,550,04/07/2022,2207-00207,0.00,20.00,R,REDACTED PERSONAL DATA,No
Http://opendatacommunities.org/id/metropolitan-district-council/leeds,Leeds City Council,31/07/2022,Children and Families,Social Care,Agency Payments,General External Residential Placements,507,28/07/2022,2207-00208,0.00,17121.30,R,Absolute Children's Services Ltd,No
Http://opendatacommunities.org/id/metropolitan-district-council/leeds,Leeds City Council,31/07/2022,Adults and Health,Services For Adults Under 65 Mental/Dis,Agency Payments,Fees - Level 4,520,07/07/2022,2207-00209,0.00,175.00,R,Abubaker Denja Mohammed,No
Http://opendatacommunities.org/id/metropolitan-district-council/leeds,Leeds City Council,31/07/2022,Adults and Health,Services For Adults Under 65 Mental/Dis,Agency Payments,Fees - Level 4,520,19/07/2022,2207-00210,0.00,803.60,R,Abubaker Denja Mohammed,No
Http://opendatacommunities.org/id/metropolitan-district-council/leeds,Leeds City Council,31/07/2022,City Development,Economic Development,Supplies and Services,Subsistence,256,31/05/2022,2207-00211,0.00,7.43,R,Accente Restaurant Servic,Yes
Http://opendatacommunities.org/id/metropolitan-district-council/leeds,Leeds City Council,31/07/2022,Resources,Commercial Services,Supplies and Services,Operational Materials,205,17/06/2022,2207-00212,0.00,2256.20,R,Access Locksmiths,Yes
Http://opendatacommunities.org/id/metropolitan-district-council/leeds,Leeds City Council,31/07/2022,Resources,Commercial Services,Supplies and Services,Operational Materials,205,23/06/2022,2207-00213,0.00,1606.70,R,Access Locksmiths,Yes
Http://opendatacommunities.org/id/metropolitan-district-council/leeds,Leeds City Council,31/07/2022,Strategic Landlord,Property and Contracts,Premises,Maintenance Of Buildings,101,08/07/2022,2207-00214,0.00,790.30,R,ACCESS LOCKSMITHS (LEEDS) LIMITED,No
Http://opendatacommunities.org/id/metropolitan-district-council/leeds,Leeds City Council,31/07/2022,Strategic Landlord,Property and Contracts,Premises,General Maintenance,104,12/07/2022,2207-00215,0.00,160.29,R,ACCESS LOCKSMITHS (LEEDS) LIMITED,No
Http://opendatacommunities.org/id/metropolitan-district-council/leeds,Leeds City Council,31/07/2022,Strategic Landlord,Housing Management,Supplies and Services,Resaleable Materials,204,13/07/2022,2207-00216,0.00,79.50,R,ACCESS LOCKSMITHS (LEEDS) LIMITED,No
Http://opendatacommunities.org/id/metropolitan-district-council/leeds,Leeds City Council,31/07/2022,Strategic Landlord,Property and Contracts,Premises,General Maintenance,104,15/07/2022,2207-00217,0.00,110.00,R,ACCESS LOCKSMITHS (LEEDS) LIMITED,No
Http://opendatacommunities.org/id/metropolitan-district-council/leeds,Leeds City Council,31/07/2022,Resources,Leeds Building Services,Supplies and Services,Operational Materials,205,18/07/2022,2207-00218,0.00,4.50,R,ACCESS LOCKSMITHS (LEEDS) LIMITED,No
Http://opendatacommunities.org/id/metropolitan-district-council/leeds,Leeds City Council,31/07/2022,Resources,Leeds Building Services,Supplies and Services,Operational Materials,205,18/07/2022,2207-00219,0.00,171.04,R,ACCESS LOCKSMITHS (LEEDS) LIMITED,No
Http://opendatacommunities.org/id/metropolitan-district-council/leeds,Leeds City Council,31/07/2022,Resources,Leeds Building Services,Supplies and Services,Operational Materials,205,18/07/2022,2207-00220,0.00,28.64,R,ACCESS LOCKSMITHS (LEEDS) LIMITED,No
Http://opendatacommunities.org/id/metropolitan-district-council/leeds,Leeds City Council,31/07/2022,Resources,Leeds Building Services,Supplies and Services,Operational Materials,205,18/07/2022,2207-00221,0.00,16.90,R,ACCESS LOCKSMITHS (LEEDS) LIMITED,No
Http://opendatacommunities.org/id/metropolitan-district-council/leeds,Leeds City Council,31/07/2022,Resources,Leeds Building Services,Premises,Cleaning Maintenance & Toiletries,127,18/07/2022,2207-00222,0.00,34.70,R,ACCESS LOCKSMITHS (LEEDS) LIMITED,No
Http://opendatacommunities.org/id/metropolitan-district-council/leeds,Leeds City Council,31/07/2022,Strategic Landlord,Property and Contracts,Premises,General Maintenance,104,28/07/2022,2207-00223,0.00,589.00,R,ACCESS LOCKSMITHS (LEEDS) LIMITED,No
Http://opendatacommunities.org/id/metropolitan-district-council/leeds,Leeds City Council,31/07/2022,Strategic Landlord,Housing Management,Supplies and Services,Resaleable Materials,204,28/07/2022,2207-00224,0.00,23.04,R,ACCESS LOCKSMITHS (LEEDS) LIMITED,No
Http://opendatacommunities.org/id/metropolitan-district-council/leeds,Leeds City Council,31/07/2022,Strategic Landlord,HRA Housing Leeds,Capital,OTHER COSTS,7,28/07/2022,2207-00225,0.00,205.80,C,ACCESS LOCKSMITHS (LEEDS) LIMITED,No
Http://opendatacommunities.org/id/metropolitan-district-council/leeds,Leeds City Council,31/07/2022,Resources,Leeds Building Services,Supplies and Services,Operational Materials,205,28/07/2022,2207-00226,0.00,7.76,R,ACCESS LOCKSMITHS (LEEDS) LIMITED,No
Http://opendatacommunities.org/id/metropolitan-district-council/leeds,Leeds City Council,31/07/2022,Resources,Leeds Building Services,Supplies and Services,Operational Materials,205,28/07/2022,2207-00227,0.00,7.76,R,ACCESS LOCKSMITHS (LEEDS) LIMITED,No
Http://opendatacommunities.org/id/metropolitan-district-council/leeds,Leeds City Council,31/07/2022,Resources,Leeds Building Services,Supplies and Services,Operational Materials,205,28/07/2022,2207-00228,0.00,25.02,R,ACCESS LOCKSMITHS (LEEDS) LIMITED,No
Http://opendatacommunities.org/id/metropolitan-district-council/leeds,Leeds City Council,31/07/2022,Resources,Leeds Building Services,Supplies and Services,Operational Materials,205,28/07/2022,2207-00229,0.00,79.82,R,ACCESS LOCKSMITHS (LEEDS) LIMITED,No
Http://opendatacommunities.org/id/metropolitan-district-council/leeds,Leeds City Council,31/07/2022,Resources,Leeds Building Services,Supplies and Services,Operational Materials,205,28/07/2022,2207-00230,0.00,49.56,R,ACCESS LOCKSMITHS (LEEDS) LIMITED,No
Http://opendatacommunities.org/id/metropolitan-district-council/leeds,Leeds City Council,31/07/2022,Resources,Leeds Building Services,Supplies and Services,Operational Materials,205,28/07/2022,2207-00231,0.00,43.65,R,ACCESS LOCKSMITHS (LEEDS) LIMITED,No
Http://opendatacommunities.org/id/metropolitan-district-council/leeds,Leeds City Council,31/07/2022,Resources,Leeds Building Services,Supplies and Services,Operational Materials,205,28/07/2022,2207-00232,0.00,32.36,R,ACCESS LOCKSMITHS (LEEDS) LIMITED,No
Http://opendatacommunities.org/id/metropolitan-district-council/leeds,Leeds City Council,31/07/2022,Resources,Leeds Building Services,Supplies and Services,Operational Materials,205,28/07/2022,2207-00233,0.00,43.56,R,ACCESS LOCKSMITHS (LEEDS) LIMITED,No
Http://opendatacommunities.org/id/metropolitan-district-council/leeds,Leeds City Council,31/07/2022,Resources,Leeds Building Services,Supplies and Services,Operational Materials,205,29/07/2022,2207-00234,0.00,20.83,R,ACCESS LOCKSMITHS (LEEDS) LIMITED,No
Http://opendatacommunities.org/id/metropolitan-district-council/leeds,Leeds City Council,31/07/2022,City Development,Libraries Arts & Heritage,Supplies and Services,Bought In Professional Services,277,20/07/2022,2207-00235,0.00,2800.00,R,Accessible By Design Ltd,No
Http://opendatacommunities.org/id/metropolitan-district-council/leeds,Leeds City Council,31/07/2022,Insurance,Insurance,Supplies and Services,Insurance Claims,248,21/07/2022,2207-00236,0.00,1361.50,R,Accident Credit Group Ltd,No
Http://opendatacommunities.org/id/metropolitan-district-council/leeds,Leeds City Council,31/07/2022,Insurance,Insurance,Supplies and Services,Insurance Claims,248,04/07/2022,2207-00237,0.00,140.33,R,Accident Exchange Ltd,No
Http://opendatacommunities.org/id/metropolitan-district-council/leeds,Leeds City Council,31/07/2022,City Development,Recreation,Transport,External Hire -Occasional,304,08/07/2022,2207-00238,0.00,124.50,R,ACE CONTAINER SERVICES LIMITED,No
Http://opendatacommunities.org/id/metropolitan-district-council/leeds,Leeds City Council,31/07/2022,City Development,Recreation,Transport,External Hire -Occasional,304,29/07/2022,2207-00239,0.00,128.65,R,ACE CONTAINER SERVICES LIMITED,No
Http://opendatacommunities.org/id/metropolitan-district-council/leeds,Leeds City Council,31/07/2022,Resources,Commercial Services,Transport,Private Hire,360,06/07/2022,2207-00240,0.00,1520.00,R,Acorn Care & Education Ltd (Sales),No
Http://opendatacommunities.org/id/metropolitan-district-council/leeds,Leeds City Council,31/07/2022,Children and Families,Social Care,Agency Payments,General External Residential Placements,507,13/07/2022,2207-00241,0.00,23946.27,R,Acorn Care & Education Ltd (Sales),No
Http://opendatacommunities.org/id/metropolitan-district-council/leeds,Leeds City Council,31/07/2022,Children and Families,Learning,Agency Payments,SEN Placements,566,15/07/2022,2207-00242,0.00,19827.33,R,Acorn Care & Education Ltd (Sales),No
Http://opendatacommunities.org/id/metropolitan-district-council/leeds,Leeds City Council,31/07/2022,Children and Families,Learning,Agency Payments,SEN Placements,566,15/07/2022,2207-00243,0.00,19213.33,R,Acorn Care & Education Ltd (Sales),No
Http://opendatacommunities.org/id/metropolitan-district-council/leeds,Leeds City Council,31/07/2022,Children and Families,Learning,Agency Payments,SEN Placements,566,15/07/2022,2207-00244,0.00,15903.00,R,Acorn Care & Education Ltd (Sales),No
Http://opendatacommunities.org/id/metropolitan-district-council/leeds,Leeds City Council,31/07/2022,Children and Families,Learning,Agency Payments,SEN Placements,566,29/07/2022,2207-00245,0.00,58000.00,R,Acorn Care & Education Ltd (Sales),No
Http://opendatacommunities.org/id/metropolitan-district-council/leeds,Leeds City Council,31/07/2022,Children and Families,Social Care,Agency Payments,General External Residential Placements,507,29/07/2022,2207-00246,0.00,16692.86,R,Acorn Care & Education Ltd (Sales),No
Http://opendatacommunities.org/id/metropolitan-district-council/leeds,Leeds City Council,31/07/2022,Children and Families,Learning,Agency Payments,SEN Placements,566,29/07/2022,2207-00247,0.00,-6981.80,R,Acorn Care & Education Ltd (Sales),No
Http://opendatacommunities.org/id/metropolitan-district-council/leeds,Leeds City Council,31/07/2022,Children and Families,Social Care,Agency Payments,Services Rendered By Other Organisations,511,01/07/2022,2207-00248,0.00,7571.52,R,ACORNS NURSERY,No
Http://opendatacommunities.org/id/metropolitan-district-council/leeds,Leeds City Council,31/07/2022,Children and Families,Social Care,Agency Payments,Services Rendered By Other Organisations,511,06/07/2022,2207-00249,0.00,401.04,R,ACORNS NURSERY,No
Http://opendatacommunities.org/id/metropolitan-district-council/leeds,Leeds City Council,31/07/2022,Adults and Health,Services For Older People - 65 And Over,Agency Payments,Nursing Home,570,20/07/2022,2207-00250,0.00,37768.26,R,Acre Green,No
Http://opendatacommunities.org/id/metropolitan-district-council/leeds,Leeds City Council,31/07/2022,Adults and Health,Services For Older People - 65 And Over,Agency Payments,Residential,580,20/07/2022,2207-00251,0.00,4180.20,R,Acre Green,No
Http://opendatacommunities.org/id/metropolitan-district-council/leeds,Leeds City Council,31/07/2022,Adults and Health,Services For Older People Under 65 P/Dis,Agency Payments,Nursing Home,570,20/07/2022,2207-00252,0.00,2197.20,R,Acre Green,No
Http://opendatacommunities.org/id/metropolitan-district-council/leeds,Leeds City Council,31/07/2022,Adults and Health,Services For Older People Under 65 P/Dis,Agency Payments,Residential,580,20/07/2022,2207-00253,0.00,1892.20,R,Acre Green,No
Http://opendatacommunities.org/id/metropolitan-district-council/leeds,Leeds City Council,31/07/2022,Children and Families,Social Care,Agency Payments,Services Rendered By Other Organisations,511,01/07/2022,2207-00254,0.00,10625.94,R,Acre Wood Day Nursery,No
Http://opendatacommunities.org/id/metropolitan-district-council/leeds,Leeds City Council,31/07/2022,Children and Families,Social Care,Agency Payments,Services Rendered By Other Organisations,511,06/07/2022,2207-00255,0.00,1955.07,R,Acre Wood Day Nursery,No
Http://opendatacommunities.org/id/metropolitan-district-council/leeds,Leeds City Council,31/07/2022,Resources,Leeds Building Services,Supplies and Services,Other Hired And Contracted Services,265,24/06/2022,2207-00256,0.00,52.45,R,Act Health And Safety,Yes
Http://opendatacommunities.org/id/metropolitan-district-council/leeds,Leeds City Council,31/07/2022,City Development,Recreation,Employees,Tuition & Course Fees,73,21/06/2022,2207-00257,0.00,66.00,R,Act*jane Tomlinsons R,Yes
Http://opendatacommunities.org/id/metropolitan-district-council/leeds,Leeds City Council,31/07/2022,Adults and Health,Services For Adults Under 65 Mental/Dis,Agency Payments,Home Care,568,22/07/2022,2207-00258,0.00,4000.00,R,Action First Assessments Ltd,No
Http://opendatacommunities.org/id/metropolitan-district-council/leeds,Leeds City Council as Accountable Body,31/07/2022,Social Services Pooled Budgets,Jcs For People With Learning Disabilitie,Agency Payments,Residential,580,20/07/2022,2207-00259,0.00,10702.60,R,Action For Care Contracts Limited,No
Http://opendatacommunities.org/id/metropolitan-district-council/leeds,Leeds City Council,31/07/2022,Children and Families,Social Care,Agency Payments,Independent Fostering Agencies,509,21/07/2022,2207-00260,0.00,4897.20,R,Action For Children Services Ltd,No
Http://opendatacommunities.org/id/metropolitan-district-council/leeds,Leeds City Council,31/07/2022,Children and Families,Social Care,Agency Payments,Independent Fostering Agencies,509,21/07/2022,2207-00261,0.00,5060.44,R,Action For Children Services Ltd,No
Http://opendatacommunities.org/id/metropolitan-district-council/leeds,Leeds City Council,31/07/2022,Adults and Health,Services For Older People - 65 And Over,Agency Payments,Payments To Voluntary Organisations,561,01/07/2022,2207-00262,0.00,45009.02,R,ACTION FOR GIPTON ELDERLY,No
Http://opendatacommunities.org/id/metropolitan-district-council/leeds,Leeds City Council,31/07/2022,Children and Families,Social Care,Agency Payments,Services Rendered By Other Organisations,511,01/07/2022,2207-00263,0.00,7705.36,R,ACTIVE KIDS YEADON LLP,No
Http://opendatacommunities.org/id/metropolitan-district-council/leeds,Leeds City Council,31/07/2022,Children and Families,Social Care,Agency Payments,Services Rendered By Other Organisations,511,06/07/2022,2207-00264,0.00,651.69,R,ACTIVE KIDS YEADON LLP,No
Http://opendatacommunities.org/id/metropolitan-district-council/leeds,Leeds City Council,31/07/2022,Communities Housing and Environment,Strategic Housing Partnership & Support,Supplies and Services,Other Hired And Contracted Services,265,01/06/2022,2207-00265,0.00,249.50,R,Active Leeds,Yes
Http://opendatacommunities.org/id/metropolitan-district-council/leeds,Leeds City Council,31/07/2022,Adults and Health,Services For Adults Under 65 Mental/Dis,Agency Payments,Sheltered Accommodation,569,20/07/2022,2207-00266,0.00,14943.04,R,Active Pathways,No
Http://opendatacommunities.org/id/metropolitan-district-council/leeds,Leeds City Council,31/07/2022,Adults and Health,Services For Older People - 65 And Over,Agency Payments,Sheltered Accommodation,569,20/07/2022,2207-00267,0.00,4154.84,R,Active Pathways,No
Http://opendatacommunities.org/id/metropolitan-district-council/leeds,Leeds City Council as Accountable Body,31/07/2022,Social Services Pooled Budgets,Jcs For People With Learning Disabilitie,Agency Payments,Sheltered Accommodation,569,20/07/2022,2207-00268,0.00,12452.52,R,Active Pathways,No
Http://opendatacommunities.org/id/metropolitan-district-council/leeds,Leeds City Council,31/07/2022,Children and Families,Social Care,Supplies and Services,Clothing & Uniforms,241,27/06/2022,2207-00269,0.00,28.08,R,Activewear Brands,Yes
Http://opendatacommunities.org/id/metropolitan-district-council/leeds,Leeds City Council,31/07/2022,Children and Families,Social Care,Supplies and Services,Clothing & Uniforms,241,27/06/2022,2207-00270,0.00,45.37,R,Activewear Brands,Yes
Http://opendatacommunities.org/id/metropolitan-district-council/leeds,Leeds City Council,31/07/2022,Children and Families,Social Care,Supplies and Services,Clothing & Uniforms,241,27/06/2022,2207-00271,0.00,27.00,R,Activewear Brands,Yes
Http://opendatacommunities.org/id/metropolitan-district-council/leeds,Leeds City Council,31/07/2022,Communities Housing and Environment,Waste Management,Supplies and Services,Waste Disposal Charges,236,06/07/2022,2207-00272,0.00,275.00,R,Acumen Waste Services Ltd,No
Http://opendatacommunities.org/id/metropolitan-district-council/leeds,Leeds City Council,31/07/2022,Communities Housing and Environment,Waste Management,Supplies and Services,Waste Disposal Charges,236,08/07/2022,2207-00273,0.00,862.70,R,Acumen Waste Services Ltd,No
Http://opendatacommunities.org/id/metropolitan-district-council/leeds,Leeds City Council,31/07/2022,Communities Housing and Environment,Waste Management,Supplies and Services,Recycling & Reuse Charges,234,08/07/2022,2207-00274,0.00,1019.52,R,Acumen Waste Services Ltd,No
Http://opendatacommunities.org/id/metropolitan-district-council/leeds,Leeds City Council,31/07/2022,Communities Housing and Environment,Waste Management,Supplies and Services,Recycling & Reuse Charges,234,13/07/2022,2207-00275,0.00,3714.48,R,Acumen Waste Services Ltd,No
Http://opendatacommunities.org/id/metropolitan-district-council/leeds,Leeds City Council,31/07/2022,Communities Housing and Environment,Waste Management,Supplies and Services,Recycling & Reuse Charges,234,13/07/2022,2207-00276,0.00,1012.32,R,Acumen Waste Services Ltd,No
Http://opendatacommunities.org/id/metropolitan-district-council/leeds,Leeds City Council,31/07/2022,Communities Housing and Environment,Waste Management,Supplies and Services,Recycling & Reuse Charges,234,13/07/2022,2207-00277,0.00,1000.08,R,Acumen Waste Services Ltd,No
Http://opendatacommunities.org/id/metropolitan-district-council/leeds,Leeds City Council,31/07/2022,Communities Housing and Environment,Waste Management,Supplies and Services,Recycling & Reuse Charges,234,13/07/2022,2207-00278,0.00,979.20,R,Acumen Waste Services Ltd,No
Http://opendatacommunities.org/id/metropolitan-district-council/leeds,Leeds City Council,31/07/2022,Communities Housing and Environment,Waste Management,Supplies and Services,Recycling & Reuse Charges,234,13/07/2022,2207-00279,0.00,931.68,R,Acumen Waste Services Ltd,No
Http://opendatacommunities.org/id/metropolitan-district-council/leeds,Leeds City Council,31/07/2022,Communities Housing and Environment,Waste Management,Supplies and Services,Waste Disposal Charges,236,14/07/2022,2207-00280,0.00,1270.65,R,Acumen Waste Services Ltd,No
Http://opendatacommunities.org/id/metropolitan-district-council/leeds,Leeds City Council,31/07/2022,Communities Housing and Environment,Waste Management,Supplies and Services,Recycling & Reuse Charges,234,14/07/2022,2207-00281,0.00,1005.84,R,Acumen Waste Services Ltd,No
Http://opendatacommunities.org/id/metropolitan-district-council/leeds,Leeds City Council,31/07/2022,Communities Housing and Environment,Waste Management,Supplies and Services,Waste Disposal Charges,236,15/07/2022,2207-00282,0.00,1725.00,R,Acumen Waste Services Ltd,No
Http://opendatacommunities.org/id/metropolitan-district-council/leeds,Leeds City Council,31/07/2022,Communities Housing and Environment,Waste Management,Supplies and Services,Waste Disposal Charges,236,15/07/2022,2207-00283,0.00,712.30,R,Acumen Waste Services Ltd,No
Http://opendatacommunities.org/id/metropolitan-district-council/leeds,Leeds City Council,31/07/2022,Communities Housing and Environment,Waste Management,Supplies and Services,Waste Disposal Charges,236,15/07/2022,2207-00284,0.00,831.05,R,Acumen Waste Services Ltd,No
Http://opendatacommunities.org/id/metropolitan-district-council/leeds,Leeds City Council,31/07/2022,Communities Housing and Environment,Waste Management,Supplies and Services,Recycling & Reuse Charges,234,15/07/2022,2207-00285,0.00,1004.40,R,Acumen Waste Services Ltd,No
Http://opendatacommunities.org/id/metropolitan-district-council/leeds,Leeds City Council,31/07/2022,Communities Housing and Environment,Waste Management,Supplies and Services,Recycling & Reuse Charges,234,15/07/2022,2207-00286,0.00,1010.88,R,Acumen Waste Services Ltd,No
Http://opendatacommunities.org/id/metropolitan-district-council/leeds,Leeds City Council,31/07/2022,Communities Housing and Environment,Waste Management,Supplies and Services,Recycling & Reuse Charges,234,15/07/2022,2207-00287,0.00,999.36,R,Acumen Waste Services Ltd,No
Http://opendatacommunities.org/id/metropolitan-district-council/leeds,Leeds City Council,31/07/2022,Communities Housing and Environment,Waste Management,Supplies and Services,Recycling & Reuse Charges,234,15/07/2022,2207-00288,0.00,982.80,R,Acumen Waste Services Ltd,No
Http://opendatacommunities.org/id/metropolitan-district-council/leeds,Leeds City Council,31/07/2022,Communities Housing and Environment,Waste Management,Supplies and Services,Recycling & Reuse Charges,234,15/07/2022,2207-00289,0.00,897.84,R,Acumen Waste Services Ltd,No
Http://opendatacommunities.org/id/metropolitan-district-council/leeds,Leeds City Council,31/07/2022,Communities Housing and Environment,Waste Management,Supplies and Services,Recycling & Reuse Charges,234,15/07/2022,2207-00290,0.00,1003.68,R,Acumen Waste Services Ltd,No
Http://opendatacommunities.org/id/metropolitan-district-council/leeds,Leeds City Council,31/07/2022,Communities Housing and Environment,Waste Management,Supplies and Services,Recycling & Reuse Charges,234,20/07/2022,2207-00291,0.00,993.60,R,Acumen Waste Services Ltd,No
Http://opendatacommunities.org/id/metropolitan-district-council/leeds,Leeds City Council,31/07/2022,Communities Housing and Environment,Waste Management,Supplies and Services,Recycling & Reuse Charges,234,20/07/2022,2207-00292,0.00,1011.60,R,Acumen Waste Services Ltd,No
Http://opendatacommunities.org/id/metropolitan-district-council/leeds,Leeds City Council,31/07/2022,Communities Housing and Environment,Waste Management,Supplies and Services,Recycling & Reuse Charges,234,22/07/2022,2207-00293,0.00,990.00,R,Acumen Waste Services Ltd,No
Http://opendatacommunities.org/id/metropolitan-district-council/leeds,Leeds City Council,31/07/2022,Communities Housing and Environment,Waste Management,Supplies and Services,Waste Disposal Charges,236,22/07/2022,2207-00294,0.00,983.30,R,Acumen Waste Services Ltd,No
Http://opendatacommunities.org/id/metropolitan-district-council/leeds,Leeds City Council,31/07/2022,Communities Housing and Environment,Waste Management,Supplies and Services,Waste Disposal Charges,236,22/07/2022,2207-00295,0.00,1096.85,R,Acumen Waste Services Ltd,No
Http://opendatacommunities.org/id/metropolitan-district-council/leeds,Leeds City Council,31/07/2022,Communities Housing and Environment,Waste Management,Supplies and Services,Recycling & Reuse Charges,234,22/07/2022,2207-00296,0.00,959.04,R,Acumen Waste Services Ltd,No
Http://opendatacommunities.org/id/metropolitan-district-council/leeds,Leeds City Council,31/07/2022,Communities Housing and Environment,Waste Management,Supplies and Services,Recycling & Reuse Charges,234,22/07/2022,2207-00297,0.00,990.00,R,Acumen Waste Services Ltd,No
Http://opendatacommunities.org/id/metropolitan-district-council/leeds,Leeds City Council,31/07/2022,Communities Housing and Environment,Waste Management,Supplies and Services,Recycling & Reuse Charges,234,28/07/2022,2207-00298,0.00,1023.12,R,Acumen Waste Services Ltd,No
Http://opendatacommunities.org/id/metropolitan-district-council/leeds,Leeds City Council,31/07/2022,Communities Housing and Environment,Waste Management,Supplies and Services,Recycling & Reuse Charges,234,28/07/2022,2207-00299,0.00,1000.08,R,Acumen Waste Services Ltd,No
Http://opendatacommunities.org/id/metropolitan-district-council/leeds,Leeds City Council,31/07/2022,Communities Housing and Environment,Waste Management,Supplies and Services,Recycling & Reuse Charges,234,28/07/2022,2207-00300,0.00,990.72,R,Acumen Waste Services Ltd,No
Http://opendatacommunities.org/id/metropolitan-district-council/leeds,Leeds City Council,31/07/2022,Communities Housing and Environment,Waste Management,Supplies and Services,Recycling & Reuse Charges,234,29/07/2022,2207-00301,0.00,1007.28,R,Acumen Waste Services Ltd,No
Http://opendatacommunities.org/id/metropolitan-district-council/leeds,Leeds City Council,31/07/2022,Communities Housing and Environment,Waste Management,Supplies and Services,Recycling & Reuse Charges,234,29/07/2022,2207-00302,0.00,1014.48,R,Acumen Waste Services Ltd,No
Http://opendatacommunities.org/id/metropolitan-district-council/leeds,Leeds City Council,31/07/2022,Resources,Shared Services,Supplies and Services,Other Hired And Contracted Services,265,01/07/2022,2207-00303,0.00,435.75,R,AD3 Envelope Printers Limited,No
Http://opendatacommunities.org/id/metropolitan-district-council/leeds,Leeds City Council,31/07/2022,Resources,Shared Services,Supplies and Services,Other Hired And Contracted Services,265,04/07/2022,2207-00304,0.00,406.25,R,AD3 Envelope Printers Limited,No
Http://opendatacommunities.org/id/metropolitan-district-council/leeds,Leeds City Council,31/07/2022,Resources,Shared Services,Supplies and Services,Operational Materials,205,08/07/2022,2207-00305,0.00,1260.00,R,AD3 Envelope Printers Limited,No
Http://opendatacommunities.org/id/metropolitan-district-council/leeds,Leeds City Council,31/07/2022,Resources,Shared Services,Supplies and Services,Other Hired And Contracted Services,265,08/07/2022,2207-00306,0.00,179.56,R,AD3 Envelope Printers Limited,No
Http://opendatacommunities.org/id/metropolitan-district-council/leeds,Leeds City Council,31/07/2022,Resources,Shared Services,Supplies and Services,Other Hired And Contracted Services,265,22/07/2022,2207-00307,0.00,830.75,R,AD3 Envelope Printers Limited,No
Http://opendatacommunities.org/id/metropolitan-district-council/leeds,Leeds City Council,31/07/2022,Resources,Shared Services,Supplies and Services,Other Hired And Contracted Services,265,22/07/2022,2207-00308,0.00,236.00,R,AD3 Envelope Printers Limited,No
Http://opendatacommunities.org/id/metropolitan-district-council/leeds,Leeds City Council,31/07/2022,Resources,Shared Services,Supplies and Services,Other Hired And Contracted Services,265,22/07/2022,2207-00309,0.00,96.46,R,AD3 Envelope Printers Limited,No
Http://opendatacommunities.org/id/metropolitan-district-council/leeds,Leeds City Council,31/07/2022,Resources,Shared Services,Supplies and Services,Operational Materials,205,22/07/2022,2207-00310,0.00,1492.50,R,AD3 Envelope Printers Limited,No
Http://opendatacommunities.org/id/metropolitan-district-council/leeds,Leeds City Council,31/07/2022,Resources,Shared Services,Supplies and Services,Other Hired And Contracted Services,265,22/07/2022,2207-00311,0.00,262.75,R,AD3 Envelope Printers Limited,No
Http://opendatacommunities.org/id/metropolitan-district-council/leeds,Leeds City Council,31/07/2022,Resources,Shared Services,Supplies and Services,Other Hired And Contracted Services,265,22/07/2022,2207-00312,0.00,168.75,R,AD3 Envelope Printers Limited,No
Http://opendatacommunities.org/id/metropolitan-district-council/leeds,Leeds City Council,31/07/2022,Resources,Shared Services,Supplies and Services,Other Hired And Contracted Services,265,29/07/2022,2207-00313,0.00,610.70,R,AD3 Envelope Printers Limited,No
Http://opendatacommunities.org/id/metropolitan-district-council/leeds,Leeds City Council,31/07/2022,Resources,Shared Services,Supplies and Services,Other Hired And Contracted Services,265,29/07/2022,2207-00314,0.00,134.52,R,AD3 Envelope Printers Limited,No
Http://opendatacommunities.org/id/metropolitan-district-council/leeds,Leeds City Council,31/07/2022,Resources,Shared Services,Supplies and Services,Operational Materials,205,29/07/2022,2207-00315,0.00,283.50,R,AD3 Envelope Printers Limited,No
Http://opendatacommunities.org/id/metropolitan-district-council/leeds,Leeds City Council,31/07/2022,Children and Families,Social Care,Appropriations,16 Plus Top Up Allowance,625,01/07/2022,2207-00316,0.00,120.00,R,REDACTED PERSONAL DATA,No
Http://opendatacommunities.org/id/metropolitan-district-council/leeds,Leeds City Council,31/07/2022,Children and Families,Social Care,Appropriations,Leaving Care Allowances,634,01/07/2022,2207-00317,0.00,50.00,R,REDACTED PERSONAL DATA,No
Http://opendatacommunities.org/id/metropolitan-district-council/leeds,Leeds City Council,31/07/2022,Children and Families,Social Care,Appropriations,Leaving Care Allowances,634,08/07/2022,2207-00318,0.00,50.00,R,REDACTED PERSONAL DATA,No
Http://opendatacommunities.org/id/metropolitan-district-council/leeds,Leeds City Council,31/07/2022,Children and Families,Social Care,Appropriations,Leaving Care Allowances,634,15/07/2022,2207-00319,0.00,25.00,R,REDACTED PERSONAL DATA,No
Http://opendatacommunities.org/id/metropolitan-district-council/leeds,Leeds City Council,31/07/2022,Communities Housing and Environment,Car Parking Services,External Income,Penalties Fines & Car Parking Charges,934,28/07/2022,2207-00320,0.00,99.00,R,REDACTED PERSONAL DATA,No
Http://opendatacommunities.org/id/metropolitan-district-council/leeds,Leeds City Council,31/07/2022,Children and Families,Social Care,Agency Payments,Contact,548,01/07/2022,2207-00321,0.00,10.40,R,REDACTED PERSONAL DATA,No
Http://opendatacommunities.org/id/metropolitan-district-council/leeds,Leeds City Council,31/07/2022,Children and Families,Social Care,Agency Payments,Contact,548,08/07/2022,2207-00322,0.00,10.40,R,REDACTED PERSONAL DATA,No
Http://opendatacommunities.org/id/metropolitan-district-council/leeds,Leeds City Council,31/07/2022,Children and Families,Social Care,Agency Payments,Contact,548,15/07/2022,2207-00323,0.00,10.40,R,REDACTED PERSONAL DATA,No
Http://opendatacommunities.org/id/metropolitan-district-council/leeds,Leeds City Council,31/07/2022,Children and Families,Social Care,Agency Payments,Contact,548,22/07/2022,2207-00324,0.00,10.40,R,REDACTED PERSONAL DATA,No
Http://opendatacommunities.org/id/metropolitan-district-council/leeds,Leeds City Council,31/07/2022,Children and Families,Social Care,Agency Payments,Contact,548,29/07/2022,2207-00325,0.00,10.40,R,REDACTED PERSONAL DATA,No
Http://opendatacommunities.org/id/metropolitan-district-council/leeds,Leeds City Council,31/07/2022,Children and Families,Social Care,Appropriations,Leaving Care Allowances,634,05/07/2022,2207-00326,0.00,41.05,R,REDACTED PERSONAL DATA,No
Http://opendatacommunities.org/id/metropolitan-district-council/leeds,Leeds City Council,31/07/2022,Communities Housing and Environment,Strategic Housing Partnership & Support,Capital,CONSTRUCTION,3,15/07/2022,2207-00327,0.00,10000.00,C,Adam'S Gas Services,No
Http://opendatacommunities.org/id/metropolitan-district-council/leeds,Leeds City Council,31/07/2022,Adults and Health,Services For Older People - 65 And Over,Agency Payments,Residential Care Dementia,571,20/07/2022,2207-00328,0.00,2584.00,R,Adbolton Hall,No
Http://opendatacommunities.org/id/metropolitan-district-council/leeds,Leeds City Council,31/07/2022,City Development,Libraries Arts & Heritage,Supplies and Services,Other Hired And Contracted Services,265,22/07/2022,2207-00329,0.00,2850.00,R,Add-A-Tone Productions Ltd,No
Http://opendatacommunities.org/id/metropolitan-district-council/leeds,Leeds City Council,31/07/2022,Communities Housing and Environment,Parks and Countryside,Supplies and Services,Other Hired And Contracted Services,265,12/07/2022,2207-00330,0.00,9195.84,R,Addlestone & Partners,No
Http://opendatacommunities.org/id/metropolitan-district-council/leeds,Leeds City Council,31/07/2022,Children and Families,Social Care,Agency Payments,Services Rendered By Voluntary Sector,505,01/07/2022,2207-00331,0.00,5816.31,R,ADEL PRE SCHOOL,No
Http://opendatacommunities.org/id/metropolitan-district-council/leeds,Leeds City Council,31/07/2022,Children and Families,Social Care,Agency Payments,Services Rendered By Voluntary Sector,505,06/07/2022,2207-00332,0.00,868.92,R,ADEL PRE SCHOOL,No
Http://opendatacommunities.org/id/metropolitan-district-council/leeds,Leeds City Council,31/07/2022,Children and Families,Social Care,Agency Payments,Contact,548,04/07/2022,2207-00333,0.00,7.56,R,REDACTED PERSONAL DATA,No
Http://opendatacommunities.org/id/metropolitan-district-council/leeds,Leeds City Council,31/07/2022,Children and Families,Social Care,Agency Payments,Placement Support,550,04/07/2022,2207-00334,0.00,2.50,R,REDACTED PERSONAL DATA,No
Http://opendatacommunities.org/id/metropolitan-district-council/leeds,Leeds City Council,31/07/2022,Children and Families,Social Care,Appropriations,Leaving Care Allowances,634,04/07/2022,2207-00335,0.00,2.50,R,REDACTED PERSONAL DATA,No
Http://opendatacommunities.org/id/metropolitan-district-council/leeds,Leeds City Council,31/07/2022,City Development,Recreation,Supplies and Services,Bought In Professional Services,277,28/07/2022,2207-00336,0.00,40.00,R,Adele Battersby,No
Http://opendatacommunities.org/id/metropolitan-district-council/leeds,Leeds City Council,31/07/2022,City Development,Recreation,Supplies and Services,Bought In Professional Services,277,29/07/2022,2207-00337,0.00,220.00,R,Adele Battersby,No
Http://opendatacommunities.org/id/metropolitan-district-council/leeds,Leeds City Council,31/07/2022,City Development,Recreation,Supplies and Services,Bought In Professional Services,277,29/07/2022,2207-00338,0.00,440.00,R,Adele Battersby,No
Http://opendatacommunities.org/id/metropolitan-district-council/leeds,Leeds City Council,31/07/2022,Children and Families,Social Care,Agency Payments,Services Rendered By Other Organisations,511,01/07/2022,2207-00339,0.00,2050.62,R,REDACTED PERSONAL DATA,No
Http://opendatacommunities.org/id/metropolitan-district-council/leeds,Leeds City Council,31/07/2022,Children and Families,Social Care,Agency Payments,Services Rendered By Other Organisations,511,06/07/2022,2207-00340,0.00,217.23,R,REDACTED PERSONAL DATA,No
Http://opendatacommunities.org/id/metropolitan-district-council/leeds,Leeds City Council,31/07/2022,City Development,Libraries Arts & Heritage,Supplies and Services,Operational Furniture And Equipment,203,07/06/2022,2207-00341,0.00,384.00,R,Adexa.Co.Uk,Yes
Http://opendatacommunities.org/id/metropolitan-district-council/leeds,Leeds City Council,31/07/2022,City Development,Libraries Arts & Heritage,Supplies and Services,Operational Furniture And Equipment,203,16/06/2022,2207-00342,0.00,1399.00,R,Adexa.Co.Uk,Yes
Http://opendatacommunities.org/id/metropolitan-district-council/leeds,Leeds City Council,31/07/2022,Children and Families,Social Care,Appropriations,Leaving Care Allowances,634,08/06/2022,2207-00343,0.00,42.67,R,Adidas (U.K.) Limited,Yes
Http://opendatacommunities.org/id/metropolitan-district-council/leeds,Leeds City Council,31/07/2022,Resources,Leeds Building Services,Supplies and Services,Operational Materials,205,07/07/2022,2207-00344,0.00,564.83,R,ADI-Gardiner Ltd,No
Http://opendatacommunities.org/id/metropolitan-district-council/leeds,Leeds City Council,31/07/2022,Resources,Leeds Building Services,Supplies and Services,Operational Materials,205,07/07/2022,2207-00345,0.00,7.98,R,ADI-Gardiner Ltd,No
Http://opendatacommunities.org/id/metropolitan-district-council/leeds,Leeds City Council,31/07/2022,Resources,Leeds Building Services,Supplies and Services,Operational Materials,205,08/07/2022,2207-00346,0.00,234.96,R,ADI-Gardiner Ltd,No
Http://opendatacommunities.org/id/metropolitan-district-council/leeds,Leeds City Council,31/07/2022,Resources,Leeds Building Services,Supplies and Services,Operational Materials,205,08/07/2022,2207-00347,0.00,156.64,R,ADI-Gardiner Ltd,No
Http://opendatacommunities.org/id/metropolitan-district-council/leeds,Leeds City Council,31/07/2022,Resources,Leeds Building Services,Supplies and Services,Operational Materials,205,18/07/2022,2207-00348,0.00,1951.10,R,ADI-Gardiner Ltd,No
Http://opendatacommunities.org/id/metropolitan-district-council/leeds,Leeds City Council,31/07/2022,Resources,Leeds Building Services,Supplies and Services,Operational Materials,205,18/07/2022,2207-00349,0.00,19.27,R,ADI-Gardiner Ltd,No
Http://opendatacommunities.org/id/metropolitan-district-council/leeds,Leeds City Council,31/07/2022,Resources,Leeds Building Services,Supplies and Services,Operational Materials,205,18/07/2022,2207-00350,0.00,8381.47,R,ADI-Gardiner Ltd,No
Http://opendatacommunities.org/id/metropolitan-district-council/leeds,Leeds City Council,31/07/2022,Resources,Leeds Building Services,Supplies and Services,Operational Materials,205,18/07/2022,2207-00351,0.00,106.14,R,ADI-Gardiner Ltd,No
Http://opendatacommunities.org/id/metropolitan-district-council/leeds,Leeds City Council,31/07/2022,Resources,Leeds Building Services,Supplies and Services,Operational Materials,205,18/07/2022,2207-00352,0.00,169.94,R,ADI-Gardiner Ltd,No
Http://opendatacommunities.org/id/metropolitan-district-council/leeds,Leeds City Council,31/07/2022,Resources,Leeds Building Services,Supplies and Services,Operational Materials,205,18/07/2022,2207-00353,0.00,459.00,R,ADI-Gardiner Ltd,No
Http://opendatacommunities.org/id/metropolitan-district-council/leeds,Leeds City Council,31/07/2022,Resources,Leeds Building Services,Supplies and Services,Operational Materials,205,18/07/2022,2207-00354,0.00,1052.84,R,ADI-Gardiner Ltd,No
Http://opendatacommunities.org/id/metropolitan-district-council/leeds,Leeds City Council,31/07/2022,Resources,Leeds Building Services,Supplies and Services,Operational Materials,205,18/07/2022,2207-00355,0.00,25.78,R,ADI-Gardiner Ltd,No
Http://opendatacommunities.org/id/metropolitan-district-council/leeds,Leeds City Council,31/07/2022,Resources,Leeds Building Services,Supplies and Services,Operational Materials,205,18/07/2022,2207-00356,0.00,12.89,R,ADI-Gardiner Ltd,No
Http://opendatacommunities.org/id/metropolitan-district-council/leeds,Leeds City Council,31/07/2022,Resources,Leeds Building Services,Supplies and Services,Operational Materials,205,18/07/2022,2207-00357,0.00,25.78,R,ADI-Gardiner Ltd,No
Http://opendatacommunities.org/id/metropolitan-district-council/leeds,Leeds City Council,31/07/2022,Resources,Leeds Building Services,Supplies and Services,Operational Materials,205,18/07/2022,2207-00358,0.00,83.46,R,ADI-Gardiner Ltd,No
Http://opendatacommunities.org/id/metropolitan-district-council/leeds,Leeds City Council,31/07/2022,Resources,Leeds Building Services,Supplies and Services,Operational Materials,205,27/07/2022,2207-00359,0.00,694.26,R,ADI-Gardiner Ltd,No
Http://opendatacommunities.org/id/metropolitan-district-council/leeds,Leeds City Council,31/07/2022,Resources,Leeds Building Services,Supplies and Services,Operational Materials,205,27/07/2022,2207-00360,0.00,15.01,R,ADI-Gardiner Ltd,No
Http://opendatacommunities.org/id/metropolitan-district-council/leeds,Leeds City Council,31/07/2022,Resources,Leeds Building Services,Supplies and Services,Operational Materials,205,27/07/2022,2207-00361,0.00,15.01,R,ADI-Gardiner Ltd,No
Http://opendatacommunities.org/id/metropolitan-district-council/leeds,Leeds City Council,31/07/2022,Resources,Leeds Building Services,Supplies and Services,Operational Materials,205,27/07/2022,2207-00362,0.00,978.35,R,ADI-Gardiner Ltd,No
Http://opendatacommunities.org/id/metropolitan-district-council/leeds,Leeds City Council,31/07/2022,Resources,Leeds Building Services,Supplies and Services,Operational Materials,205,27/07/2022,2207-00363,0.00,12.89,R,ADI-Gardiner Ltd,No
Http://opendatacommunities.org/id/metropolitan-district-council/leeds,Leeds City Council,31/07/2022,Resources,Leeds Building Services,Supplies and Services,Operational Materials,205,27/07/2022,2207-00364,0.00,28.32,R,ADI-Gardiner Ltd,No
Http://opendatacommunities.org/id/metropolitan-district-council/leeds,Leeds City Council,31/07/2022,Insurance,Insurance,Supplies and Services,Insurance Claims,248,19/07/2022,2207-00365,0.00,216.00,R,Admiral Law,No
Http://opendatacommunities.org/id/metropolitan-district-council/leeds,Leeds City Council,31/07/2022,Children and Families,Social Care,Agency Payments,Independent Fostering Agencies,509,07/07/2022,2207-00366,0.00,3540.00,R,Adolescent And Childrens Trust,No
Http://opendatacommunities.org/id/metropolitan-district-council/leeds,Leeds City Council,31/07/2022,Children and Families,Social Care,Agency Payments,Independent Fostering Agencies,509,07/07/2022,2207-00367,0.00,3707.10,R,Adolescent And Childrens Trust,No
Http://opendatacommunities.org/id/metropolitan-district-council/leeds,Leeds City Council,31/07/2022,Children and Families,Social Care,Agency Payments,Independent Fostering Agencies,509,07/07/2022,2207-00368,0.00,3565.00,R,Adolescent And Childrens Trust,No
Http://opendatacommunities.org/id/metropolitan-district-council/leeds,Leeds City Council,31/07/2022,Children and Families,Social Care,Agency Payments,Independent Fostering Agencies,509,07/07/2022,2207-00369,0.00,3565.00,R,Adolescent And Childrens Trust,No
Http://opendatacommunities.org/id/metropolitan-district-council/leeds,Leeds City Council,31/07/2022,Children and Families,Social Care,Agency Payments,Independent Fostering Agencies,509,07/07/2022,2207-00370,0.00,3565.00,R,Adolescent And Childrens Trust,No
Http://opendatacommunities.org/id/metropolitan-district-council/leeds,Leeds City Council,31/07/2022,Children and Families,Social Care,Agency Payments,Independent Fostering Agencies,509,07/07/2022,2207-00371,0.00,3751.00,R,Adolescent And Childrens Trust,No
Http://opendatacommunities.org/id/metropolitan-district-council/leeds,Leeds City Council,31/07/2022,Children and Families,Social Care,Agency Payments,Independent Fostering Agencies,509,07/07/2022,2207-00372,0.00,3751.00,R,Adolescent And Childrens Trust,No
Http://opendatacommunities.org/id/metropolitan-district-council/leeds,Leeds City Council,31/07/2022,Children and Families,Social Care,Agency Payments,Independent Fostering Agencies,509,07/07/2022,2207-00373,0.00,3751.00,R,Adolescent And Childrens Trust,No
Http://opendatacommunities.org/id/metropolitan-district-council/leeds,Leeds City Council,31/07/2022,Children and Families,Social Care,Agency Payments,Independent Fostering Agencies,509,07/07/2022,2207-00374,0.00,3551.67,R,Adolescent And Childrens Trust,No
Http://opendatacommunities.org/id/metropolitan-district-council/leeds,Leeds City Council,31/07/2022,Children and Families,Social Care,Agency Payments,Independent Fostering Agencies,509,07/07/2022,2207-00375,0.00,3751.00,R,Adolescent And Childrens Trust,No
Http://opendatacommunities.org/id/metropolitan-district-council/leeds,Leeds City Council,31/07/2022,Children and Families,Social Care,Agency Payments,Independent Fostering Agencies,509,07/07/2022,2207-00376,0.00,3565.00,R,Adolescent And Childrens Trust,No
Http://opendatacommunities.org/id/metropolitan-district-council/leeds,Leeds City Council,31/07/2022,Children and Families,Social Care,Agency Payments,Independent Fostering Agencies,509,07/07/2022,2207-00377,0.00,3658.00,R,Adolescent And Childrens Trust,No
Http://opendatacommunities.org/id/metropolitan-district-council/leeds,Leeds City Council,31/07/2022,Children and Families,Social Care,Agency Payments,Independent Fostering Agencies,509,07/07/2022,2207-00378,0.00,3830.67,R,Adolescent And Childrens Trust,No
Http://opendatacommunities.org/id/metropolitan-district-council/leeds,Leeds City Council,31/07/2022,Children and Families,Social Care,Agency Payments,Independent Fostering Agencies,509,07/07/2022,2207-00379,0.00,3830.67,R,Adolescent And Childrens Trust,No
Http://opendatacommunities.org/id/metropolitan-district-council/leeds,Leeds City Council,31/07/2022,Children and Families,Social Care,Agency Payments,Independent Fostering Agencies,509,08/07/2022,2207-00380,0.00,3658.00,R,Adolescent And Childrens Trust,No
Http://opendatacommunities.org/id/metropolitan-district-council/leeds,Leeds City Council,31/07/2022,Children and Families,Social Care,Agency Payments,Independent Fostering Agencies,509,18/07/2022,2207-00381,0.00,2166.00,R,Adolescent And Childrens Trust,No
Http://opendatacommunities.org/id/metropolitan-district-council/leeds,Leeds City Council,31/07/2022,Children and Families,Social Care,Employees,Training & Development,70,28/07/2022,2207-00382,0.00,300.00,R,Adolescent And Childrens Trust,No
Http://opendatacommunities.org/id/metropolitan-district-council/leeds,Leeds City Council,31/07/2022,Adults and Health,Services For Adults Under 65 Mental/Dis,Agency Payments,Home Care,568,06/07/2022,2207-00383,0.00,448.75,R,Adopt Healthcare,No
Http://opendatacommunities.org/id/metropolitan-district-council/leeds,Leeds City Council,31/07/2022,Adults and Health,Services For Adults Under 65 Mental/Dis,Agency Payments,Home Care,568,06/07/2022,2207-00384,0.00,211.00,R,Adopt Healthcare,No
Http://opendatacommunities.org/id/metropolitan-district-council/leeds,Leeds City Council,31/07/2022,Adults and Health,Services For Adults Under 65 Mental/Dis,Agency Payments,Home Care,568,06/07/2022,2207-00385,0.00,220.00,R,Adopt Healthcare,No
Http://opendatacommunities.org/id/metropolitan-district-council/leeds,Leeds City Council,31/07/2022,Adults and Health,Services For Adults Under 65 Mental/Dis,Agency Payments,Home Care,568,06/07/2022,2207-00386,0.00,110.00,R,Adopt Healthcare,No
Http://opendatacommunities.org/id/metropolitan-district-council/leeds,Leeds City Council,31/07/2022,Adults and Health,Services For Adults Under 65 Mental/Dis,Agency Payments,Home Care,568,13/07/2022,2207-00387,0.00,410.25,R,Adopt Healthcare,No
Http://opendatacommunities.org/id/metropolitan-district-council/leeds,Leeds City Council,31/07/2022,Adults and Health,Services For Adults Under 65 Mental/Dis,Agency Payments,Home Care,568,13/07/2022,2207-00388,0.00,189.00,R,Adopt Healthcare,No
Http://opendatacommunities.org/id/metropolitan-district-council/leeds,Leeds City Council,31/07/2022,Adults and Health,Services For Adults Under 65 Mental/Dis,Agency Payments,Home Care,568,13/07/2022,2207-00389,0.00,198.00,R,Adopt Healthcare,No
Http://opendatacommunities.org/id/metropolitan-district-council/leeds,Leeds City Council,31/07/2022,Adults and Health,Services For Adults Under 65 Mental/Dis,Agency Payments,Home Care,568,20/07/2022,2207-00390,0.00,410.25,R,Adopt Healthcare,No
Http://opendatacommunities.org/id/metropolitan-district-council/leeds,Leeds City Council,31/07/2022,Adults and Health,Services For Adults Under 65 Mental/Dis,Agency Payments,Home Care,568,20/07/2022,2207-00391,0.00,189.00,R,Adopt Healthcare,No
Http://opendatacommunities.org/id/metropolitan-district-council/leeds,Leeds City Council,31/07/2022,Adults and Health,Services For Adults Under 65 Mental/Dis,Agency Payments,Home Care,568,20/07/2022,2207-00392,0.00,181.50,R,Adopt Healthcare,No
Http://opendatacommunities.org/id/metropolitan-district-council/leeds,Leeds City Council,31/07/2022,Adults and Health,Services For Adults Under 65 Mental/Dis,Agency Payments,Home Care,568,27/07/2022,2207-00393,0.00,410.25,R,Adopt Healthcare,No
Http://opendatacommunities.org/id/metropolitan-district-council/leeds,Leeds City Council,31/07/2022,Adults and Health,Services For Adults Under 65 Mental/Dis,Agency Payments,Home Care,568,27/07/2022,2207-00394,0.00,189.00,R,Adopt Healthcare,No
Http://opendatacommunities.org/id/metropolitan-district-council/leeds,Leeds City Council,31/07/2022,Adults and Health,Services For Adults Under 65 Mental/Dis,Agency Payments,Home Care,568,27/07/2022,2207-00395,0.00,198.00,R,Adopt Healthcare,No
Http://opendatacommunities.org/id/metropolitan-district-council/leeds,Leeds City Council,31/07/2022,Children and Families,Social Care,Agency Payments,Placement Support,550,01/07/2022,2207-00396,0.00,21.15,R,REDACTED PERSONAL DATA,No
Http://opendatacommunities.org/id/metropolitan-district-council/leeds,Leeds City Council,31/07/2022,Children and Families,Social Care,Agency Payments,Placement Support,550,08/07/2022,2207-00397,0.00,21.15,R,REDACTED PERSONAL DATA,No
Http://opendatacommunities.org/id/metropolitan-district-council/leeds,Leeds City Council,31/07/2022,Children and Families,Social Care,Agency Payments,Placement Support,550,15/07/2022,2207-00398,0.00,21.15,R,REDACTED PERSONAL DATA,No
Http://opendatacommunities.org/id/metropolitan-district-council/leeds,Leeds City Council,31/07/2022,Children and Families,Social Care,Agency Payments,Placement Support,550,22/07/2022,2207-00399,0.00,21.15,R,REDACTED PERSONAL DATA,No
Http://opendatacommunities.org/id/metropolitan-district-council/leeds,Leeds City Council,31/07/2022,Children and Families,Social Care,Agency Payments,Placement Support,550,29/07/2022,2207-00400,0.00,21.15,R,REDACTED PERSONAL DATA,No
Http://opendatacommunities.org/id/metropolitan-district-council/leeds,Leeds City Council as Accountable Body,31/07/2022,Social Services Pooled Budgets,Jcs For People With Learning Disabilitie,Agency Payments,Residential,580,27/07/2022,2207-00401,0.00,2609.36,R,ADRIAN HOUSE,No
Http://opendatacommunities.org/id/metropolitan-district-council/leeds,Leeds City Council,31/07/2022,Adults and Health,Services For Older People - 65 And Over,Agency Payments,Home Care,568,06/07/2022,2207-00402,0.00,19399.38,R,Advanced Medcare Ltd,No
Http://opendatacommunities.org/id/metropolitan-district-council/leeds,Leeds City Council,31/07/2022,Adults and Health,Services For Older People - 65 And Over,Agency Payments,HCAIT Community Support,575,06/07/2022,2207-00403,0.00,424.32,R,Advanced Medcare Ltd,No
Http://opendatacommunities.org/id/metropolitan-district-council/leeds,Leeds City Council,31/07/2022,Adults and Health,Services For Older People - 65 And Over,Agency Payments,HCAIT Other,577,06/07/2022,2207-00404,0.00,990.08,R,Advanced Medcare Ltd,No
Http://opendatacommunities.org/id/metropolitan-district-council/leeds,Leeds City Council,31/07/2022,Adults and Health,Services For Older People Under 65 P/Dis,Agency Payments,Home Care,568,06/07/2022,2207-00405,0.00,35.36,R,Advanced Medcare Ltd,No
Http://opendatacommunities.org/id/metropolitan-district-council/leeds,Leeds City Council as Accountable Body,31/07/2022,Social Services Pooled Budgets,Jcs For People With Learning Disabilitie,Agency Payments,Home Care,568,06/07/2022,2207-00406,0.00,1131.52,R,Advanced Medcare Ltd,No
Http://opendatacommunities.org/id/metropolitan-district-council/leeds,Leeds City Council,31/07/2022,Children and Families,Social Care,Supplies and Services,Operational Materials,205,22/06/2022,2207-00407,0.00,15.83,R,Adventure Climb Rescue,Yes
Http://opendatacommunities.org/id/metropolitan-district-council/leeds,Leeds City Council,31/07/2022,Adults and Health,Services For Older People - 65 And Over,Agency Payments,Payments To Voluntary Organisations,561,28/07/2022,2207-00408,0.00,104750.00,R,Advonet,No
Http://opendatacommunities.org/id/metropolitan-district-council/leeds,Leeds City Council,31/07/2022,Adults and Health,Services For Older People - 65 And Over,Agency Payments,Payments To Voluntary Organisations,561,28/07/2022,2207-00409,0.00,104750.00,R,Advonet,No
Http://opendatacommunities.org/id/metropolitan-district-council/leeds,Leeds City Council,31/07/2022,Adults and Health,Services For Adults Under 65 Learn/Dis,Agency Payments,Payments To Voluntary Organisations,561,28/07/2022,2207-00410,0.00,16150.46,R,Advonet,No
Http://opendatacommunities.org/id/metropolitan-district-council/leeds,Leeds City Council,31/07/2022,Adults and Health,Services For Adults Under 65 Learn/Dis,Agency Payments,Payments To Voluntary Organisations,561,29/07/2022,2207-00411,0.00,16150.47,R,Advonet,No
Http://opendatacommunities.org/id/metropolitan-district-council/leeds,Leeds City Council,31/07/2022,Adults and Health,Services For Older People - 65 And Over,Agency Payments,Payments To Voluntary Organisations,561,29/07/2022,2207-00412,0.00,104750.00,R,Advonet,No
Http://opendatacommunities.org/id/metropolitan-district-council/leeds,Leeds City Council,31/07/2022,City Development,Planning & Sustainable Development,Supplies and Services,Other Hired And Contracted Services,265,12/07/2022,2207-00413,0.00,6123.32,R,Aecom Limited,No
Http://opendatacommunities.org/id/metropolitan-district-council/leeds,Leeds City Council,31/07/2022,City Development,Highways,Capital,OTHER COSTS,7,26/07/2022,2207-00414,0.00,17348.12,C,Aecom Limited,No
Http://opendatacommunities.org/id/metropolitan-district-council/leeds,Leeds City Council,31/07/2022,City Development,Highways,Capital,OTHER COSTS,7,26/07/2022,2207-00415,0.00,11978.33,C,Aecom Limited,No
Http://opendatacommunities.org/id/metropolitan-district-council/leeds,Leeds City Council,31/07/2022,City Development,Highways,Capital,OTHER COSTS,7,26/07/2022,2207-00416,0.00,19976.04,C,Aecom Limited,No
Http://opendatacommunities.org/id/metropolitan-district-council/leeds,Leeds City Council,31/07/2022,Adults and Health,Services For Adults Under 65 Mental/Dis,Agency Payments,Home Care,568,01/07/2022,2207-00417,0.00,1313.60,R,Aegis Care Solutions Ltd,No
Http://opendatacommunities.org/id/metropolitan-district-council/leeds,Leeds City Council,31/07/2022,Adults and Health,Services For Adults Under 65 Mental/Dis,Agency Payments,Home Care,568,01/07/2022,2207-00418,0.00,594.00,R,Aegis Care Solutions Ltd,No
Http://opendatacommunities.org/id/metropolitan-district-council/leeds,Leeds City Council,31/07/2022,Adults and Health,Services For Adults Under 65 Mental/Dis,Agency Payments,Home Care,568,01/07/2022,2207-00419,0.00,4448.00,R,Aegis Care Solutions Ltd,No
Http://opendatacommunities.org/id/metropolitan-district-council/leeds,Leeds City Council,31/07/2022,Adults and Health,Services For Adults Under 65 Mental/Dis,Agency Payments,Home Care,568,01/07/2022,2207-00420,0.00,712.00,R,Aegis Care Solutions Ltd,No
Http://opendatacommunities.org/id/metropolitan-district-council/leeds,Leeds City Council,31/07/2022,Adults and Health,Services For Adults Under 65 Mental/Dis,Agency Payments,Home Care,568,01/07/2022,2207-00421,0.00,475.20,R,Aegis Care Solutions Ltd,No
Http://opendatacommunities.org/id/metropolitan-district-council/leeds,Leeds City Council,31/07/2022,Adults and Health,Services For Adults Under 65 Mental/Dis,Agency Payments,Home Care,568,01/07/2022,2207-00422,0.00,1219.90,R,Aegis Care Solutions Ltd,No
Http://opendatacommunities.org/id/metropolitan-district-council/leeds,Leeds City Council,31/07/2022,Adults and Health,Services For Adults Under 65 Mental/Dis,Agency Payments,Home Care,568,01/07/2022,2207-00423,0.00,4558.40,R,Aegis Care Solutions Ltd,No
Http://opendatacommunities.org/id/metropolitan-district-council/leeds,Leeds City Council,31/07/2022,Adults and Health,Services For Adults Under 65 Mental/Dis,Agency Payments,Home Care,568,01/07/2022,2207-00424,0.00,1854.21,R,Aegis Care Solutions Ltd,No
Http://opendatacommunities.org/id/metropolitan-district-council/leeds,Leeds City Council,31/07/2022,Adults and Health,Services For Adults Under 65 Mental/Dis,Agency Payments,Home Care,568,01/07/2022,2207-00425,0.00,1296.00,R,Aegis Care Solutions Ltd,No
Http://opendatacommunities.org/id/metropolitan-district-council/leeds,Leeds City Council,31/07/2022,Adults and Health,Services For Adults Under 65 Mental/Dis,Agency Payments,Home Care,568,01/07/2022,2207-00426,0.00,1309.50,R,Aegis Care Solutions Ltd,No
Http://opendatacommunities.org/id/metropolitan-district-council/leeds,Leeds City Council,31/07/2022,Adults and Health,Services For Adults Under 65 Mental/Dis,Agency Payments,Home Care,568,01/07/2022,2207-00427,0.00,1751.40,R,Aegis Care Solutions Ltd,No
Http://opendatacommunities.org/id/metropolitan-district-council/leeds,Leeds City Council,31/07/2022,Adults and Health,Services For Adults Under 65 Mental/Dis,Agency Payments,Home Care,568,01/07/2022,2207-00428,0.00,1139.60,R,Aegis Care Solutions Ltd,No
Http://opendatacommunities.org/id/metropolitan-district-council/leeds,Leeds City Council,31/07/2022,Adults and Health,Services For Adults Under 65 Mental/Dis,Agency Payments,Home Care,568,01/07/2022,2207-00429,0.00,284.80,R,Aegis Care Solutions Ltd,No
Http://opendatacommunities.org/id/metropolitan-district-council/leeds,Leeds City Council,31/07/2022,Adults and Health,Assessment And Care Management,Agency Payments,Home Care,568,06/07/2022,2207-00430,0.00,237.45,R,Aegis Care Solutions Ltd,No
Http://opendatacommunities.org/id/metropolitan-district-council/leeds,Leeds City Council,31/07/2022,Adults and Health,Services For Older People - 65 And Over,Agency Payments,Home Care,568,06/07/2022,2207-00431,0.00,34819.11,R,Aegis Care Solutions Ltd,No
Http://opendatacommunities.org/id/metropolitan-district-council/leeds,Leeds City Council,31/07/2022,Adults and Health,Services For Older People - 65 And Over,Agency Payments,HCAIT Other,577,06/07/2022,2207-00432,0.00,415.08,R,Aegis Care Solutions Ltd,No
Http://opendatacommunities.org/id/metropolitan-district-council/leeds,Leeds City Council,31/07/2022,Adults and Health,Services For Older People Under 65 P/Dis,Agency Payments,Home Care,568,06/07/2022,2207-00433,0.00,12137.60,R,Aegis Care Solutions Ltd,No
Http://opendatacommunities.org/id/metropolitan-district-council/leeds,Leeds City Council as Accountable Body,31/07/2022,Social Services Pooled Budgets,Jcs For People With Learning Disabilitie,Agency Payments,Home Care,568,06/07/2022,2207-00434,0.00,3047.09,R,Aegis Care Solutions Ltd,No
Http://opendatacommunities.org/id/metropolitan-district-council/leeds,Leeds City Council,31/07/2022,Adults and Health,Assessment And Care Management,Agency Payments,Home Care,568,27/07/2022,2207-00435,0.00,245.88,R,Aegis Care Solutions Ltd,No
Http://opendatacommunities.org/id/metropolitan-district-council/leeds,Leeds City Council,31/07/2022,Adults and Health,Services For Older People - 65 And Over,Agency Payments,Home Care,568,27/07/2022,2207-00436,0.00,41808.35,R,Aegis Care Solutions Ltd,No
Http://opendatacommunities.org/id/metropolitan-district-council/leeds,Leeds City Council,31/07/2022,Adults and Health,Services For Older People - 65 And Over,Agency Payments,HCAIT Other,577,27/07/2022,2207-00437,0.00,425.76,R,Aegis Care Solutions Ltd,No
Http://opendatacommunities.org/id/metropolitan-district-council/leeds,Leeds City Council,31/07/2022,Adults and Health,Services For Older People Under 65 P/Dis,Agency Payments,Home Care,568,27/07/2022,2207-00438,0.00,9899.35,R,Aegis Care Solutions Ltd,No
Http://opendatacommunities.org/id/metropolitan-district-council/leeds,Leeds City Council as Accountable Body,31/07/2022,Social Services Pooled Budgets,Jcs For People With Learning Disabilitie,Agency Payments,Home Care,568,27/07/2022,2207-00439,0.00,3114.48,R,Aegis Care Solutions Ltd,No
Http://opendatacommunities.org/id/metropolitan-district-council/leeds,Leeds City Council,31/07/2022,Adults and Health,Services For Adults Under 65 Mental/Dis,Agency Payments,Home Care,568,29/07/2022,2207-00440,0.00,747.60,R,Aegis Care Solutions Ltd,No
Http://opendatacommunities.org/id/metropolitan-district-council/leeds,Leeds City Council,31/07/2022,Adults and Health,Services For Adults Under 65 Mental/Dis,Agency Payments,Home Care,568,29/07/2022,2207-00441,0.00,475.20,R,Aegis Care Solutions Ltd,No
Http://opendatacommunities.org/id/metropolitan-district-council/leeds,Leeds City Council,31/07/2022,Adults and Health,Services For Adults Under 65 Mental/Dis,Agency Payments,Home Care,568,29/07/2022,2207-00442,0.00,1072.90,R,Aegis Care Solutions Ltd,No
Http://opendatacommunities.org/id/metropolitan-district-council/leeds,Leeds City Council,31/07/2022,Adults and Health,Services For Adults Under 65 Mental/Dis,Agency Payments,Home Care,568,29/07/2022,2207-00443,0.00,4186.40,R,Aegis Care Solutions Ltd,No
Http://opendatacommunities.org/id/metropolitan-district-council/leeds,Leeds City Council,31/07/2022,Adults and Health,Services For Adults Under 65 Mental/Dis,Agency Payments,Home Care,568,29/07/2022,2207-00444,0.00,1114.50,R,Aegis Care Solutions Ltd,No
Http://opendatacommunities.org/id/metropolitan-district-council/leeds,Leeds City Council,31/07/2022,Adults and Health,Services For Adults Under 65 Mental/Dis,Agency Payments,Home Care,568,29/07/2022,2207-00445,0.00,1081.80,R,Aegis Care Solutions Ltd,No
Http://opendatacommunities.org/id/metropolitan-district-council/leeds,Leeds City Council,31/07/2022,Adults and Health,Services For Adults Under 65 Mental/Dis,Agency Payments,Home Care,568,29/07/2022,2207-00446,0.00,1101.00,R,Aegis Care Solutions Ltd,No
Http://opendatacommunities.org/id/metropolitan-district-council/leeds,Leeds City Council,31/07/2022,Adults and Health,Services For Adults Under 65 Mental/Dis,Agency Payments,Home Care,568,29/07/2022,2207-00447,0.00,1525.20,R,Aegis Care Solutions Ltd,No
Http://opendatacommunities.org/id/metropolitan-district-council/leeds,Leeds City Council,31/07/2022,Adults and Health,Services For Adults Under 65 Mental/Dis,Agency Payments,Home Care,568,29/07/2022,2207-00448,0.00,1011.00,R,Aegis Care Solutions Ltd,No
Http://opendatacommunities.org/id/metropolitan-district-council/leeds,Leeds City Council,31/07/2022,Adults and Health,Services For Adults Under 65 Mental/Dis,Agency Payments,Home Care,568,29/07/2022,2207-00449,0.00,249.20,R,Aegis Care Solutions Ltd,No
Http://opendatacommunities.org/id/metropolitan-district-council/leeds,Leeds City Council,31/07/2022,City Development,Employment & Skills,Supplies and Services,Conference Meetings,253,22/07/2022,2207-00450,0.00,238.00,R,aelp Association of Employment,No
Http://opendatacommunities.org/id/metropolitan-district-council/leeds,Leeds City Council as Accountable Body,31/07/2022,Social Services Pooled Budgets,Jcs For People With Learning Disabilitie,Agency Payments,Day Centre,564,08/07/2022,2207-00451,0.00,15665.88,R,Affinity Trust,No
Http://opendatacommunities.org/id/metropolitan-district-council/leeds,Leeds City Council,31/07/2022,Adults and Health,Assessment And Care Management,Agency Payments,Home Care,568,12/07/2022,2207-00452,0.00,687.10,R,Affinity Trust,No
Http://opendatacommunities.org/id/metropolitan-district-council/leeds,Leeds City Council as Accountable Body,31/07/2022,Social Services Pooled Budgets,Jcs For People With Learning Disabilitie,Agency Payments,Day Centre,564,13/07/2022,2207-00453,0.00,1636.47,R,Affinity Trust,No
Http://opendatacommunities.org/id/metropolitan-district-council/leeds,Leeds City Council as Accountable Body,31/07/2022,Social Services Pooled Budgets,Jcs For People With Learning Disabilitie,Agency Payments,Day Centre,564,15/07/2022,2207-00454,0.00,22275.23,R,Affinity Trust,No
Http://opendatacommunities.org/id/metropolitan-district-council/leeds,Leeds City Council as Accountable Body,31/07/2022,Social Services Pooled Budgets,Jcs For People With Learning Disabilitie,Agency Payments,Day Centre,564,21/07/2022,2207-00455,0.00,13384.83,R,Affinity Trust,No
Http://opendatacommunities.org/id/metropolitan-district-council/leeds,Leeds City Council,31/07/2022,Adults and Health,Assessment And Care Management,Agency Payments,Home Care,568,21/07/2022,2207-00456,0.00,709.60,R,Affinity Trust,No
Http://opendatacommunities.org/id/metropolitan-district-council/leeds,Leeds City Council,31/07/2022,Adults and Health,Services For Older People - 65 And Over,Agency Payments,Home Care,568,21/07/2022,2207-00457,0.00,496.72,R,Affinity Trust,No
Http://opendatacommunities.org/id/metropolitan-district-council/leeds,Leeds City Council as Accountable Body,31/07/2022,Social Services Pooled Budgets,Jcs For People With Learning Disabilitie,Agency Payments,Day Centre,564,21/07/2022,2207-00458,0.00,3264.16,R,Affinity Trust,No
Http://opendatacommunities.org/id/metropolitan-district-council/leeds,Leeds City Council,31/07/2022,Adults and Health,Services For Adults Under 65 Mental/Dis,Agency Payments,Home Care,568,21/07/2022,2207-00459,0.00,141.92,R,Affinity Trust,No
Http://opendatacommunities.org/id/metropolitan-district-council/leeds,Leeds City Council as Accountable Body,31/07/2022,Social Services Pooled Budgets,Jcs For People With Learning Disabilitie,Agency Payments,Sheltered Accommodation,569,20/07/2022,2207-00460,0.00,117081.01,R,Affinity Trust North Divisional Office,No
Http://opendatacommunities.org/id/metropolitan-district-council/leeds,Leeds City Council,31/07/2022,Communities Housing and Environment,Parks and Countryside,Transport,Hire Of Movable Plant & Machinery,315,20/06/2022,2207-00461,0.00,3800.00,R,Afi Uplift,Yes
Http://opendatacommunities.org/id/metropolitan-district-council/leeds,Leeds City Council,31/07/2022,Adults and Health,Services For Older People - 65 And Over,Agency Payments,Payments To Voluntary Organisations,561,01/07/2022,2207-00462,0.00,10246.42,R,Age Uk Leeds,No
Http://opendatacommunities.org/id/metropolitan-district-council/leeds,Leeds City Council,31/07/2022,Communities Housing and Environment,Benefits Welfare and Poverty,Supplies and Services,Grant Related Expenditure,290,20/07/2022,2207-00463,0.00,25000.00,R,Age Uk Leeds,No
Http://opendatacommunities.org/id/metropolitan-district-council/leeds,Leeds City Council,31/07/2022,City Development,Highways,Supplies and Services,Operational Materials,205,01/07/2022,2207-00464,0.00,7884.10,R,AGGREGATE INDUSTRIES UK LTD,No
Http://opendatacommunities.org/id/metropolitan-district-council/leeds,Leeds City Council,31/07/2022,City Development,Highways,Supplies and Services,Operational Materials,205,01/07/2022,2207-00465,0.00,8069.14,R,AGGREGATE INDUSTRIES UK LTD,No
Http://opendatacommunities.org/id/metropolitan-district-council/leeds,Leeds City Council,31/07/2022,City Development,Highways,Supplies and Services,Operational Materials,205,01/07/2022,2207-00466,0.00,1096.39,R,AGGREGATE INDUSTRIES UK LTD,No
Http://opendatacommunities.org/id/metropolitan-district-council/leeds,Leeds City Council,31/07/2022,City Development,Highways,Supplies and Services,Operational Materials,205,01/07/2022,2207-00467,0.00,651.14,R,AGGREGATE INDUSTRIES UK LTD,No
Http://opendatacommunities.org/id/metropolitan-district-council/leeds,Leeds City Council,31/07/2022,City Development,Highways,Supplies and Services,Operational Materials,205,08/07/2022,2207-00468,0.00,2064.81,R,AGGREGATE INDUSTRIES UK LTD,No
Http://opendatacommunities.org/id/metropolitan-district-council/leeds,Leeds City Council,31/07/2022,City Development,Highways,Supplies and Services,Operational Materials,205,08/07/2022,2207-00469,0.00,1959.95,R,AGGREGATE INDUSTRIES UK LTD,No
Http://opendatacommunities.org/id/metropolitan-district-council/leeds,Leeds City Council,31/07/2022,City Development,Highways,Supplies and Services,Operational Materials,205,08/07/2022,2207-00470,0.00,2608.90,R,AGGREGATE INDUSTRIES UK LTD,No
Http://opendatacommunities.org/id/metropolitan-district-council/leeds,Leeds City Council,31/07/2022,City Development,Highways,Supplies and Services,Operational Materials,205,08/07/2022,2207-00471,0.00,50.00,R,AGGREGATE INDUSTRIES UK LTD,No
Http://opendatacommunities.org/id/metropolitan-district-council/leeds,Leeds City Council,31/07/2022,City Development,Highways,Supplies and Services,Operational Materials,205,08/07/2022,2207-00472,0.00,2084.10,R,AGGREGATE INDUSTRIES UK LTD,No
Http://opendatacommunities.org/id/metropolitan-district-council/leeds,Leeds City Council,31/07/2022,City Development,Highways,Supplies and Services,Operational Materials,205,13/07/2022,2207-00473,0.00,385.00,R,AGGREGATE INDUSTRIES UK LTD,No
Http://opendatacommunities.org/id/metropolitan-district-council/leeds,Leeds City Council,31/07/2022,City Development,Highways,Supplies and Services,Operational Materials,205,13/07/2022,2207-00474,0.00,660.00,R,AGGREGATE INDUSTRIES UK LTD,No
Http://opendatacommunities.org/id/metropolitan-district-council/leeds,Leeds City Council,31/07/2022,City Development,Highways,Supplies and Services,Operational Materials,205,13/07/2022,2207-00475,0.00,942.97,R,AGGREGATE INDUSTRIES UK LTD,No
Http://opendatacommunities.org/id/metropolitan-district-council/leeds,Leeds City Council,31/07/2022,City Development,Highways,Supplies and Services,Operational Materials,205,13/07/2022,2207-00476,0.00,87.60,R,AGGREGATE INDUSTRIES UK LTD,No
Http://opendatacommunities.org/id/metropolitan-district-council/leeds,Leeds City Council,31/07/2022,City Development,Highways,Supplies and Services,Operational Materials,205,15/07/2022,2207-00477,0.00,3047.28,R,AGGREGATE INDUSTRIES UK LTD,No
Http://opendatacommunities.org/id/metropolitan-district-council/leeds,Leeds City Council,31/07/2022,City Development,Highways,Supplies and Services,Operational Materials,205,15/07/2022,2207-00478,0.00,75.00,R,AGGREGATE INDUSTRIES UK LTD,No
Http://opendatacommunities.org/id/metropolitan-district-council/leeds,Leeds City Council,31/07/2022,City Development,Highways,Supplies and Services,Operational Materials,205,15/07/2022,2207-00479,0.00,50.00,R,AGGREGATE INDUSTRIES UK LTD,No
Http://opendatacommunities.org/id/metropolitan-district-council/leeds,Leeds City Council,31/07/2022,City Development,Highways,Supplies and Services,Operational Materials,205,15/07/2022,2207-00480,0.00,1030.76,R,AGGREGATE INDUSTRIES UK LTD,No
Http://opendatacommunities.org/id/metropolitan-district-council/leeds,Leeds City Council,31/07/2022,City Development,Highways,Supplies and Services,Operational Materials,205,15/07/2022,2207-00481,0.00,1436.10,R,AGGREGATE INDUSTRIES UK LTD,No
Http://opendatacommunities.org/id/metropolitan-district-council/leeds,Leeds City Council,31/07/2022,City Development,Highways,Supplies and Services,Operational Materials,205,15/07/2022,2207-00482,0.00,1309.85,R,AGGREGATE INDUSTRIES UK LTD,No
Http://opendatacommunities.org/id/metropolitan-district-council/leeds,Leeds City Council,31/07/2022,City Development,Highways,Supplies and Services,Operational Materials,205,15/07/2022,2207-00483,0.00,2364.81,R,AGGREGATE INDUSTRIES UK LTD,No
Http://opendatacommunities.org/id/metropolitan-district-council/leeds,Leeds City Council,31/07/2022,City Development,Highways,Supplies and Services,Operational Materials,205,20/07/2022,2207-00484,0.00,3197.73,R,AGGREGATE INDUSTRIES UK LTD,No
Http://opendatacommunities.org/id/metropolitan-district-council/leeds,Leeds City Council,31/07/2022,City Development,Highways,Supplies and Services,Operational Materials,205,20/07/2022,2207-00485,0.00,782.23,R,AGGREGATE INDUSTRIES UK LTD,No
Http://opendatacommunities.org/id/metropolitan-district-council/leeds,Leeds City Council,31/07/2022,City Development,Highways,Supplies and Services,Operational Materials,205,21/07/2022,2207-00486,0.00,723.28,R,AGGREGATE INDUSTRIES UK LTD,No
Http://opendatacommunities.org/id/metropolitan-district-council/leeds,Leeds City Council,31/07/2022,City Development,Highways,Supplies and Services,Operational Materials,205,21/07/2022,2207-00487,0.00,7884.10,R,AGGREGATE INDUSTRIES UK LTD,No
Http://opendatacommunities.org/id/metropolitan-district-council/leeds,Leeds City Council,31/07/2022,City Development,Highways,Supplies and Services,Operational Materials,205,21/07/2022,2207-00488,0.00,25.00,R,AGGREGATE INDUSTRIES UK LTD,No
Http://opendatacommunities.org/id/metropolitan-district-council/leeds,Leeds City Council,31/07/2022,City Development,Highways,Supplies and Services,Operational Materials,205,21/07/2022,2207-00489,0.00,876.59,R,AGGREGATE INDUSTRIES UK LTD,No
Http://opendatacommunities.org/id/metropolitan-district-council/leeds,Leeds City Council,31/07/2022,City Development,Highways,Supplies and Services,Operational Materials,205,21/07/2022,2207-00490,0.00,4733.68,R,AGGREGATE INDUSTRIES UK LTD,No
Http://opendatacommunities.org/id/metropolitan-district-council/leeds,Leeds City Council,31/07/2022,City Development,Highways,Supplies and Services,Operational Materials,205,21/07/2022,2207-00491,0.00,3405.98,R,AGGREGATE INDUSTRIES UK LTD,No
Http://opendatacommunities.org/id/metropolitan-district-council/leeds,Leeds City Council,31/07/2022,City Development,Highways,Supplies and Services,Operational Materials,205,22/07/2022,2207-00492,0.00,3281.44,R,AGGREGATE INDUSTRIES UK LTD,No
Http://opendatacommunities.org/id/metropolitan-district-council/leeds,Leeds City Council,31/07/2022,City Development,Highways,Supplies and Services,Operational Materials,205,22/07/2022,2207-00493,0.00,7250.16,R,AGGREGATE INDUSTRIES UK LTD,No
Http://opendatacommunities.org/id/metropolitan-district-council/leeds,Leeds City Council,31/07/2022,City Development,Highways,Supplies and Services,Operational Materials,205,28/07/2022,2207-00494,0.00,5976.56,R,AGGREGATE INDUSTRIES UK LTD,No
Http://opendatacommunities.org/id/metropolitan-district-council/leeds,Leeds City Council,31/07/2022,City Development,Highways,Supplies and Services,Operational Materials,205,28/07/2022,2207-00495,0.00,75.00,R,AGGREGATE INDUSTRIES UK LTD,No
Http://opendatacommunities.org/id/metropolitan-district-council/leeds,Leeds City Council,31/07/2022,City Development,Highways,Supplies and Services,Operational Materials,205,28/07/2022,2207-00496,0.00,200.00,R,AGGREGATE INDUSTRIES UK LTD,No
Http://opendatacommunities.org/id/metropolitan-district-council/leeds,Leeds City Council,31/07/2022,City Development,Highways,Supplies and Services,Operational Materials,205,28/07/2022,2207-00497,0.00,100.00,R,AGGREGATE INDUSTRIES UK LTD,No
Http://opendatacommunities.org/id/metropolitan-district-council/leeds,Leeds City Council,31/07/2022,City Development,Highways,Supplies and Services,Operational Materials,205,28/07/2022,2207-00498,0.00,96.00,R,AGGREGATE INDUSTRIES UK LTD,No
Http://opendatacommunities.org/id/metropolitan-district-council/leeds,Leeds City Council,31/07/2022,City Development,Highways,Supplies and Services,Operational Materials,205,28/07/2022,2207-00499,0.00,3277.50,R,AGGREGATE INDUSTRIES UK LTD,No
Http://opendatacommunities.org/id/metropolitan-district-council/leeds,Leeds City Council,31/07/2022,City Development,Highways,Supplies and Services,Operational Materials,205,28/07/2022,2207-00500,0.00,157.92,R,AGGREGATE INDUSTRIES UK LTD,No
Http://opendatacommunities.org/id/metropolitan-district-council/leeds,Leeds City Council,31/07/2022,City Development,Highways,Supplies and Services,Operational Materials,205,28/07/2022,2207-00501,0.00,95.76,R,AGGREGATE INDUSTRIES UK LTD,No
Http://opendatacommunities.org/id/metropolitan-district-council/leeds,Leeds City Council,31/07/2022,City Development,Highways,Supplies and Services,Operational Materials,205,28/07/2022,2207-00502,0.00,121.00,R,AGGREGATE INDUSTRIES UK LTD,No
Http://opendatacommunities.org/id/metropolitan-district-council/leeds,Leeds City Council,31/07/2022,City Development,Highways,Supplies and Services,Operational Materials,205,28/07/2022,2207-00503,0.00,3278.81,R,AGGREGATE INDUSTRIES UK LTD,No
Http://opendatacommunities.org/id/metropolitan-district-council/leeds,Leeds City Council,31/07/2022,City Development,Highways,Supplies and Services,Operational Materials,205,28/07/2022,2207-00504,0.00,2995.23,R,AGGREGATE INDUSTRIES UK LTD,No
Http://opendatacommunities.org/id/metropolitan-district-council/leeds,Leeds City Council,31/07/2022,City Development,Highways,Supplies and Services,Operational Materials,205,29/07/2022,2207-00505,0.00,3278.81,R,AGGREGATE INDUSTRIES UK LTD,No
Http://opendatacommunities.org/id/metropolitan-district-council/leeds,Leeds City Council,31/07/2022,City Development,Highways,Supplies and Services,Operational Materials,205,29/07/2022,2207-00506,0.00,261.84,R,AGGREGATE INDUSTRIES UK LTD,No
Http://opendatacommunities.org/id/metropolitan-district-council/leeds,Leeds City Council,31/07/2022,City Development,Highways,Supplies and Services,Operational Materials,205,29/07/2022,2207-00507,0.00,904.50,R,AGGREGATE INDUSTRIES UK LTD,No
Http://opendatacommunities.org/id/metropolitan-district-council/leeds,Leeds City Council,31/07/2022,City Development,Highways,Supplies and Services,Operational Materials,205,29/07/2022,2207-00508,0.00,4770.69,R,AGGREGATE INDUSTRIES UK LTD,No
Http://opendatacommunities.org/id/metropolitan-district-council/leeds,Leeds City Council,31/07/2022,Communities Housing and Environment,Parks and Countryside,Supplies and Services,Operational Materials,205,28/07/2022,2207-00509,0.00,524.00,R,Agrovista UK Ltd,No
Http://opendatacommunities.org/id/metropolitan-district-council/leeds,Leeds City Council,31/07/2022,Communities Housing and Environment,Customer Access,Supplies and Services,Bought In Professional Services,277,07/07/2022,2207-00510,0.00,18.00,R,Ahmed Moustafa Moustafa Mousa,No
Http://opendatacommunities.org/id/metropolitan-district-council/leeds,Leeds City Council,31/07/2022,Communities Housing and Environment,Customer Access,Supplies and Services,Bought In Professional Services,277,20/07/2022,2207-00511,0.00,9.00,R,Ahmed Moustafa Moustafa Mousa,No
Http://opendatacommunities.org/id/metropolitan-district-council/leeds,Leeds City Council,31/07/2022,Communities Housing and Environment,Customer Access,Supplies and Services,Bought In Professional Services,277,20/07/2022,2207-00512,0.00,18.00,R,Ahmed Moustafa Moustafa Mousa,No
Http://opendatacommunities.org/id/metropolitan-district-council/leeds,Leeds City Council,31/07/2022,Communities Housing and Environment,Customer Access,Supplies and Services,Bought In Professional Services,277,27/07/2022,2207-00513,0.00,33.60,R,Ahmed T. Al-Hamdi,No
Http://opendatacommunities.org/id/metropolitan-district-council/leeds,Leeds City Council,31/07/2022,Children and Families,Social Care,Appropriations,Leaving Care Allowances,634,26/07/2022,2207-00514,0.00,118.68,R,REDACTED PERSONAL DATA,No
Http://opendatacommunities.org/id/metropolitan-district-council/leeds,Leeds City Council as Accountable Body,31/07/2022,Social Services Pooled Budgets,Leeds Community Equip Store Pooled Budgt,Supplies and Services,Other Equipment,203,08/07/2022,2207-00515,0.00,2965.00,R,AIDAPT BATHROOMS LTD,No
Http://opendatacommunities.org/id/metropolitan-district-council/leeds,Leeds City Council,31/07/2022,Adults and Health,Services For Older People - 65 And Over,Supplies and Services,'Well Being' Large Grants Projects,230,15/07/2022,2207-00516,0.00,1078.00,R,AIDAPT BATHROOMS LTD,No
Http://opendatacommunities.org/id/metropolitan-district-council/leeds,Leeds City Council as Accountable Body,31/07/2022,Social Services Pooled Budgets,Leeds Community Equip Store Pooled Budgt,Supplies and Services,Other Equipment,203,22/07/2022,2207-00517,0.00,3600.00,R,AIDAPT BATHROOMS LTD,No
Http://opendatacommunities.org/id/metropolitan-district-council/leeds,Leeds City Council as Accountable Body,31/07/2022,Social Services Pooled Budgets,Leeds Community Equip Store Pooled Budgt,Supplies and Services,Other Equipment,203,29/07/2022,2207-00518,0.00,1560.00,R,AIDAPT BATHROOMS LTD,No
Http://opendatacommunities.org/id/metropolitan-district-council/leeds,Leeds City Council,31/07/2022,Children and Families,Social Care,Appropriations,16 Plus Top Up Allowance,625,13/07/2022,2207-00519,0.00,20.00,R,REDACTED PERSONAL DATA,No
Http://opendatacommunities.org/id/metropolitan-district-council/leeds,Leeds City Council,31/07/2022,Communities Housing and Environment,Strategic Housing Partnership & Support,Supplies and Services,Other Hired And Contracted Services,265,14/07/2022,2207-00520,0.00,9300.00,R,Aileen Hayman,No
Http://opendatacommunities.org/id/metropolitan-district-council/leeds,Leeds City Council,31/07/2022,Resources,Leeds Building Services,Premises,Cleaning Maintenance & Toiletries,127,27/07/2022,2207-00521,0.00,1095.94,R,Air Conditioning Accessories,No
Http://opendatacommunities.org/id/metropolitan-district-council/leeds,Leeds City Council,31/07/2022,Resources,Leeds Building Services,Premises,Cleaning Maintenance & Toiletries,127,27/07/2022,2207-00522,0.00,487.97,R,Air Conditioning Accessories,No
Http://opendatacommunities.org/id/metropolitan-district-council/leeds,Leeds City Council,31/07/2022,Resources,Commercial Services,Supplies and Services,Operational Materials,205,28/06/2022,2207-00523,0.00,300.00,R,Air Force Pneumatics And,Yes
Http://opendatacommunities.org/id/metropolitan-district-council/leeds,Leeds City Council,31/07/2022,Children and Families,Social Care,Agency Payments,Placement Support,550,10/06/2022,2207-00524,0.00,440.83,R,Airbnb * Hm2f2sdbpk,Yes
Http://opendatacommunities.org/id/metropolitan-district-council/leeds,Leeds City Council,31/07/2022,City Development,Libraries Arts & Heritage,Supplies and Services,Conference Meetings,253,14/06/2022,2207-00525,0.00,445.50,R,Airbnb * Hm2zbmweqw,Yes
Http://opendatacommunities.org/id/metropolitan-district-council/leeds,Leeds City Council,31/07/2022,Children and Families,Social Care,Supplies and Services,Holidays-  Service Users,284,08/06/2022,2207-00526,0.00,865.36,R,Airbnb * Hm9ntma8c2,Yes
Http://opendatacommunities.org/id/metropolitan-district-council/leeds,Leeds City Council,31/07/2022,City Development,Libraries Arts & Heritage,Transport,Public Transport Expenses,310,28/06/2022,2207-00527,0.00,270.00,R,Airbnb * Hmc9f2tydr,Yes
Http://opendatacommunities.org/id/metropolitan-district-council/leeds,Leeds City Council,31/07/2022,Children and Families,Social Care,Transport,Public Transport Expenses,310,01/06/2022,2207-00528,0.00,497.50,R,Airbnb * Hmrkzc55nb,Yes
Http://opendatacommunities.org/id/metropolitan-district-council/leeds,Leeds City Council,31/07/2022,Children and Families,Social Care,Transport,Public Transport Expenses,310,06/06/2022,2207-00529,0.00,222.62,R,Airbnb * Hmrkzc55nb,Yes
Http://opendatacommunities.org/id/metropolitan-district-council/leeds,Leeds City Council,31/07/2022,City Development,Economic Development,Transport,Miscellaneous Transport Related Costs,324,24/06/2022,2207-00530,0.00,3180.00,R,Airdna Llc,Yes
Http://opendatacommunities.org/id/metropolitan-district-council/leeds,Leeds City Council,31/07/2022,City Development,Libraries Arts & Heritage,Supplies and Services,Non-Recurring Grants,227,19/07/2022,2207-00531,0.00,1080.00,R,Aire Place Studios CIC,No
Http://opendatacommunities.org/id/metropolitan-district-council/leeds,Leeds City Council,31/07/2022,Communities Housing and Environment,Parks and Countryside,Supplies and Services,Other Hired And Contracted Services,265,29/07/2022,2207-00532,0.00,541.00,R,Aire Valley Tree Services Ltd,No
Http://opendatacommunities.org/id/metropolitan-district-council/leeds,Leeds City Council,31/07/2022,Communities Housing and Environment,Parks and Countryside,Supplies and Services,Other Hired And Contracted Services,265,29/07/2022,2207-00533,0.00,2122.00,R,Aire Valley Tree Services Ltd,No
Http://opendatacommunities.org/id/metropolitan-district-council/leeds,Leeds City Council,31/07/2022,Adults and Health,Services For Older People - 65 And Over,Agency Payments,Residential Care Dementia,571,20/07/2022,2207-00534,0.00,48402.78,R,Aire View Residential Home,No
Http://opendatacommunities.org/id/metropolitan-district-council/leeds,Leeds City Council,31/07/2022,Adults and Health,Services For Older People - 65 And Over,Agency Payments,Residential,580,20/07/2022,2207-00535,0.00,5678.61,R,Aire View Residential Home,No
Http://opendatacommunities.org/id/metropolitan-district-council/leeds,Leeds City Council,31/07/2022,Resources,Commercial Services,Premises,Fixtures & Fittings,131,22/07/2022,2207-00536,0.00,19075.00,R,AIREDALE CATERING EQUIPMENT LTD,No
Http://opendatacommunities.org/id/metropolitan-district-council/leeds,Leeds City Council,31/07/2022,Adults and Health,Assessment And Care Management,Agency Payments,Residential,580,20/07/2022,2207-00537,0.00,1776.20,R,Airedale Residential Home,No
Http://opendatacommunities.org/id/metropolitan-district-council/leeds,Leeds City Council,31/07/2022,Adults and Health,Services For Older People - 65 And Over,Agency Payments,Residential Care Dementia,571,20/07/2022,2207-00538,0.00,16697.57,R,Airedale Residential Home,No
Http://opendatacommunities.org/id/metropolitan-district-council/leeds,Leeds City Council,31/07/2022,Adults and Health,Services For Older People - 65 And Over,Agency Payments,Residential,580,20/07/2022,2207-00539,0.00,27970.52,R,Airedale Residential Home,No
Http://opendatacommunities.org/id/metropolitan-district-council/leeds,Leeds City Council,31/07/2022,Adults and Health,Services For Older People Under 65 P/Dis,Agency Payments,Residential,580,20/07/2022,2207-00540,0.00,2185.97,R,Airedale Residential Home,No
Http://opendatacommunities.org/id/metropolitan-district-council/leeds,Leeds City Council,31/07/2022,Communities Housing and Environment,Parks and Countryside,Supplies and Services,Other Hired And Contracted Services,265,14/07/2022,2207-00541,0.00,2045.80,R,Airedon Limited,No
Http://opendatacommunities.org/id/metropolitan-district-council/leeds,Leeds City Council,31/07/2022,Communities Housing and Environment,Community Safety,Supplies and Services,Bought In Professional Services,277,05/07/2022,2207-00542,0.00,1044.80,R,AIRWAVE SOLUTIONS LTD,No
Http://opendatacommunities.org/id/metropolitan-district-council/leeds,Leeds City Council,31/07/2022,Children and Families,Social Care,Agency Payments,Section 17,551,14/07/2022,2207-00543,0.00,30.57,R,REDACTED PERSONAL DATA,No
Http://opendatacommunities.org/id/metropolitan-district-council/leeds,Leeds City Council,31/07/2022,Adults and Health,Social Services Support Services,Internal Recharges,Legal Disbursements,411,15/07/2022,2207-00544,0.00,850.00,R,Aisling Campbell,No
Http://opendatacommunities.org/id/metropolitan-district-council/leeds,Leeds City Council,31/07/2022,Adults and Health,Services For Adults Under 65 Mental/Dis,Agency Payments,Fees - Level 4,520,05/07/2022,2207-00545,0.00,175.00,R,AIT Mitra Limited,No
Http://opendatacommunities.org/id/metropolitan-district-council/leeds,Leeds City Council,31/07/2022,Adults and Health,Services For Adults Under 65 Mental/Dis,Agency Payments,Fees - Level 4,520,13/07/2022,2207-00546,0.00,175.00,R,AIT Mitra Limited,No
Http://opendatacommunities.org/id/metropolitan-district-council/leeds,Leeds City Council,31/07/2022,Adults and Health,Services For Adults Under 65 Mental/Dis,Agency Payments,Fees - Level 4,520,13/07/2022,2207-00547,0.00,175.00,R,AIT Mitra Limited,No
Http://opendatacommunities.org/id/metropolitan-district-council/leeds,Leeds City Council,31/07/2022,Adults and Health,Services For Adults Under 65 Mental/Dis,Agency Payments,Fees - Level 4,520,13/07/2022,2207-00548,0.00,175.00,R,AIT Mitra Limited,No
Http://opendatacommunities.org/id/metropolitan-district-council/leeds,Leeds City Council,31/07/2022,Adults and Health,Services For Adults Under 65 Mental/Dis,Agency Payments,Fees - Level 4,520,15/07/2022,2207-00549,0.00,175.00,R,AIT Mitra Limited,No
Http://opendatacommunities.org/id/metropolitan-district-council/leeds,Leeds City Council,31/07/2022,Adults and Health,Services For Adults Under 65 Mental/Dis,Agency Payments,Fees - Level 4,520,20/07/2022,2207-00550,0.00,175.00,R,AIT Mitra Limited,No
Http://opendatacommunities.org/id/metropolitan-district-council/leeds,Leeds City Council,31/07/2022,Adults and Health,Services For Adults Under 65 Mental/Dis,Agency Payments,Fees - Level 4,520,22/07/2022,2207-00551,0.00,175.00,R,AIT Mitra Limited,No
Http://opendatacommunities.org/id/metropolitan-district-council/leeds,Leeds City Council,31/07/2022,Adults and Health,Services For Adults Under 65 Mental/Dis,Agency Payments,Fees - Level 4,520,22/07/2022,2207-00552,0.00,175.00,R,AIT Mitra Limited,No
Http://opendatacommunities.org/id/metropolitan-district-council/leeds,Leeds City Council,31/07/2022,Adults and Health,Services For Adults Under 65 Mental/Dis,Agency Payments,Fees - Level 4,520,27/07/2022,2207-00553,0.00,175.00,R,AIT Mitra Limited,No
Http://opendatacommunities.org/id/metropolitan-district-council/leeds,Leeds City Council,31/07/2022,Adults and Health,Services For Adults Under 65 Mental/Dis,Agency Payments,Fees - Level 4,520,29/07/2022,2207-00554,0.00,175.00,R,AIT Mitra Limited,No
Http://opendatacommunities.org/id/metropolitan-district-council/leeds,Leeds City Council as Accountable Body,31/07/2022,Social Services Pooled Budgets,Jcs For People With Learning Disabilitie,Agency Payments,Residential,580,20/07/2022,2207-00555,0.00,7082.20,R,AITCH care homes,No
Http://opendatacommunities.org/id/metropolitan-district-council/leeds,Leeds City Council,31/07/2022,Communities Housing and Environment,Parks and Countryside,Supplies and Services,Operational Materials,205,23/06/2022,2207-00556,0.00,240.71,R,Aitkens Sportsturf Limite,Yes
Http://opendatacommunities.org/id/metropolitan-district-council/leeds,Leeds City Council,31/07/2022,Resources,Commercial Services,Supplies and Services,Other Hired And Contracted Services,265,21/07/2022,2207-00557,0.00,300.00,R,REDACTED PERSONAL DATA,No
Http://opendatacommunities.org/id/metropolitan-district-council/leeds,Leeds City Council,31/07/2022,Resources,Leeds Building Services,Premises,Cleaning Maintenance & Toiletries,127,07/07/2022,2207-00558,0.00,253.29,R,AJM FIXINGS & POWER TOOLS LTD,No
Http://opendatacommunities.org/id/metropolitan-district-council/leeds,Leeds City Council,31/07/2022,Resources,Leeds Building Services,Supplies and Services,Operational Furniture And Equipment,203,07/07/2022,2207-00559,0.00,9.52,R,AJM FIXINGS & POWER TOOLS LTD,No
Http://opendatacommunities.org/id/metropolitan-district-council/leeds,Leeds City Council,31/07/2022,Resources,Leeds Building Services,Premises,Cleaning Maintenance & Toiletries,127,07/07/2022,2207-00560,0.00,323.70,R,AJM FIXINGS & POWER TOOLS LTD,No
Http://opendatacommunities.org/id/metropolitan-district-council/leeds,Leeds City Council,31/07/2022,Resources,Leeds Building Services,Supplies and Services,Operational Materials,205,07/07/2022,2207-00561,0.00,323.70,R,AJM FIXINGS & POWER TOOLS LTD,No
Http://opendatacommunities.org/id/metropolitan-district-council/leeds,Leeds City Council,31/07/2022,Resources,Leeds Building Services,Supplies and Services,Operational Furniture And Equipment,203,07/07/2022,2207-00562,0.00,725.55,R,AJM FIXINGS & POWER TOOLS LTD,No
Http://opendatacommunities.org/id/metropolitan-district-council/leeds,Leeds City Council,31/07/2022,Resources,Leeds Building Services,Supplies and Services,Operational Furniture And Equipment,203,07/07/2022,2207-00563,0.00,359.16,R,AJM FIXINGS & POWER TOOLS LTD,No
Http://opendatacommunities.org/id/metropolitan-district-council/leeds,Leeds City Council,31/07/2022,Resources,Leeds Building Services,Supplies and Services,Operational Furniture And Equipment,203,07/07/2022,2207-00564,0.00,209.00,R,AJM FIXINGS & POWER TOOLS LTD,No
Http://opendatacommunities.org/id/metropolitan-district-council/leeds,Leeds City Council,31/07/2022,Resources,Leeds Building Services,Supplies and Services,Operational Furniture And Equipment,203,07/07/2022,2207-00565,0.00,209.00,R,AJM FIXINGS & POWER TOOLS LTD,No
Http://opendatacommunities.org/id/metropolitan-district-council/leeds,Leeds City Council,31/07/2022,Resources,Leeds Building Services,Premises,Cleaning Maintenance & Toiletries,127,07/07/2022,2207-00566,0.00,150.00,R,AJM FIXINGS & POWER TOOLS LTD,No
Http://opendatacommunities.org/id/metropolitan-district-council/leeds,Leeds City Council,31/07/2022,Resources,Leeds Building Services,Supplies and Services,Operational Furniture And Equipment,203,07/07/2022,2207-00567,0.00,2901.14,R,AJM FIXINGS & POWER TOOLS LTD,No
Http://opendatacommunities.org/id/metropolitan-district-council/leeds,Leeds City Council,31/07/2022,Resources,Leeds Building Services,Premises,Cleaning Maintenance & Toiletries,127,07/07/2022,2207-00568,0.00,175.00,R,AJM FIXINGS & POWER TOOLS LTD,No
Http://opendatacommunities.org/id/metropolitan-district-council/leeds,Leeds City Council,31/07/2022,Resources,Leeds Building Services,Premises,Cleaning Maintenance & Toiletries,127,07/07/2022,2207-00569,0.00,29.05,R,AJM FIXINGS & POWER TOOLS LTD,No
Http://opendatacommunities.org/id/metropolitan-district-council/leeds,Leeds City Council,31/07/2022,Resources,Leeds Building Services,Premises,Cleaning Maintenance & Toiletries,127,07/07/2022,2207-00570,0.00,161.60,R,AJM FIXINGS & POWER TOOLS LTD,No
Http://opendatacommunities.org/id/metropolitan-district-council/leeds,Leeds City Council,31/07/2022,Resources,Leeds Building Services,Premises,Cleaning Maintenance & Toiletries,127,18/07/2022,2207-00571,0.00,106.56,R,AJM FIXINGS & POWER TOOLS LTD,No
Http://opendatacommunities.org/id/metropolitan-district-council/leeds,Leeds City Council,31/07/2022,Resources,Leeds Building Services,Supplies and Services,Operational Furniture And Equipment,203,18/07/2022,2207-00572,0.00,109.12,R,AJM FIXINGS & POWER TOOLS LTD,No
Http://opendatacommunities.org/id/metropolitan-district-council/leeds,Leeds City Council,31/07/2022,Resources,Leeds Building Services,Supplies and Services,Operational Furniture And Equipment,203,18/07/2022,2207-00573,0.00,840.11,R,AJM FIXINGS & POWER TOOLS LTD,No
Http://opendatacommunities.org/id/metropolitan-district-council/leeds,Leeds City Council,31/07/2022,Resources,Leeds Building Services,Supplies and Services,Operational Furniture And Equipment,203,18/07/2022,2207-00574,0.00,116.00,R,AJM FIXINGS & POWER TOOLS LTD,No
Http://opendatacommunities.org/id/metropolitan-district-council/leeds,Leeds City Council,31/07/2022,Resources,Leeds Building Services,Supplies and Services,Operational Furniture And Equipment,203,18/07/2022,2207-00575,0.00,270.79,R,AJM FIXINGS & POWER TOOLS LTD,No
Http://opendatacommunities.org/id/metropolitan-district-council/leeds,Leeds City Council,31/07/2022,Resources,Leeds Building Services,Premises,Cleaning Maintenance & Toiletries,127,18/07/2022,2207-00576,0.00,325.00,R,AJM FIXINGS & POWER TOOLS LTD,No
Http://opendatacommunities.org/id/metropolitan-district-council/leeds,Leeds City Council,31/07/2022,Resources,Leeds Building Services,Supplies and Services,Operational Furniture And Equipment,203,18/07/2022,2207-00577,0.00,1159.98,R,AJM FIXINGS & POWER TOOLS LTD,No
Http://opendatacommunities.org/id/metropolitan-district-council/leeds,Leeds City Council,31/07/2022,Resources,Leeds Building Services,Supplies and Services,Operational Materials,205,18/07/2022,2207-00578,0.00,571.00,R,AJM FIXINGS & POWER TOOLS LTD,No
Http://opendatacommunities.org/id/metropolitan-district-council/leeds,Leeds City Council,31/07/2022,Resources,Leeds Building Services,Premises,Cleaning Maintenance & Toiletries,127,18/07/2022,2207-00579,0.00,328.80,R,AJM FIXINGS & POWER TOOLS LTD,No
Http://opendatacommunities.org/id/metropolitan-district-council/leeds,Leeds City Council,31/07/2022,Resources,Leeds Building Services,Premises,Cleaning Maintenance & Toiletries,127,18/07/2022,2207-00580,0.00,231.00,R,AJM FIXINGS & POWER TOOLS LTD,No
Http://opendatacommunities.org/id/metropolitan-district-council/leeds,Leeds City Council,31/07/2022,Resources,Leeds Building Services,Premises,Cleaning Maintenance & Toiletries,127,18/07/2022,2207-00581,0.00,169.90,R,AJM FIXINGS & POWER TOOLS LTD,No
Http://opendatacommunities.org/id/metropolitan-district-council/leeds,Leeds City Council,31/07/2022,Resources,Leeds Building Services,Supplies and Services,Operational Furniture And Equipment,203,18/07/2022,2207-00582,0.00,265.00,R,AJM FIXINGS & POWER TOOLS LTD,No
Http://opendatacommunities.org/id/metropolitan-district-council/leeds,Leeds City Council,31/07/2022,Resources,Leeds Building Services,Supplies and Services,Operational Furniture And Equipment,203,18/07/2022,2207-00583,0.00,209.00,R,AJM FIXINGS & POWER TOOLS LTD,No
Http://opendatacommunities.org/id/metropolitan-district-council/leeds,Leeds City Council,31/07/2022,Resources,Leeds Building Services,Supplies and Services,Operational Furniture And Equipment,203,18/07/2022,2207-00584,0.00,259.00,R,AJM FIXINGS & POWER TOOLS LTD,No
Http://opendatacommunities.org/id/metropolitan-district-council/leeds,Leeds City Council,31/07/2022,Resources,Leeds Building Services,Supplies and Services,Operational Furniture And Equipment,203,18/07/2022,2207-00585,0.00,512.29,R,AJM FIXINGS & POWER TOOLS LTD,No
Http://opendatacommunities.org/id/metropolitan-district-council/leeds,Leeds City Council,31/07/2022,Resources,Leeds Building Services,Supplies and Services,Operational Furniture And Equipment,203,18/07/2022,2207-00586,0.00,7205.00,R,AJM FIXINGS & POWER TOOLS LTD,No
Http://opendatacommunities.org/id/metropolitan-district-council/leeds,Leeds City Council,31/07/2022,Resources,Leeds Building Services,Premises,Cleaning Maintenance & Toiletries,127,18/07/2022,2207-00587,0.00,238.98,R,AJM FIXINGS & POWER TOOLS LTD,No
Http://opendatacommunities.org/id/metropolitan-district-council/leeds,Leeds City Council,31/07/2022,Resources,Leeds Building Services,Supplies and Services,Operational Furniture And Equipment,203,18/07/2022,2207-00588,0.00,1407.24,R,AJM FIXINGS & POWER TOOLS LTD,No
Http://opendatacommunities.org/id/metropolitan-district-council/leeds,Leeds City Council,31/07/2022,Resources,Leeds Building Services,Supplies and Services,Operational Furniture And Equipment,203,18/07/2022,2207-00589,0.00,54.56,R,AJM FIXINGS & POWER TOOLS LTD,No
Http://opendatacommunities.org/id/metropolitan-district-council/leeds,Leeds City Council,31/07/2022,Resources,Leeds Building Services,Supplies and Services,Operational Furniture And Equipment,203,18/07/2022,2207-00590,0.00,605.00,R,AJM FIXINGS & POWER TOOLS LTD,No
Http://opendatacommunities.org/id/metropolitan-district-council/leeds,Leeds City Council,31/07/2022,Resources,Leeds Building Services,Supplies and Services,Operational Furniture And Equipment,203,18/07/2022,2207-00591,0.00,1450.57,R,AJM FIXINGS & POWER TOOLS LTD,No
Http://opendatacommunities.org/id/metropolitan-district-council/leeds,Leeds City Council,31/07/2022,Resources,Leeds Building Services,Supplies and Services,Operational Furniture And Equipment,203,18/07/2022,2207-00592,0.00,1476.94,R,AJM FIXINGS & POWER TOOLS LTD,No
Http://opendatacommunities.org/id/metropolitan-district-council/leeds,Leeds City Council,31/07/2022,Resources,Leeds Building Services,Supplies and Services,Operational Furniture And Equipment,203,18/07/2022,2207-00593,0.00,47.99,R,AJM FIXINGS & POWER TOOLS LTD,No
Http://opendatacommunities.org/id/metropolitan-district-council/leeds,Leeds City Council,31/07/2022,Resources,Leeds Building Services,Supplies and Services,Operational Materials,205,18/07/2022,2207-00594,0.00,53.90,R,AJM FIXINGS & POWER TOOLS LTD,No
Http://opendatacommunities.org/id/metropolitan-district-council/leeds,Leeds City Council,31/07/2022,Resources,Leeds Building Services,Premises,Cleaning Maintenance & Toiletries,127,18/07/2022,2207-00595,0.00,47.08,R,AJM FIXINGS & POWER TOOLS LTD,No
Http://opendatacommunities.org/id/metropolitan-district-council/leeds,Leeds City Council,31/07/2022,Resources,Leeds Building Services,Supplies and Services,Operational Furniture And Equipment,203,20/07/2022,2207-00596,0.00,1450.57,R,AJM FIXINGS & POWER TOOLS LTD,No
Http://opendatacommunities.org/id/metropolitan-district-council/leeds,Leeds City Council,31/07/2022,Resources,Leeds Building Services,Premises,Cleaning Maintenance & Toiletries,127,20/07/2022,2207-00597,0.00,452.82,R,AJM FIXINGS & POWER TOOLS LTD,No
Http://opendatacommunities.org/id/metropolitan-district-council/leeds,Leeds City Council,31/07/2022,Resources,Leeds Building Services,Premises,Cleaning Maintenance & Toiletries,127,20/07/2022,2207-00598,0.00,485.55,R,AJM FIXINGS & POWER TOOLS LTD,No
Http://opendatacommunities.org/id/metropolitan-district-council/leeds,Leeds City Council,31/07/2022,Resources,Leeds Building Services,Premises,Cleaning Maintenance & Toiletries,127,20/07/2022,2207-00599,0.00,309.96,R,AJM FIXINGS & POWER TOOLS LTD,No
Http://opendatacommunities.org/id/metropolitan-district-council/leeds,Leeds City Council,31/07/2022,Resources,Leeds Building Services,Premises,Cleaning Maintenance & Toiletries,127,20/07/2022,2207-00600,0.00,33.82,R,AJM FIXINGS & POWER TOOLS LTD,No
Http://opendatacommunities.org/id/metropolitan-district-council/leeds,Leeds City Council,31/07/2022,Resources,Leeds Building Services,Premises,Cleaning Maintenance & Toiletries,127,20/07/2022,2207-00601,0.00,439.80,R,AJM FIXINGS & POWER TOOLS LTD,No
Http://opendatacommunities.org/id/metropolitan-district-council/leeds,Leeds City Council,31/07/2022,Resources,Leeds Building Services,Supplies and Services,Operational Furniture And Equipment,203,21/07/2022,2207-00602,0.00,260.00,R,AJM FIXINGS & POWER TOOLS LTD,No
Http://opendatacommunities.org/id/metropolitan-district-council/leeds,Leeds City Council,31/07/2022,Resources,Leeds Building Services,Supplies and Services,Operational Furniture And Equipment,203,21/07/2022,2207-00603,0.00,260.00,R,AJM FIXINGS & POWER TOOLS LTD,No
Http://opendatacommunities.org/id/metropolitan-district-council/leeds,Leeds City Council,31/07/2022,Resources,Leeds Building Services,Supplies and Services,Operational Furniture And Equipment,203,21/07/2022,2207-00604,0.00,1710.57,R,AJM FIXINGS & POWER TOOLS LTD,No
Http://opendatacommunities.org/id/metropolitan-district-council/leeds,Leeds City Council,31/07/2022,Resources,Leeds Building Services,Supplies and Services,Operational Furniture And Equipment,203,21/07/2022,2207-00605,0.00,1407.24,R,AJM FIXINGS & POWER TOOLS LTD,No
Http://opendatacommunities.org/id/metropolitan-district-council/leeds,Leeds City Council,31/07/2022,Resources,Leeds Building Services,Premises,Cleaning Maintenance & Toiletries,127,21/07/2022,2207-00606,0.00,303.33,R,AJM FIXINGS & POWER TOOLS LTD,No
Http://opendatacommunities.org/id/metropolitan-district-council/leeds,Leeds City Council,31/07/2022,Resources,Leeds Building Services,Supplies and Services,Operational Furniture And Equipment,203,21/07/2022,2207-00607,0.00,303.33,R,AJM FIXINGS & POWER TOOLS LTD,No
Http://opendatacommunities.org/id/metropolitan-district-council/leeds,Leeds City Council,31/07/2022,Resources,Leeds Building Services,Supplies and Services,Operational Furniture And Equipment,203,27/07/2022,2207-00608,0.00,143.70,R,AJM FIXINGS & POWER TOOLS LTD,No
Http://opendatacommunities.org/id/metropolitan-district-council/leeds,Leeds City Council,31/07/2022,Resources,Leeds Building Services,Premises,Cleaning Maintenance & Toiletries,127,27/07/2022,2207-00609,0.00,151.42,R,AJM FIXINGS & POWER TOOLS LTD,No
Http://opendatacommunities.org/id/metropolitan-district-council/leeds,Leeds City Council,31/07/2022,Resources,Leeds Building Services,Premises,Cleaning Maintenance & Toiletries,127,27/07/2022,2207-00610,0.00,75.00,R,AJM FIXINGS & POWER TOOLS LTD,No
Http://opendatacommunities.org/id/metropolitan-district-council/leeds,Leeds City Council,31/07/2022,Resources,Leeds Building Services,Supplies and Services,Operational Furniture And Equipment,203,27/07/2022,2207-00611,0.00,304.95,R,AJM FIXINGS & POWER TOOLS LTD,No
Http://opendatacommunities.org/id/metropolitan-district-council/leeds,Leeds City Council,31/07/2022,Resources,Leeds Building Services,Premises,Cleaning Maintenance & Toiletries,127,27/07/2022,2207-00612,0.00,62.99,R,AJM FIXINGS & POWER TOOLS LTD,No
Http://opendatacommunities.org/id/metropolitan-district-council/leeds,Leeds City Council,31/07/2022,Resources,Leeds Building Services,Supplies and Services,Operational Furniture And Equipment,203,27/07/2022,2207-00613,0.00,62.99,R,AJM FIXINGS & POWER TOOLS LTD,No
Http://opendatacommunities.org/id/metropolitan-district-council/leeds,Leeds City Council,31/07/2022,Communities Housing and Environment,Strategic Housing Partnership & Support,Capital,CONSTRUCTION,3,22/07/2022,2207-00614,0.00,5995.00,C,AKR Construction Ltd,No
Http://opendatacommunities.org/id/metropolitan-district-council/leeds,Leeds City Council,31/07/2022,Children and Families,Social Care,Agency Payments,Allowances,546,04/07/2022,2207-00615,0.00,100.00,R,REDACTED PERSONAL DATA,No
Http://opendatacommunities.org/id/metropolitan-district-council/leeds,Leeds City Council,31/07/2022,Adults and Health,Services For Older People - 65 And Over,Agency Payments,Payments To Voluntary Organisations,561,01/07/2022,2207-00616,0.00,2700.00,R,Al Khidmat Centre,No
Http://opendatacommunities.org/id/metropolitan-district-council/leeds,Leeds City Council,31/07/2022,Children and Families,Social Care,Appropriations,Leaving Care Allowances,634,08/07/2022,2207-00617,0.00,51.05,R,REDACTED PERSONAL DATA,No
Http://opendatacommunities.org/id/metropolitan-district-council/leeds,Leeds City Council,31/07/2022,Children and Families,Social Care,Appropriations,Leaving Care Allowances,634,15/07/2022,2207-00618,0.00,51.05,R,REDACTED PERSONAL DATA,No
Http://opendatacommunities.org/id/metropolitan-district-council/leeds,Leeds City Council,31/07/2022,Children and Families,Social Care,Appropriations,Leaving Care Allowances,634,22/07/2022,2207-00619,0.00,51.05,R,REDACTED PERSONAL DATA,No
Http://opendatacommunities.org/id/metropolitan-district-council/leeds,Leeds City Council,31/07/2022,Children and Families,Social Care,Appropriations,Leaving Care Allowances,634,29/07/2022,2207-00620,0.00,51.05,R,REDACTED PERSONAL DATA,No
Http://opendatacommunities.org/id/metropolitan-district-council/leeds,Leeds City Council,31/07/2022,Children and Families,Social Care,Agency Payments,Services Rendered By Other Organisations,511,01/07/2022,2207-00621,0.00,372.84,R,REDACTED PERSONAL DATA,No
Http://opendatacommunities.org/id/metropolitan-district-council/leeds,Leeds City Council,31/07/2022,Communities Housing and Environment,Communities,Supplies and Services,Computer Software & Equipment,214,06/07/2022,2207-00622,0.00,1228.33,R,Alcium Software Ltd,No
Http://opendatacommunities.org/id/metropolitan-district-council/leeds,Leeds City Council,31/07/2022,Communities Housing and Environment,Communities,Supplies and Services,Computer Software & Equipment,214,20/07/2022,2207-00623,0.00,1228.33,R,Alcium Software Ltd,No
Http://opendatacommunities.org/id/metropolitan-district-council/leeds,Leeds City Council,31/07/2022,Children and Families,Social Care,Supplies and Services,Food & Drink,231,02/06/2022,2207-00624,0.00,8.48,R,Aldi,Yes
Http://opendatacommunities.org/id/metropolitan-district-council/leeds,Leeds City Council,31/07/2022,Children and Families,Social Care,Appropriations,Leaving Care Allowances,634,17/06/2022,2207-00625,0.00,17.55,R,Aldi,Yes
Http://opendatacommunities.org/id/metropolitan-district-council/leeds,Leeds City Council,31/07/2022,Children and Families,Social Care,Supplies and Services,Food & Drink,231,21/06/2022,2207-00626,0.00,178.11,R,Aldi 103 779,Yes
Http://opendatacommunities.org/id/metropolitan-district-council/leeds,Leeds City Council,31/07/2022,Children and Families,Social Care,Appropriations,Leaving Care Allowances,634,31/05/2022,2207-00627,0.00,50.34,R,Aldi 40 779,Yes
Http://opendatacommunities.org/id/metropolitan-district-council/leeds,Leeds City Council,31/07/2022,Children and Families,Social Care,Supplies and Services,Food & Drink,231,07/06/2022,2207-00628,0.00,26.80,R,Aldi 40 779,Yes
Http://opendatacommunities.org/id/metropolitan-district-council/leeds,Leeds City Council,31/07/2022,Children and Families,Social Care,Appropriations,Leaving Care Allowances,634,29/06/2022,2207-00629,0.00,10.00,R,Aldi 40 779,Yes
Http://opendatacommunities.org/id/metropolitan-district-council/leeds,Leeds City Council,31/07/2022,Communities Housing and Environment,Customer Access,Supplies and Services,Food & Drink,231,31/05/2022,2207-00630,0.00,13.02,R,Aldi 49 779,Yes
Http://opendatacommunities.org/id/metropolitan-district-council/leeds,Leeds City Council,31/07/2022,Children and Families,Social Care,Supplies and Services,Food & Drink,231,02/06/2022,2207-00631,0.00,14.10,R,Aldi 49 779,Yes
Http://opendatacommunities.org/id/metropolitan-district-council/leeds,Leeds City Council,31/07/2022,Children and Families,Social Care,Supplies and Services,Food & Drink,231,05/06/2022,2207-00632,0.00,42.29,R,Aldi 49 779,Yes
Http://opendatacommunities.org/id/metropolitan-district-council/leeds,Leeds City Council,31/07/2022,Children and Families,Social Care,Supplies and Services,Food & Drink,231,21/06/2022,2207-00633,0.00,19.78,R,Aldi 5 779,Yes
Http://opendatacommunities.org/id/metropolitan-district-council/leeds,Leeds City Council,31/07/2022,Children and Families,Social Care,Supplies and Services,Food & Drink,231,29/06/2022,2207-00634,0.00,17.40,R,Aldi 5 779,Yes
Http://opendatacommunities.org/id/metropolitan-district-council/leeds,Leeds City Council,31/07/2022,Children and Families,Social Care,Appropriations,Leaving Care Allowances,634,14/06/2022,2207-00635,0.00,14.68,R,Aldi 71 779,Yes
Http://opendatacommunities.org/id/metropolitan-district-council/leeds,Leeds City Council,31/07/2022,Strategic Landlord,Housing Management,Supplies and Services,Catering Service,233,31/05/2022,2207-00636,0.00,4.64,R,Aldi 779-126,Yes
Http://opendatacommunities.org/id/metropolitan-district-council/leeds,Leeds City Council,31/07/2022,Communities Housing and Environment,Customer Access,Supplies and Services,Food & Drink,231,31/05/2022,2207-00637,0.00,4.37,R,Aldi 779-126,Yes
Http://opendatacommunities.org/id/metropolitan-district-council/leeds,Leeds City Council,31/07/2022,Children and Families,Social Care,Supplies and Services,Food & Drink,231,07/06/2022,2207-00638,0.00,18.60,R,Aldi 85 779,Yes
Http://opendatacommunities.org/id/metropolitan-district-council/leeds,Leeds City Council,31/07/2022,Children and Families,Social Care,Supplies and Services,Food & Drink,231,07/06/2022,2207-00639,0.00,13.27,R,Aldi 85 779,Yes
Http://opendatacommunities.org/id/metropolitan-district-council/leeds,Leeds City Council,31/07/2022,Children and Families,Social Care,Supplies and Services,Food & Drink,231,08/06/2022,2207-00640,0.00,14.72,R,Aldi 85 779,Yes
Http://opendatacommunities.org/id/metropolitan-district-council/leeds,Leeds City Council,31/07/2022,Children and Families,Social Care,Supplies and Services,Food & Drink,231,13/06/2022,2207-00641,0.00,153.76,R,Aldi 85 779,Yes
Http://opendatacommunities.org/id/metropolitan-district-council/leeds,Leeds City Council,31/07/2022,Children and Families,Social Care,Supplies and Services,Teaching Materials,202,16/06/2022,2207-00642,0.00,5.98,R,Aldi 85 779,Yes
Http://opendatacommunities.org/id/metropolitan-district-council/leeds,Leeds City Council,31/07/2022,Children and Families,Social Care,Premises,Cleaning Maintenance & Toiletries,127,19/06/2022,2207-00643,0.00,3.15,R,Aldi 85 779,Yes
Http://opendatacommunities.org/id/metropolitan-district-council/leeds,Leeds City Council,31/07/2022,Children and Families,Social Care,Supplies and Services,Food & Drink,231,22/06/2022,2207-00644,0.00,4.88,R,Aldi 85 779,Yes
Http://opendatacommunities.org/id/metropolitan-district-council/leeds,Leeds City Council,31/07/2022,Children and Families,Social Care,Supplies and Services,Food & Drink,231,28/06/2022,2207-00645,0.00,9.32,R,Aldi 85 779,Yes
Http://opendatacommunities.org/id/metropolitan-district-council/leeds,Leeds City Council,31/07/2022,Children and Families,Social Care,Supplies and Services,Food & Drink,231,28/06/2022,2207-00646,0.00,6.72,R,Aldi 85 779,Yes
Http://opendatacommunities.org/id/metropolitan-district-council/leeds,Leeds City Council,31/07/2022,Children and Families,Social Care,Supplies and Services,Food & Drink,231,28/06/2022,2207-00647,0.00,16.38,R,Aldi 85 779,Yes
Http://opendatacommunities.org/id/metropolitan-district-council/leeds,Leeds City Council,31/07/2022,Children and Families,Social Care,Premises,Cleaning Maintenance & Toiletries,127,29/06/2022,2207-00648,0.00,4.40,R,Aldi 85 779,Yes
Http://opendatacommunities.org/id/metropolitan-district-council/leeds,Leeds City Council,31/07/2022,Children and Families,Social Care,Supplies and Services,Operational Furniture And Equipment,203,07/06/2022,2207-00649,0.00,31.08,R,Aldi 88 779,Yes
Http://opendatacommunities.org/id/metropolitan-district-council/leeds,Leeds City Council,31/07/2022,Children and Families,Social Care,Supplies and Services,Food & Drink,231,15/06/2022,2207-00650,0.00,5.82,R,Aldi 88 779,Yes
Http://opendatacommunities.org/id/metropolitan-district-council/leeds,Leeds City Council,31/07/2022,Children and Families,Social Care,Supplies and Services,Food & Drink,231,31/05/2022,2207-00651,0.00,7.73,R,Aldi 89 779,Yes
Http://opendatacommunities.org/id/metropolitan-district-council/leeds,Leeds City Council,31/07/2022,Children and Families,Social Care,Supplies and Services,Food & Drink,231,01/06/2022,2207-00652,0.00,52.40,R,Aldi 89 779,Yes
Http://opendatacommunities.org/id/metropolitan-district-council/leeds,Leeds City Council,31/07/2022,Children and Families,Social Care,Supplies and Services,Food & Drink,231,02/06/2022,2207-00653,0.00,24.47,R,Aldi 89 779,Yes
Http://opendatacommunities.org/id/metropolitan-district-council/leeds,Leeds City Council,31/07/2022,City Development,Libraries Arts & Heritage,Supplies and Services,Food & Drink,231,08/06/2022,2207-00654,0.00,5.40,R,Aldi 89 779,Yes
Http://opendatacommunities.org/id/metropolitan-district-council/leeds,Leeds City Council,31/07/2022,Children and Families,Social Care,Supplies and Services,Food & Drink,231,16/06/2022,2207-00655,0.00,7.20,R,Aldi 89 779,Yes
Http://opendatacommunities.org/id/metropolitan-district-council/leeds,Leeds City Council,31/07/2022,Adults and Health,Services For Adults Under 65 Mental/Dis,Supplies and Services,General Amenity For Clients/Residents,285,17/06/2022,2207-00656,0.00,16.88,R,Aldi 89 779,Yes
Http://opendatacommunities.org/id/metropolitan-district-council/leeds,Leeds City Council,31/07/2022,Children and Families,Social Care,Supplies and Services,General Amenity For Clients/Residents,285,24/06/2022,2207-00657,0.00,9.86,R,Aldi 89 779,Yes
Http://opendatacommunities.org/id/metropolitan-district-council/leeds,Leeds City Council,31/07/2022,Children and Families,Social Care,Supplies and Services,Food & Drink,231,24/06/2022,2207-00658,0.00,3.41,R,Aldi 89 779,Yes
Http://opendatacommunities.org/id/metropolitan-district-council/leeds,Leeds City Council,31/07/2022,Children and Families,Social Care,Supplies and Services,Food & Drink,231,25/06/2022,2207-00659,0.00,3.05,R,Aldi 89 779,Yes
Http://opendatacommunities.org/id/metropolitan-district-council/leeds,Leeds City Council,31/07/2022,Children and Families,Social Care,Supplies and Services,Food & Drink,231,27/06/2022,2207-00660,0.00,183.87,R,Aldi 89 779,Yes
Http://opendatacommunities.org/id/metropolitan-district-council/leeds,Leeds City Council,31/07/2022,City Development,Libraries Arts & Heritage,Supplies and Services,Operational Materials,205,10/06/2022,2207-00661,0.00,15.09,R,Aldi Stores,Yes
Http://opendatacommunities.org/id/metropolitan-district-council/leeds,Leeds City Council,31/07/2022,City Development,Libraries Arts & Heritage,Supplies and Services,Food & Drink,231,10/06/2022,2207-00662,0.00,17.78,R,Aldi Stores,Yes
Http://opendatacommunities.org/id/metropolitan-district-council/leeds,Leeds City Council,31/07/2022,Communities Housing and Environment,Communities,Supplies and Services,Operational Materials,205,18/06/2022,2207-00663,0.00,20.95,R,Aldi Stores,Yes
Http://opendatacommunities.org/id/metropolitan-district-council/leeds,Leeds City Council,31/07/2022,City Development,Recreation,Supplies and Services,Operational Furniture And Equipment,203,22/06/2022,2207-00664,0.00,14.36,R,Aldi Stores,Yes
Http://opendatacommunities.org/id/metropolitan-district-council/leeds,Leeds City Council,31/07/2022,Children and Families,Social Care,Agency Payments,Contact,548,04/07/2022,2207-00665,0.00,36.90,R,REDACTED PERSONAL DATA,No
Http://opendatacommunities.org/id/metropolitan-district-council/leeds,Leeds City Council,31/07/2022,Children and Families,Social Care,Agency Payments,Contact,548,11/07/2022,2207-00666,0.00,36.90,R,REDACTED PERSONAL DATA,No
Http://opendatacommunities.org/id/metropolitan-district-council/leeds,Leeds City Council,31/07/2022,Children and Families,Social Care,Agency Payments,Contact,548,18/07/2022,2207-00667,0.00,36.90,R,REDACTED PERSONAL DATA,No
Http://opendatacommunities.org/id/metropolitan-district-council/leeds,Leeds City Council,31/07/2022,Children and Families,Social Care,Agency Payments,Contact,548,25/07/2022,2207-00668,0.00,36.90,R,REDACTED PERSONAL DATA,No
Http://opendatacommunities.org/id/metropolitan-district-council/leeds,Leeds City Council,31/07/2022,City Development,Libraries Arts & Heritage,External Income,Admissions Booking Fees & Ticket Sales,933,13/07/2022,2207-00669,0.00,84.14,R,REDACTED PERSONAL DATA,No
Http://opendatacommunities.org/id/metropolitan-district-council/leeds,Leeds City Council,31/07/2022,Children and Families,Social Care,Agency Payments,Section 17,551,08/07/2022,2207-00670,0.00,14.19,R,REDACTED PERSONAL DATA,No
Http://opendatacommunities.org/id/metropolitan-district-council/leeds,Leeds City Council,31/07/2022,Children and Families,Social Care,Internal Recharges,Legal Disbursements,411,22/07/2022,2207-00671,0.00,631.00,R,Alex Taylor,No
Http://opendatacommunities.org/id/metropolitan-district-council/leeds,Leeds City Council,31/07/2022,Resources,Commercial Services,Supplies and Services,Other Hired And Contracted Services,265,08/07/2022,2207-00672,0.00,80.00,R,ALEX WAGG,No
Http://opendatacommunities.org/id/metropolitan-district-council/leeds,Leeds City Council,31/07/2022,Resources,Commercial Services,Supplies and Services,Other Hired And Contracted Services,265,08/07/2022,2207-00673,0.00,250.00,R,ALEX WAGG,No
Http://opendatacommunities.org/id/metropolitan-district-council/leeds,Leeds City Council,31/07/2022,Resources,Commercial Services,Supplies and Services,Other Hired And Contracted Services,265,08/07/2022,2207-00674,0.00,80.00,R,ALEX WAGG,No
Http://opendatacommunities.org/id/metropolitan-district-council/leeds,Leeds City Council,31/07/2022,Resources,Commercial Services,Supplies and Services,Other Hired And Contracted Services,265,08/07/2022,2207-00675,0.00,300.00,R,ALEX WAGG,No
Http://opendatacommunities.org/id/metropolitan-district-council/leeds,Leeds City Council,31/07/2022,Resources,Commercial Services,Supplies and Services,Other Hired And Contracted Services,265,28/07/2022,2207-00676,0.00,440.00,R,ALEX WAGG,No
Http://opendatacommunities.org/id/metropolitan-district-council/leeds,Leeds City Council,31/07/2022,City Development,Libraries Arts & Heritage,Supplies and Services,Courses For Non-Employees,281,22/07/2022,2207-00677,0.00,2900.00,R,Alexander Dunlop,No
Http://opendatacommunities.org/id/metropolitan-district-council/leeds,Leeds City Council,31/07/2022,Adults and Health,Assessment And Care Management,Agency Payments,Residential Care Dementia,571,20/07/2022,2207-00678,0.00,1975.61,R,ALEXANDER RESIDENTIAL HOME,No
Http://opendatacommunities.org/id/metropolitan-district-council/leeds,Leeds City Council,31/07/2022,Adults and Health,Services For Older People - 65 And Over,Agency Payments,Residential Care Dementia,571,20/07/2022,2207-00679,0.00,14991.46,R,ALEXANDER RESIDENTIAL HOME,No
Http://opendatacommunities.org/id/metropolitan-district-council/leeds,Leeds City Council,31/07/2022,Adults and Health,Services For Older People - 65 And Over,Agency Payments,Residential,580,20/07/2022,2207-00680,0.00,13569.85,R,ALEXANDER RESIDENTIAL HOME,No
Http://opendatacommunities.org/id/metropolitan-district-council/leeds,Leeds City Council,31/07/2022,City Development,Libraries Arts & Heritage,External Income,Admissions Booking Fees & Ticket Sales,933,29/07/2022,2207-00681,0.00,49.82,R,REDACTED PERSONAL DATA,No
Http://opendatacommunities.org/id/metropolitan-district-council/leeds,Leeds City Council,31/07/2022,Communities Housing and Environment,Customer Access,Supplies and Services,Bought In Professional Services,277,13/07/2022,2207-00682,0.00,51.00,R,Alexandra Costenco,No
Http://opendatacommunities.org/id/metropolitan-district-council/leeds,Leeds City Council,31/07/2022,Communities Housing and Environment,Customer Access,Supplies and Services,Bought In Professional Services,277,20/07/2022,2207-00683,0.00,36.00,R,Alexandra Costenco,No
Http://opendatacommunities.org/id/metropolitan-district-council/leeds,Leeds City Council,31/07/2022,Communities Housing and Environment,Customer Access,Supplies and Services,Bought In Professional Services,277,20/07/2022,2207-00684,0.00,67.50,R,Alexandra Costenco,No
Http://opendatacommunities.org/id/metropolitan-district-council/leeds,Leeds City Council,31/07/2022,Adults and Health,Services For Older People - 65 And Over,Agency Payments,Residential Care Dementia,571,20/07/2022,2207-00685,0.00,6738.60,R,ALEXANDRA COURT,No
Http://opendatacommunities.org/id/metropolitan-district-council/leeds,Leeds City Council,31/07/2022,Adults and Health,Services For Older People - 65 And Over,Agency Payments,Residential,580,20/07/2022,2207-00686,0.00,12390.13,R,ALEXANDRA COURT,No
Http://opendatacommunities.org/id/metropolitan-district-council/leeds,Leeds City Council,31/07/2022,Children and Families,Social Care,Agency Payments,Services Rendered By Other Organisations,511,01/07/2022,2207-00687,0.00,2097.23,R,REDACTED PERSONAL DATA,No
Http://opendatacommunities.org/id/metropolitan-district-council/leeds,Leeds City Council,31/07/2022,Adults and Health,Services For Older People - 65 And Over,Supplies and Services,Clothing & Uniforms,241,13/06/2022,2207-00688,0.00,17.48,R,Alexandra Website,Yes
Http://opendatacommunities.org/id/metropolitan-district-council/leeds,Leeds City Council,31/07/2022,Adults and Health,Services For Older People - 65 And Over,Supplies and Services,Clothing & Uniforms,241,15/06/2022,2207-00689,0.00,18.22,R,Alexandra Website,Yes
Http://opendatacommunities.org/id/metropolitan-district-council/leeds,Leeds City Council,31/07/2022,Children and Families,Social Care,Agency Payments,Section 17,551,15/07/2022,2207-00690,0.00,112.90,R,REDACTED PERSONAL DATA,No
Http://opendatacommunities.org/id/metropolitan-district-council/leeds,Leeds City Council,31/07/2022,Resources,Leeds Building Services,Supplies and Services,Other Hired And Contracted Services,265,07/07/2022,2207-00691,0.00,2360.00,R,Alfred Bagnall & Sons (Leeds) Ltd,No
Http://opendatacommunities.org/id/metropolitan-district-council/leeds,Leeds City Council,31/07/2022,Resources,Leeds Building Services,Supplies and Services,Other Hired And Contracted Services,265,20/07/2022,2207-00692,0.00,750.00,R,Alfred Bagnall & Sons (Leeds) Ltd,No
Http://opendatacommunities.org/id/metropolitan-district-council/leeds,Leeds City Council,31/07/2022,Resources,Leeds Building Services,Supplies and Services,Other Hired And Contracted Services,265,20/07/2022,2207-00693,0.00,1500.00,R,Alfred Bagnall & Sons (Leeds) Ltd,No
Http://opendatacommunities.org/id/metropolitan-district-council/leeds,Leeds City Council,31/07/2022,Resources,Leeds Building Services,Supplies and Services,Other Hired And Contracted Services,265,20/07/2022,2207-00694,0.00,2000.00,R,Alfred Bagnall & Sons (Leeds) Ltd,No
Http://opendatacommunities.org/id/metropolitan-district-council/leeds,Leeds City Council,31/07/2022,Resources,Leeds Building Services,Supplies and Services,Other Hired And Contracted Services,265,20/07/2022,2207-00695,0.00,2600.00,R,Alfred Bagnall & Sons (Leeds) Ltd,No
Http://opendatacommunities.org/id/metropolitan-district-council/leeds,Leeds City Council,31/07/2022,Resources,Leeds Building Services,Supplies and Services,Other Hired And Contracted Services,265,20/07/2022,2207-00696,0.00,1250.00,R,Alfred Bagnall & Sons (Leeds) Ltd,No
Http://opendatacommunities.org/id/metropolitan-district-council/leeds,Leeds City Council,31/07/2022,Resources,Leeds Building Services,Supplies and Services,Other Hired And Contracted Services,265,20/07/2022,2207-00697,0.00,32365.58,R,Alfred Bagnall & Sons (Leeds) Ltd,No
Http://opendatacommunities.org/id/metropolitan-district-council/leeds,Leeds City Council,31/07/2022,Resources,Leeds Building Services,Supplies and Services,Other Hired And Contracted Services,265,22/07/2022,2207-00698,0.00,250.00,R,Alfred Bagnall & Sons (Leeds) Ltd,No
Http://opendatacommunities.org/id/metropolitan-district-council/leeds,Leeds City Council,31/07/2022,Communities Housing and Environment,Parks and Countryside,Supplies and Services,Other Hired And Contracted Services,265,22/07/2022,2207-00699,0.00,2935.00,R,Alfred Bagnall & Sons (Leeds) Ltd,No
Http://opendatacommunities.org/id/metropolitan-district-council/leeds,Leeds City Council,31/07/2022,Resources,Leeds Building Services,Supplies and Services,Other Hired And Contracted Services,265,28/07/2022,2207-00700,0.00,1900.00,R,Alfred Bagnall & Sons (Leeds) Ltd,No
Http://opendatacommunities.org/id/metropolitan-district-council/leeds,Leeds City Council,31/07/2022,Resources,Leeds Building Services,Supplies and Services,Other Hired And Contracted Services,265,29/07/2022,2207-00701,0.00,23779.36,R,Alfred Bagnall & Sons (Leeds) Ltd,No
Http://opendatacommunities.org/id/metropolitan-district-council/leeds,Leeds City Council,31/07/2022,Resources,Leeds Building Services,Supplies and Services,Other Hired And Contracted Services,265,29/07/2022,2207-00702,0.00,250.00,R,Alfred Bagnall & Sons (Leeds) Ltd,No
Http://opendatacommunities.org/id/metropolitan-district-council/leeds,Leeds City Council,31/07/2022,Resources,Leeds Building Services,Supplies and Services,Other Hired And Contracted Services,265,29/07/2022,2207-00703,0.00,790.00,R,Alfred Bagnall & Sons (Leeds) Ltd,No
Http://opendatacommunities.org/id/metropolitan-district-council/leeds,Leeds City Council,31/07/2022,Resources,Leeds Building Services,Supplies and Services,Other Hired And Contracted Services,265,29/07/2022,2207-00704,0.00,840.00,R,Alfred Bagnall & Sons (Leeds) Ltd,No
Http://opendatacommunities.org/id/metropolitan-district-council/leeds,Leeds City Council,31/07/2022,Resources,Leeds Building Services,Supplies and Services,Other Hired And Contracted Services,265,29/07/2022,2207-00705,0.00,250.00,R,Alfred Bagnall & Sons (Leeds) Ltd,No
Http://opendatacommunities.org/id/metropolitan-district-council/leeds,Leeds City Council,31/07/2022,Communities Housing and Environment,Parks and Countryside,Transport,Hire Of Movable Plant & Machinery,315,20/07/2022,2207-00706,0.00,157.63,R,ALGECO UK LIMITED,No
Http://opendatacommunities.org/id/metropolitan-district-council/leeds,Leeds City Council,31/07/2022,Communities Housing and Environment,Parks and Countryside,Transport,Hire Of Movable Plant & Machinery,315,20/07/2022,2207-00707,0.00,143.93,R,ALGECO UK LIMITED,No
Http://opendatacommunities.org/id/metropolitan-district-council/leeds,Leeds City Council,31/07/2022,Children and Families,Social Care,Appropriations,Leaving Care Allowances,634,25/07/2022,2207-00708,0.00,164.10,R,REDACTED PERSONAL DATA,No
Http://opendatacommunities.org/id/metropolitan-district-council/leeds,Leeds City Council,31/07/2022,Children and Families,Social Care,Appropriations,Leaving Care Allowances,634,26/07/2022,2207-00709,0.00,61.05,R,REDACTED PERSONAL DATA,No
Http://opendatacommunities.org/id/metropolitan-district-council/leeds,Leeds City Council,31/07/2022,Communities Housing and Environment,Customer Access,Supplies and Services,Bought In Professional Services,277,07/07/2022,2207-00710,0.00,18.00,R,Ali Pourakaberian,No
Http://opendatacommunities.org/id/metropolitan-district-council/leeds,Leeds City Council,31/07/2022,Communities Housing and Environment,Customer Access,Supplies and Services,Bought In Professional Services,277,13/07/2022,2207-00711,0.00,22.50,R,Ali Pourakaberian,No
Http://opendatacommunities.org/id/metropolitan-district-council/leeds,Leeds City Council,31/07/2022,Communities Housing and Environment,Customer Access,Supplies and Services,Bought In Professional Services,277,13/07/2022,2207-00712,0.00,27.00,R,Ali Pourakaberian,No
Http://opendatacommunities.org/id/metropolitan-district-council/leeds,Leeds City Council,31/07/2022,Communities Housing and Environment,Customer Access,Supplies and Services,Bought In Professional Services,277,13/07/2022,2207-00713,0.00,9.00,R,Ali Pourakaberian,No
Http://opendatacommunities.org/id/metropolitan-district-council/leeds,Leeds City Council,31/07/2022,Communities Housing and Environment,Customer Access,Supplies and Services,Bought In Professional Services,277,27/07/2022,2207-00714,0.00,27.00,R,Ali Pourakaberian,No
Http://opendatacommunities.org/id/metropolitan-district-council/leeds,Leeds City Council,31/07/2022,Communities Housing and Environment,Customer Access,Supplies and Services,Bought In Professional Services,277,27/07/2022,2207-00715,0.00,27.00,R,Ali Pourakaberian,No
Http://opendatacommunities.org/id/metropolitan-district-council/leeds,Leeds City Council,31/07/2022,Children and Families,Social Care,Appropriations,Leaving Care Allowances,634,25/07/2022,2207-00716,0.00,82.10,R,REDACTED PERSONAL DATA,No
Http://opendatacommunities.org/id/metropolitan-district-council/leeds,Leeds City Council,31/07/2022,Insurance,Insurance,Supplies and Services,Other Hired And Contracted Services,265,14/07/2022,2207-00717,0.00,710.00,R,Alice Dobbie,No
Http://opendatacommunities.org/id/metropolitan-district-council/leeds,Leeds City Council,31/07/2022,City Development,Recreation,Supplies and Services,Bought In Professional Services,277,07/07/2022,2207-00718,0.00,20.00,R,Alice M Richardson,No
Http://opendatacommunities.org/id/metropolitan-district-council/leeds,Leeds City Council,31/07/2022,City Development,Recreation,Supplies and Services,Bought In Professional Services,277,29/07/2022,2207-00719,0.00,20.00,R,Alice M Richardson,No
Http://opendatacommunities.org/id/metropolitan-district-council/leeds,Leeds City Council,31/07/2022,City Development,Recreation,Supplies and Services,Bought In Professional Services,277,29/07/2022,2207-00720,0.00,60.00,R,Alice M Richardson,No
Http://opendatacommunities.org/id/metropolitan-district-council/leeds,Leeds City Council,31/07/2022,City Development,Recreation,Supplies and Services,Bought In Professional Services,277,29/07/2022,2207-00721,0.00,60.00,R,Alice M Richardson,No
Http://opendatacommunities.org/id/metropolitan-district-council/leeds,Leeds City Council,31/07/2022,Children and Families,Social Care,Agency Payments,Placement Support,550,12/07/2022,2207-00722,0.00,19.90,R,REDACTED PERSONAL DATA,No
Http://opendatacommunities.org/id/metropolitan-district-council/leeds,Leeds City Council,31/07/2022,Communities Housing and Environment,Customer Access,Supplies and Services,Bought In Professional Services,277,07/07/2022,2207-00723,0.00,126.00,R,Alina Maksakova,No
Http://opendatacommunities.org/id/metropolitan-district-council/leeds,Leeds City Council,31/07/2022,Communities Housing and Environment,Car Parking Services,External Income,Penalties Fines & Car Parking Charges,934,15/07/2022,2207-00724,0.00,30.00,R,REDACTED PERSONAL DATA,No
Http://opendatacommunities.org/id/metropolitan-district-council/leeds,Leeds City Council,31/07/2022,Children and Families,Social Care,Agency Payments,Contact,548,08/07/2022,2207-00725,0.00,41.60,R,REDACTED PERSONAL DATA,No
Http://opendatacommunities.org/id/metropolitan-district-council/leeds,Leeds City Council,31/07/2022,Children and Families,Social Care,Agency Payments,Contact,548,15/07/2022,2207-00726,0.00,10.40,R,REDACTED PERSONAL DATA,No
Http://opendatacommunities.org/id/metropolitan-district-council/leeds,Leeds City Council,31/07/2022,Children and Families,Social Care,Agency Payments,Contact,548,22/07/2022,2207-00727,0.00,10.40,R,REDACTED PERSONAL DATA,No
Http://opendatacommunities.org/id/metropolitan-district-council/leeds,Leeds City Council,31/07/2022,Children and Families,Social Care,Agency Payments,Contact,548,29/07/2022,2207-00728,0.00,10.40,R,REDACTED PERSONAL DATA,No
Http://opendatacommunities.org/id/metropolitan-district-council/leeds,Leeds City Council,31/07/2022,Children and Families,Social Care,Appropriations,Leaving Care Allowances,634,18/07/2022,2207-00729,0.00,120.00,R,REDACTED PERSONAL DATA,No
Http://opendatacommunities.org/id/metropolitan-district-council/leeds,Leeds City Council,31/07/2022,Children and Families,Social Care,Appropriations,Leaving Care Allowances,634,29/07/2022,2207-00730,0.00,120.00,R,REDACTED PERSONAL DATA,No
Http://opendatacommunities.org/id/metropolitan-district-council/leeds,Leeds City Council,31/07/2022,Children and Families,Social Care,Agency Payments,Services Rendered By Other Organisations,511,01/07/2022,2207-00731,0.00,372.84,R,REDACTED PERSONAL DATA,No
Http://opendatacommunities.org/id/metropolitan-district-council/leeds,Leeds City Council,31/07/2022,Strategic Landlord,Property and Contracts,Supplies and Services,Insurance Claims,248,05/07/2022,2207-00732,0.00,6100.00,R,Alison Law Solicitors,No
Http://opendatacommunities.org/id/metropolitan-district-council/leeds,Leeds City Council,31/07/2022,Strategic Landlord,Property and Contracts,Supplies and Services,Insurance Claims,248,05/07/2022,2207-00733,0.00,8750.00,R,Alison Law Solicitors,No
Http://opendatacommunities.org/id/metropolitan-district-council/leeds,Leeds City Council,31/07/2022,Strategic Landlord,Property and Contracts,Internal Recharges,Legal Disbursements,411,29/07/2022,2207-00734,0.00,2926.33,R,Alison Law Solicitors,No
Http://opendatacommunities.org/id/metropolitan-district-council/leeds,Leeds City Council,31/07/2022,Children and Families,Social Care,Agency Payments,Allowances,546,26/07/2022,2207-00735,0.00,65.00,R,REDACTED PERSONAL DATA,No
Http://opendatacommunities.org/id/metropolitan-district-council/leeds,Leeds City Council,31/07/2022,City Development,Libraries Arts & Heritage,External Income,Admissions Booking Fees & Ticket Sales,933,08/07/2022,2207-00736,0.00,95.45,R,REDACTED PERSONAL DATA,No
Http://opendatacommunities.org/id/metropolitan-district-council/leeds,Leeds City Council,31/07/2022,Communities Housing and Environment,Communities,Supplies and Services,'Well Being' Large Grants Projects,230,15/07/2022,2207-00737,0.00,100.00,R,All Hallows Church,No
Http://opendatacommunities.org/id/metropolitan-district-council/leeds,Leeds City Council,31/07/2022,Children and Families,Social Care,Agency Payments,Services Rendered By Other Organisations,511,01/07/2022,2207-00738,0.00,13297.96,R,All Stars Childcare,No
Http://opendatacommunities.org/id/metropolitan-district-council/leeds,Leeds City Council,31/07/2022,Children and Families,Social Care,Agency Payments,Services Rendered By Other Organisations,511,06/07/2022,2207-00739,0.00,1303.38,R,All Stars Childcare,No
Http://opendatacommunities.org/id/metropolitan-district-council/leeds,Leeds City Council as Accountable Body,31/07/2022,Social Services Pooled Budgets,Jcs For People With Learning Disabilitie,Agency Payments,Sheltered Accommodation,569,20/07/2022,2207-00740,0.00,20486.00,R,Allerton Avenue,No
Http://opendatacommunities.org/id/metropolitan-district-council/leeds,Leeds City Council,31/07/2022,Adults and Health,Services For Older People - 65 And Over,Agency Payments,Nursing Care Dementia,574,20/07/2022,2207-00741,0.00,17332.00,R,ALLERTON PARK N H,No
Http://opendatacommunities.org/id/metropolitan-district-council/leeds,Leeds City Council,31/07/2022,Resources,Finance,Supplies and Services,Bank Charges,263,06/07/2022,2207-00742,0.00,146.42,R,ALLIANCE & LEICESTER COMMERCIAL BANK,No
Http://opendatacommunities.org/id/metropolitan-district-council/leeds,Leeds City Council,31/07/2022,Resources,Finance,Supplies and Services,Bank Charges,263,06/07/2022,2207-00743,0.00,100.00,R,ALLIANCE & LEICESTER COMMERCIAL BANK,No
Http://opendatacommunities.org/id/metropolitan-district-council/leeds,Leeds City Council,31/07/2022,Resources,Commercial Services,Supplies and Services,Operational Materials,205,07/07/2022,2207-00744,0.00,10.26,R,ALLIANCE DISPOSABLES LTD,No
Http://opendatacommunities.org/id/metropolitan-district-council/leeds,Leeds City Council,31/07/2022,Resources,Commercial Services,Supplies and Services,Operational Materials,205,07/07/2022,2207-00745,0.00,533.88,R,ALLIANCE DISPOSABLES LTD,No
Http://opendatacommunities.org/id/metropolitan-district-council/leeds,Leeds City Council,31/07/2022,Resources,Commercial Services,Supplies and Services,Operational Materials,205,08/07/2022,2207-00746,0.00,90.61,R,ALLIANCE DISPOSABLES LTD,No
Http://opendatacommunities.org/id/metropolitan-district-council/leeds,Leeds City Council,31/07/2022,Resources,Commercial Services,Supplies and Services,Operational Materials,205,13/07/2022,2207-00747,0.00,104.51,R,ALLIANCE DISPOSABLES LTD,No
Http://opendatacommunities.org/id/metropolitan-district-council/leeds,Leeds City Council,31/07/2022,Resources,Commercial Services,Supplies and Services,Operational Materials,205,13/07/2022,2207-00748,0.00,103.37,R,ALLIANCE DISPOSABLES LTD,No
Http://opendatacommunities.org/id/metropolitan-district-council/leeds,Leeds City Council,31/07/2022,Resources,Commercial Services,Supplies and Services,Operational Materials,205,13/07/2022,2207-00749,0.00,266.36,R,ALLIANCE DISPOSABLES LTD,No
Http://opendatacommunities.org/id/metropolitan-district-council/leeds,Leeds City Council,31/07/2022,Resources,Commercial Services,Supplies and Services,Operational Materials,205,13/07/2022,2207-00750,0.00,327.50,R,ALLIANCE DISPOSABLES LTD,No
Http://opendatacommunities.org/id/metropolitan-district-council/leeds,Leeds City Council,31/07/2022,Resources,Commercial Services,Supplies and Services,Operational Materials,205,14/07/2022,2207-00751,0.00,475.89,R,ALLIANCE DISPOSABLES LTD,No
Http://opendatacommunities.org/id/metropolitan-district-council/leeds,Leeds City Council,31/07/2022,Resources,Commercial Services,Supplies and Services,Operational Materials,205,15/07/2022,2207-00752,0.00,44.89,R,ALLIANCE DISPOSABLES LTD,No
Http://opendatacommunities.org/id/metropolitan-district-council/leeds,Leeds City Council,31/07/2022,Resources,Commercial Services,Supplies and Services,Operational Materials,205,15/07/2022,2207-00753,0.00,134.67,R,ALLIANCE DISPOSABLES LTD,No
Http://opendatacommunities.org/id/metropolitan-district-council/leeds,Leeds City Council,31/07/2022,Resources,Commercial Services,Supplies and Services,Operational Materials,205,20/07/2022,2207-00754,0.00,12.30,R,ALLIANCE DISPOSABLES LTD,No
Http://opendatacommunities.org/id/metropolitan-district-council/leeds,Leeds City Council,31/07/2022,Resources,Commercial Services,Supplies and Services,Operational Materials,205,20/07/2022,2207-00755,0.00,44.89,R,ALLIANCE DISPOSABLES LTD,No
Http://opendatacommunities.org/id/metropolitan-district-council/leeds,Leeds City Council,31/07/2022,Resources,Commercial Services,Supplies and Services,Operational Materials,205,22/07/2022,2207-00756,0.00,300.14,R,ALLIANCE DISPOSABLES LTD,No
Http://opendatacommunities.org/id/metropolitan-district-council/leeds,Leeds City Council,31/07/2022,Resources,Commercial Services,Supplies and Services,Operational Materials,205,22/07/2022,2207-00757,0.00,359.12,R,ALLIANCE DISPOSABLES LTD,No
Http://opendatacommunities.org/id/metropolitan-district-council/leeds,Leeds City Council,31/07/2022,Resources,Commercial Services,Supplies and Services,Operational Materials,205,22/07/2022,2207-00758,0.00,188.23,R,ALLIANCE DISPOSABLES LTD,No
Http://opendatacommunities.org/id/metropolitan-district-council/leeds,Leeds City Council,31/07/2022,Resources,Commercial Services,Supplies and Services,Operational Materials,205,22/07/2022,2207-00759,0.00,89.78,R,ALLIANCE DISPOSABLES LTD,No
Http://opendatacommunities.org/id/metropolitan-district-council/leeds,Leeds City Council,31/07/2022,Resources,Commercial Services,Supplies and Services,Operational Materials,205,28/07/2022,2207-00760,0.00,30.78,R,ALLIANCE DISPOSABLES LTD,No
Http://opendatacommunities.org/id/metropolitan-district-council/leeds,Leeds City Council,31/07/2022,Resources,Commercial Services,Supplies and Services,Operational Materials,205,28/07/2022,2207-00761,0.00,65.71,R,ALLIANCE DISPOSABLES LTD,No
Http://opendatacommunities.org/id/metropolitan-district-council/leeds,Leeds City Council,31/07/2022,Resources,Commercial Services,Supplies and Services,Operational Materials,205,29/07/2022,2207-00762,0.00,672.02,R,ALLIANCE DISPOSABLES LTD,No
Http://opendatacommunities.org/id/metropolitan-district-council/leeds,Leeds City Council,31/07/2022,Adults and Health,Services For Adults Under 65 Mental/Dis,Agency Payments,Home Care,568,06/07/2022,2207-00763,0.00,1506.03,R,Allied Healthcare,No
Http://opendatacommunities.org/id/metropolitan-district-council/leeds,Leeds City Council,31/07/2022,Adults and Health,Services For Older People - 65 And Over,Agency Payments,Home Care,568,06/07/2022,2207-00764,0.00,50632.81,R,Allied Healthcare,No
Http://opendatacommunities.org/id/metropolitan-district-council/leeds,Leeds City Council,31/07/2022,Adults and Health,Services For Older People - 65 And Over,Agency Payments,HCAIT Community Support,575,06/07/2022,2207-00765,0.00,245.88,R,Allied Healthcare,No
Http://opendatacommunities.org/id/metropolitan-district-council/leeds,Leeds City Council,31/07/2022,Adults and Health,Services For Older People - 65 And Over,Agency Payments,HCAIT Other,577,06/07/2022,2207-00766,0.00,1251.47,R,Allied Healthcare,No
Http://opendatacommunities.org/id/metropolitan-district-council/leeds,Leeds City Council,31/07/2022,Adults and Health,Services For Older People Under 65 P/Dis,Agency Payments,Home Care,568,06/07/2022,2207-00767,0.00,8190.93,R,Allied Healthcare,No
Http://opendatacommunities.org/id/metropolitan-district-council/leeds,Leeds City Council,31/07/2022,Adults and Health,Services For Older People Under 65 P/Dis,Agency Payments,HCAIT Community Support,575,06/07/2022,2207-00768,0.00,3442.32,R,Allied Healthcare,No
Http://opendatacommunities.org/id/metropolitan-district-council/leeds,Leeds City Council,31/07/2022,Adults and Health,Services For Older People - 65 And Over,Agency Payments,Home Care,568,06/07/2022,2207-00769,0.00,1828.80,R,Allied Healthcare,No
Http://opendatacommunities.org/id/metropolitan-district-council/leeds,Leeds City Council,31/07/2022,Adults and Health,Services For Older People Under 65 P/Dis,Agency Payments,Home Care,568,06/07/2022,2207-00770,0.00,609.60,R,Allied Healthcare,No
Http://opendatacommunities.org/id/metropolitan-district-council/leeds,Leeds City Council,31/07/2022,Adults and Health,Services For Adults Under 65 Mental/Dis,Agency Payments,Home Care,568,20/07/2022,2207-00771,0.00,1454.81,R,Allied Healthcare,No
Http://opendatacommunities.org/id/metropolitan-district-council/leeds,Leeds City Council,31/07/2022,Adults and Health,Services For Older People - 65 And Over,Agency Payments,Home Care,568,20/07/2022,2207-00772,0.00,47794.56,R,Allied Healthcare,No
Http://opendatacommunities.org/id/metropolitan-district-council/leeds,Leeds City Council,31/07/2022,Adults and Health,Services For Older People - 65 And Over,Agency Payments,HCAIT Community Support,575,20/07/2022,2207-00773,0.00,245.88,R,Allied Healthcare,No
Http://opendatacommunities.org/id/metropolitan-district-council/leeds,Leeds City Council,31/07/2022,Adults and Health,Services For Older People - 65 And Over,Agency Payments,HCAIT Other,577,20/07/2022,2207-00774,0.00,1241.23,R,Allied Healthcare,No
Http://opendatacommunities.org/id/metropolitan-district-council/leeds,Leeds City Council,31/07/2022,Adults and Health,Services For Older People Under 65 P/Dis,Agency Payments,Home Care,568,20/07/2022,2207-00775,0.00,8139.71,R,Allied Healthcare,No
Http://opendatacommunities.org/id/metropolitan-district-council/leeds,Leeds City Council,31/07/2022,Adults and Health,Services For Older People Under 65 P/Dis,Agency Payments,HCAIT Community Support,575,20/07/2022,2207-00776,0.00,3401.35,R,Allied Healthcare,No
Http://opendatacommunities.org/id/metropolitan-district-council/leeds,Leeds City Council,31/07/2022,Adults and Health,Services For Older People - 65 And Over,Agency Payments,Home Care,568,20/07/2022,2207-00777,0.00,1828.80,R,Allied Healthcare,No
Http://opendatacommunities.org/id/metropolitan-district-council/leeds,Leeds City Council,31/07/2022,Adults and Health,Services For Older People Under 65 P/Dis,Agency Payments,Home Care,568,20/07/2022,2207-00778,0.00,600.08,R,Allied Healthcare,No
Http://opendatacommunities.org/id/metropolitan-district-council/leeds,Leeds City Council,31/07/2022,Adults and Health,Services For Older People - 65 And Over,Agency Payments,Home Care,568,20/07/2022,2207-00779,0.00,40.98,R,Allied Healthcare,No
Http://opendatacommunities.org/id/metropolitan-district-council/leeds,Leeds City Council,31/07/2022,Adults and Health,Services For Older People - 65 And Over,Agency Payments,Home Care,568,27/07/2022,2207-00780,0.00,1781.84,R,Allied Healthcare,No
Http://opendatacommunities.org/id/metropolitan-district-council/leeds,Leeds City Council,31/07/2022,Adults and Health,Services For Older People Under 65 P/Dis,Agency Payments,Home Care,568,27/07/2022,2207-00781,0.00,598.88,R,Allied Healthcare,No
Http://opendatacommunities.org/id/metropolitan-district-council/leeds,Leeds City Council,31/07/2022,Adults and Health,Services For Older People - 65 And Over,Agency Payments,Home Care,568,27/07/2022,2207-00782,0.00,69.69,R,Allied Healthcare,No
Http://opendatacommunities.org/id/metropolitan-district-council/leeds,Leeds City Council,31/07/2022,Adults and Health,Services For Older People - 65 And Over,Agency Payments,Home Care,568,27/07/2022,2207-00783,0.00,1137.20,R,Allied Healthcare,No
Http://opendatacommunities.org/id/metropolitan-district-council/leeds,Leeds City Council,31/07/2022,Adults and Health,Services For Older People - 65 And Over,Agency Payments,Home Care,568,27/07/2022,2207-00784,0.00,2745.66,R,Allied Healthcare,No
Http://opendatacommunities.org/id/metropolitan-district-council/leeds,Leeds City Council,31/07/2022,Resources,Shared Services,External Income,Service Charges & Security Fees,938,01/07/2022,2207-00785,0.00,3492.58,R,Allied Publicity Services,No
Http://opendatacommunities.org/id/metropolitan-district-council/leeds,Leeds City Council,31/07/2022,Resources,Shared Services,External Income,Service Charges & Security Fees,938,29/07/2022,2207-00786,0.00,2987.51,R,Allied Publicity Services,No
Http://opendatacommunities.org/id/metropolitan-district-council/leeds,Leeds City Council,31/07/2022,Children and Families,Social Care,Agency Payments,Services Rendered By Other Organisations,511,01/07/2022,2207-00787,0.00,559.26,R,REDACTED PERSONAL DATA,No
Http://opendatacommunities.org/id/metropolitan-district-council/leeds,Leeds City Council,31/07/2022,Children and Families,Social Care,Supplies and Services,Other Hired And Contracted Services,265,27/07/2022,2207-00788,0.00,1462.50,R,Allison Jayne Sandiford,No
Http://opendatacommunities.org/id/metropolitan-district-council/leeds,Leeds City Council,31/07/2022,Children and Families,Social Care,Supplies and Services,Other Hired And Contracted Services,265,27/07/2022,2207-00789,0.00,2925.00,R,Allison Jayne Sandiford,No
Http://opendatacommunities.org/id/metropolitan-district-council/leeds,Leeds City Council,31/07/2022,Children and Families,Social Care,Supplies and Services,Other Hired And Contracted Services,265,27/07/2022,2207-00790,0.00,1912.50,R,Allison Jayne Sandiford,No
Http://opendatacommunities.org/id/metropolitan-district-council/leeds,Leeds City Council,31/07/2022,Children and Families,Social Care,Appropriations,Leaving Care Allowances,634,01/07/2022,2207-00791,0.00,50.00,R,Allpay,No
